Service Area,Service Division,Expense Type,Expense Code,Detailed Expense Type,Payment Date,Transaction Number,Amount Exc VAT,Supplier Name
Regeneration and Local Services,Culture & Sport,Supplies and Services,312013,Newspapers books and periodicals E312,08/02/2019,3548634-95150868A,"3,810.00",(BSI) BRITISH STANDARDS INSTITUTION.
Children and Young Peoples Services,Head of Education and Skills,Transport,230008,Contract Hire,14/02/2019,3550816-N0310119,"2,470.00",1ST AID COMMERCIALS LTD.
Children and Young Peoples Services,Head of Education and Skills,Transport,230007,Contract Hire,07/02/2019,3548280-11901,"1,620.00",24/7 TAXI SERVICES LTD.
Children and Young Peoples Services,Head of Education and Skills,Transport,230007,Contract Hire,07/02/2019,3548280-11902,672.00,24/7 TAXI SERVICES LTD.
Children and Young Peoples Services,Head of Education and Skills,Transport,230009,Contract Hire,07/02/2019,3548280-11903,665.00,24/7 TAXI SERVICES LTD.
Dedicated Schools Grant,DSG High Needs Block,Transport,230009,Contract Hire,08/02/2019,3548637-11912,"1,900.00",24/7 TAXI SERVICES LTD.
Children and Young Peoples Services,Head of Education and Skills,Transport,230006,Contract Hire,08/02/2019,3548637-11911,"1,530.00",24/7 TAXI SERVICES LTD.
Children and Young Peoples Services,Head of Education and Skills,Transport,230006,Contract Hire,11/02/2019,3549080-11910,"1,326.00",24/7 TAXI SERVICES LTD.
Children and Young Peoples Services,Head of Education and Skills,Transport,230008,Contract Hire,07/02/2019,3548280-11904,"1,584.20",24/7 TAXI SERVICES LTD.
Dedicated Schools Grant,DSG High Needs Block,Transport,230008,Contract Hire,07/02/2019,3548280-11905,"1,520.00",24/7 TAXI SERVICES LTD.
Children and Young Peoples Services,Head of Education and Skills,Transport,230008,Contract Hire,07/02/2019,3548280-11906,"2,585.00",24/7 TAXI SERVICES LTD.
Children and Young Peoples Services,Head of Education and Skills,Transport,230008,Contract Hire,07/02/2019,3548280-11907,"2,760.00",24/7 TAXI SERVICES LTD.
Children and Young Peoples Services,Head of Education and Skills,Transport,230008,Contract Hire,07/02/2019,3548280-11908,760.00,24/7 TAXI SERVICES LTD.
Children and Young Peoples Services,Head of Education and Skills,Transport,230008,Contract Hire,08/02/2019,3548637-11913,846.00,24/7 TAXI SERVICES LTD.
Children and Young Peoples Services,Head of Education and Skills,Transport,230008,Contract Hire,08/02/2019,3548637-11914,"1,440.00",24/7 TAXI SERVICES LTD.
Adult and Health Services,Head of Adults,Transport,230005,Contract Hire,07/02/2019,3548280-11909,600.00,24/7 TAXI SERVICES LTD.
Children and Young Peoples Services,Head of Education and Skills,Transport,230006,Contract Hire,06/02/2019,3547842-16,833.00,A & C TAXIS.
Regeneration and Local Services,Direct Services,Third Party Payments 4THIRD,430100,Rendered by Private Contractors,26/02/2019,3556676-2793,"3,334.50",A & J GUTHRIE.
Children and Young Peoples Services,Head of Education and Skills,Transport,230007,Contract Hire,11/02/2019,3549094-JANUARY02-3365,"1,900.00",A & P TAXIS.
Children and Young Peoples Services,Head of Education and Skills,Transport,230009,Contract Hire,11/02/2019,3549094-JANUARY03-7357,950.00,A & P TAXIS.
Dedicated Schools Grant,DSG High Needs Block,Transport,230010,Contract Hire,11/02/2019,3549094-JANUARY01,"1,447.99",A & P TAXIS.
Children and Young Peoples Services,Head of Education and Skills,Transport,230007,Contract Hire,07/02/2019,3548281-577,722.00,A BARKER.
Children and Young Peoples Services,Head of Education and Skills,Transport,230006,Contract Hire,07/02/2019,3548281-576,624.00,A BARKER.
Regeneration and Local Services,Technical Services,Construction work A908,908105,Construction work,07/02/2019,3548282-INS-DEMOLITIONAYCLIFFEYOUNGPEOPLES,"209,932.13",A BUCKLER (HAULAGE) LTD.
Adult and Health Services,Head of Adults,Third Party Payments 4THIRD,470101,Purchase of Care,19/02/2019,3552908-2534654,"2,279.00",A CHARLES THOMAS (CARE) LTD.
Adult and Health Services,Head of Adults,Third Party Payments 4THIRD,470101,Purchase of Care,19/02/2019,3552908-2534655,"1,953.42",A CHARLES THOMAS (CARE) LTD.
Adult and Health Services,Head of Adults,Third Party Payments 4THIRD,470101,Purchase of Care,19/02/2019,3552908-2534656,"2,279.00",A CHARLES THOMAS (CARE) LTD.
Adult and Health Services,Head of Adults,Third Party Payments 4THIRD,470101,Purchase of Care,19/02/2019,3552908-2534657,"2,279.00",A CHARLES THOMAS (CARE) LTD.
Adult and Health Services,Head of Adults,Third Party Payments 4THIRD,470101,Purchase of Care,19/02/2019,3552908-2534658,"2,279.00",A CHARLES THOMAS (CARE) LTD.
Adult and Health Services,Head of Adults,Third Party Payments 4THIRD,470101,Purchase of Care,19/02/2019,3552908-2534659,"1,302.28",A CHARLES THOMAS (CARE) LTD.
Adult and Health Services,Head of Adults,Third Party Payments 4THIRD,470101,Purchase of Care,19/02/2019,3552908-2534660,"2,279.00",A CHARLES THOMAS (CARE) LTD.
Adult and Health Services,Head of Adults,Third Party Payments 4THIRD,470101,Purchase of Care,19/02/2019,3552908-2534661,"2,279.00",A CHARLES THOMAS (CARE) LTD.
Adult and Health Services,Head of Adults,Third Party Payments 4THIRD,470101,Purchase of Care,19/02/2019,3552908-2534662,"2,279.00",A CHARLES THOMAS (CARE) LTD.
Adult and Health Services,Head of Adults,Third Party Payments 4THIRD,470101,Purchase of Care,19/02/2019,3552908-2534663,"2,279.00",A CHARLES THOMAS (CARE) LTD.
Adult and Health Services,Head of Adults,Third Party Payments 4THIRD,470101,Purchase of Care,19/02/2019,3552908-2534664,"2,279.00",A CHARLES THOMAS (CARE) LTD.
Adult and Health Services,Head of Adults,Third Party Payments 4THIRD,470101,Purchase of Care,19/02/2019,3552908-2534665,"2,279.00",A CHARLES THOMAS (CARE) LTD.
Adult and Health Services,Head of Adults,Third Party Payments 4THIRD,470101,Purchase of Care,19/02/2019,3552908-2534666,"2,279.00",A CHARLES THOMAS (CARE) LTD.
Adult and Health Services,Head of Adults,Third Party Payments 4THIRD,470101,Purchase of Care,19/02/2019,3552908-2534667,"2,279.00",A CHARLES THOMAS (CARE) LTD.
Adult and Health Services,Head of Adults,Third Party Payments 4THIRD,470101,Purchase of Care,19/02/2019,3552908-2534668,"2,279.00",A CHARLES THOMAS (CARE) LTD.
Adult and Health Services,Head of Adults,Third Party Payments 4THIRD,470101,Purchase of Care,19/02/2019,3552908-2534669,"2,555.68",A CHARLES THOMAS (CARE) LTD.
Adult and Health Services,Head of Adults,Third Party Payments 4THIRD,470101,Purchase of Care,19/02/2019,3552908-2534670,"2,279.00",A CHARLES THOMAS (CARE) LTD.
Adult and Health Services,Head of Adults,Third Party Payments 4THIRD,470101,Purchase of Care,19/02/2019,3552908-2534671,"2,279.00",A CHARLES THOMAS (CARE) LTD.
Adult and Health Services,Head of Adults,Third Party Payments 4THIRD,470101,Purchase of Care,19/02/2019,3552908-2534672,"2,279.00",A CHARLES THOMAS (CARE) LTD.
Adult and Health Services,Head of Adults,Third Party Payments 4THIRD,470101,Purchase of Care,19/02/2019,3552908-2534673,"2,279.00",A CHARLES THOMAS (CARE) LTD.
Adult and Health Services,Head of Adults,Third Party Payments 4THIRD,470101,Purchase of Care,19/02/2019,3552908-2534674,"2,279.00",A CHARLES THOMAS (CARE) LTD.
Adult and Health Services,Head of Adults,Third Party Payments 4THIRD,470101,Purchase of Care,19/02/2019,3552908-2534675,"2,279.00",A CHARLES THOMAS (CARE) LTD.
Adult and Health Services,Head of Adults,Third Party Payments 4THIRD,470101,Purchase of Care,19/02/2019,3552908-2534676,"2,279.00",A CHARLES THOMAS (CARE) LTD.
Adult and Health Services,Head of Adults,Third Party Payments 4THIRD,470101,Purchase of Care,19/02/2019,3552908-2534677,"2,279.00",A CHARLES THOMAS (CARE) LTD.
Adult and Health Services,Head of Adults,Third Party Payments 4THIRD,470101,Purchase of Care,19/02/2019,3552908-2534678,"2,279.00",A CHARLES THOMAS (CARE) LTD.
Adult and Health Services,Head of Adults,Third Party Payments 4THIRD,470101,Purchase of Care,19/02/2019,3552908-2534679,"2,279.00",A CHARLES THOMAS (CARE) LTD.
Adult and Health Services,Head of Adults,Third Party Payments 4THIRD,470101,Purchase of Care,19/02/2019,3552908-2534680,"2,279.00",A CHARLES THOMAS (CARE) LTD.
Adult and Health Services,Head of Adults,Third Party Payments 4THIRD,470101,Purchase of Care,19/02/2019,3552908-2534681,976.71,A CHARLES THOMAS (CARE) LTD.
Adult and Health Services,Head of Adults,Third Party Payments 4THIRD,470101,Purchase of Care,19/02/2019,3552908-2538751,"1,383.67",A CHARLES THOMAS (CARE) LTD.
Adult and Health Services,Head of Adults,Third Party Payments 4THIRD,470101,Purchase of Care,26/02/2019,3556677-WINTERJAN19-081,"8,462.77",A CHARLES THOMAS (CARE) LTD.
Children and Young Peoples Services,Head of Education and Skills,Transport,230008,Contract Hire,06/02/2019,3547843-51,"1,007.00",A HJ JOBLING T/A CASTLE TAXIS.
Children and Young Peoples Services,Head of Education and Skills,Transport,230006,Contract Hire,06/02/2019,3547844-HA220807,940.50,A MURRAY TRAVEL.
Children and Young Peoples Services,Head of Education and Skills,Transport,230008,Contract Hire,06/02/2019,3547844-A220805,"1,311.00",A MURRAY TRAVEL.
Children and Young Peoples Services,Head of Education and Skills,Transport,230008,Contract Hire,06/02/2019,3547844-EA220801,"2,142.00",A MURRAY TRAVEL.
Children and Young Peoples Services,Head of Education and Skills,Transport,230008,Contract Hire,06/02/2019,3547844-GC015,891.00,A MURRAY TRAVEL.
Children and Young Peoples Services,Head of Education and Skills,Transport,230007,Contract Hire,15/02/2019,3551236-B5/SF,"1,390.00",AABAT TAXIS.
Children and Young Peoples Services,Head of Education and Skills,Transport,230007,Contract Hire,15/02/2019,3551236-C5/SF,886.00,AABAT TAXIS.
Dedicated Schools Grant,DSG High Needs Block,Transport,230010,Contract Hire,14/02/2019,3550819-B16/SX,"1,830.00",AABAT TAXIS.
Children and Young Peoples Services,Head of Education and Skills,Transport,230012,Contract Hire,14/02/2019,3550819-B12/SS,"1,152.00",AABAT TAXIS.
Children and Young Peoples Services,Head of Education and Skills,Transport,230008,Contract Hire,11/02/2019,3549097-C2/SB,720.00,AABAT TAXIS.
Children and Young Peoples Services,Head of Education and Skills,Transport,230008,Contract Hire,14/02/2019,3550819-B1/SA,"2,660.00",AABAT TAXIS.
Children and Young Peoples Services,Head of Education and Skills,Transport,230008,Contract Hire,14/02/2019,3550819-B10/SP,"2,160.00",AABAT TAXIS.
Children and Young Peoples Services,Head of Education and Skills,Transport,230008,Contract Hire,14/02/2019,3550819-B13/ST,"1,121.00",AABAT TAXIS.
Children and Young Peoples Services,Head of Education and Skills,Transport,230008,Contract Hire,14/02/2019,3550819-B6/SH,"1,640.00",AABAT TAXIS.
Children and Young Peoples Services,Head of Education and Skills,Transport,230008,Contract Hire,15/02/2019,3551236-B11/SR,882.00,AABAT TAXIS.
Children and Young Peoples Services,Head of Education and Skills,Transport,230008,Contract Hire,15/02/2019,3551236-B14/SV,"1,620.00",AABAT TAXIS.
Children and Young Peoples Services,Head of Education and Skills,Transport,230008,Contract Hire,15/02/2019,3551236-B3/SC,"1,710.00",AABAT TAXIS.
Children and Young Peoples Services,Head of Education and Skills,Transport,230008,Contract Hire,15/02/2019,3551236-B4/SD,"1,440.00",AABAT TAXIS.
Children and Young Peoples Services,Head of Education and Skills,Transport,230008,Contract Hire,15/02/2019,3551236-B8/SK,"1,357.20",AABAT TAXIS.
Children and Young Peoples Services,Head of Education and Skills,Transport,230008,Contract Hire,15/02/2019,3551236-B9/SL,"1,805.00",AABAT TAXIS.
Children and Young Peoples Services,Head of Education and Skills,Transport,230008,Contract Hire,21/02/2019,3554427-B2/SB,912.00,AABAT TAXIS.
Children and Young Peoples Services,Head of Childrens Social Care,Transport,230005,Contract Hire,12/02/2019,3549411-B46/ZB,900.00,AABAT TAXIS.
Children and Young Peoples Services,Head of Childrens Social Care,Transport,230005,Contract Hire,12/02/2019,3549411-B47/ZC,"3,220.00",AABAT TAXIS.
Children and Young Peoples Services,Head of Childrens Social Care,Transport,230005,Contract Hire,12/02/2019,3549411-B48/ZD,"4,000.00",AABAT TAXIS.
Children and Young Peoples Services,Head of Childrens Social Care,Transport,230005,Contract Hire,12/02/2019,3549411-B49/ZE,"1,900.00",AABAT TAXIS.
Children and Young Peoples Services,Head of Childrens Social Care,Transport,230005,Contract Hire,12/02/2019,3549411-B56/ZX,"1,260.00",AABAT TAXIS.
Adult and Health Services,Head of Adults,Transport,230005,Contract Hire,14/02/2019,3550819-B15/SW,840.00,AABAT TAXIS.
Adult and Health Services,Head of Adults,Transport,230005,Contract Hire,14/02/2019,3550819-B19/BC,600.00,AABAT TAXIS.
Adult and Health Services,Head of Adults,Transport,230005,Contract Hire,14/02/2019,3550819-B7/SJ,892.00,AABAT TAXIS.
Adult and Health Services,Head of Adults,Transport,230005,Contract Hire,15/02/2019,3551236-B18/AC,759.00,AABAT TAXIS.
Adult and Health Services,Head of Adults,Transport,230005,Contract Hire,18/02/2019,3551569-B10/SM,"1,904.60",AABAT TAXIS.
Adult and Health Services,Head of Adults,Supplies and Services,308011,Furniture,08/02/2019,3548639-12095-13059,998.25,AAT (GB) LTD.
Children and Young Peoples Services,Head of Education and Skills,Transport,230012,Contract Hire,06/02/2019,3547846-1/01/19,"1,330.00",ABA TAXIS.
Regeneration and Local Services,Culture & Sport,Supplies and Services,304252,Equipment and Materials,05/02/2019,3547608-90133094,"1,700.18",ABACUS LIGHTING LTD.
Children and Young Peoples Services,Head of Education and Skills,Transport,230012,Contract Hire,06/02/2019,3547847-O405,"2,546.00",ABC & OUSTON CABS.
Children and Young Peoples Services,Head of Education and Skills,Transport,230012,Contract Hire,06/02/2019,3547847-O407,"1,440.00",ABC & OUSTON CABS.
Children and Young Peoples Services,Head of Education and Skills,Transport,230008,Contract Hire,06/02/2019,3547847-O406,"1,919.00",ABC & OUSTON CABS.
Dedicated Schools Grant,DSG Early Years Block,Transfer Payments,510030,School Children,25/02/2019,3555317-12217,660.00,ABIGAIL SPENSLEY (CHILDMINDER).
Children and Young Peoples Services,Head of Education and Skills,Transport,230006,Contract Hire,06/02/2019,3547849-816,"1,424.00",AC TAXIS.
Adult and Health Services,Head of Adults,Supplies and Services,384616,Miscellaneous Expenses,14/02/2019,3550821-50017314-4/2/19,"3,077.05",ACCENT FOUNDATION.
Adult and Health Services,Head of Adults,Supplies and Services,384616,Miscellaneous Expenses,14/02/2019,3550821-50017314-4/2/19A,615.41,ACCENT FOUNDATION.
Adult and Health Services,Head of Adults,Third Party Payments 4THIRD,473101,Purchase of Care,19/02/2019,3553348-1871782D,552.00,ACCEPT CARE LTD.
Adult and Health Services,Head of Adults,Third Party Payments 4THIRD,478101,Purchase of Care,19/02/2019,3553348-1871066H,"3,370.20",ACCEPT CARE LTD.
Adult and Health Services,Head of Adults,Third Party Payments 4THIRD,478101,Purchase of Care,19/02/2019,3553348-1871128H,"4,589.50",ACCEPT CARE LTD.
Adult and Health Services,Head of Adults,Third Party Payments 4THIRD,478101,Purchase of Care,19/02/2019,3553348-1871236H,"3,164.72",ACCEPT CARE LTD.
Adult and Health Services,Head of Adults,Third Party Payments 4THIRD,478101,Purchase of Care,19/02/2019,3553348-1871461H,914.24,ACCEPT CARE LTD.
Adult and Health Services,Head of Adults,Third Party Payments 4THIRD,478101,Purchase of Care,19/02/2019,3553348-1871527H,"5,087.28",ACCEPT CARE LTD.
Adult and Health Services,Head of Adults,Third Party Payments 4THIRD,478101,Purchase of Care,19/02/2019,3553348-1871559H,914.24,ACCEPT CARE LTD.
Adult and Health Services,Head of Adults,Third Party Payments 4THIRD,478101,Purchase of Care,19/02/2019,3553348-1871569H,914.24,ACCEPT CARE LTD.
Adult and Health Services,Head of Adults,Third Party Payments 4THIRD,478101,Purchase of Care,19/02/2019,3553348-1871622H,914.24,ACCEPT CARE LTD.
Adult and Health Services,Head of Adults,Third Party Payments 4THIRD,478101,Purchase of Care,19/02/2019,3553348-1871662H,914.24,ACCEPT CARE LTD.
Adult and Health Services,Head of Adults,Third Party Payments 4THIRD,478101,Purchase of Care,19/02/2019,3553348-1871699H,"4,484.48",ACCEPT CARE LTD.
Adult and Health Services,Head of Adults,Third Party Payments 4THIRD,478101,Purchase of Care,19/02/2019,3553348-1871701H,"1,023.84",ACCEPT CARE LTD.
Adult and Health Services,Head of Adults,Third Party Payments 4THIRD,478101,Purchase of Care,19/02/2019,3553348-1871706H,"3,425.00",ACCEPT CARE LTD.
Adult and Health Services,Head of Adults,Third Party Payments 4THIRD,478101,Purchase of Care,19/02/2019,3553348-1871775H,914.24,ACCEPT CARE LTD.
Adult and Health Services,Head of Adults,Third Party Payments 4THIRD,478101,Purchase of Care,19/02/2019,3553348-1871781H,914.24,ACCEPT CARE LTD.
Adult and Health Services,Head of Adults,Third Party Payments 4THIRD,478101,Purchase of Care,19/02/2019,3553348-1871789H,"3,638.72",ACCEPT CARE LTD.
Adult and Health Services,Head of Adults,Third Party Payments 4THIRD,478101,Purchase of Care,19/02/2019,3553348-1871794H,914.24,ACCEPT CARE LTD.
Adult and Health Services,Head of Adults,Third Party Payments 4THIRD,478101,Purchase of Care,19/02/2019,3553348-1872007H,"6,329.40",ACCEPT CARE LTD.
Adult and Health Services,Head of Adults,Third Party Payments 4THIRD,478101,Purchase of Care,19/02/2019,3553348-1872214H,"5,930.28",ACCEPT CARE LTD.
Adult and Health Services,Head of Adults,Third Party Payments 4THIRD,478101,Purchase of Care,19/02/2019,3553348-1872237H,"2,493.40",ACCEPT CARE LTD.
Adult and Health Services,Head of Adults,Third Party Payments 4THIRD,478101,Purchase of Care,19/02/2019,3553348-1872298H,"7,036.60",ACCEPT CARE LTD.
Adult and Health Services,Head of Adults,Third Party Payments 4THIRD,478101,Purchase of Care,19/02/2019,3553348-1872315H,"6,192.40",ACCEPT CARE LTD.
Adult and Health Services,Head of Adults,Third Party Payments 4THIRD,478101,Purchase of Care,19/02/2019,3553348-1872425H,"2,732.80",ACCEPT CARE LTD.
Adult and Health Services,Head of Adults,Third Party Payments 4THIRD,478101,Purchase of Care,19/02/2019,3553348-1872444H,"5,151.20",ACCEPT CARE LTD.
Adult and Health Services,Head of Adults,Third Party Payments 4THIRD,478101,Purchase of Care,19/02/2019,3553348-1872476H,914.24,ACCEPT CARE LTD.
Adult and Health Services,Head of Adults,Third Party Payments 4THIRD,478101,Purchase of Care,19/02/2019,3553348-1872495H,"4,018.68",ACCEPT CARE LTD.
Adult and Health Services,Head of Adults,Third Party Payments 4THIRD,478101,Purchase of Care,19/02/2019,3553348-1872557H,"2,313.48",ACCEPT CARE LTD.
Adult and Health Services,Head of Adults,Third Party Payments 4THIRD,478101,Purchase of Care,19/02/2019,3553348-1872558H,"3,301.72",ACCEPT CARE LTD.
Adult and Health Services,Head of Adults,Third Party Payments 4THIRD,478101,Purchase of Care,19/02/2019,3553348-1872658H,"6,603.40",ACCEPT CARE LTD.
Adult and Health Services,Head of Adults,Third Party Payments 4THIRD,478101,Purchase of Care,19/02/2019,3553348-1872665H,"8,183.48",ACCEPT CARE LTD.
Adult and Health Services,Head of Adults,Third Party Payments 4THIRD,478101,Purchase of Care,19/02/2019,3553348-1872676H,"3,461.52",ACCEPT CARE LTD.
Adult and Health Services,Head of Adults,Third Party Payments 4THIRD,478101,Purchase of Care,19/02/2019,3553348-1872755H,"3,781.20",ACCEPT CARE LTD.
Adult and Health Services,Head of Adults,Third Party Payments 4THIRD,478101,Purchase of Care,19/02/2019,3553348-1872761H,"6,603.40",ACCEPT CARE LTD.
Adult and Health Services,Head of Adults,Third Party Payments 4THIRD,478101,Purchase of Care,19/02/2019,3553348-1872927H,"1,308.62",ACCEPT CARE LTD.
Adult and Health Services,Head of Adults,Third Party Payments 4THIRD,478101,Purchase of Care,19/02/2019,3553348-1873328H,"3,329.10",ACCEPT CARE LTD.
Adult and Health Services,Head of Adults,Third Party Payments 4THIRD,478101,Purchase of Care,19/02/2019,3553348-1873414H,"1,765.48",ACCEPT CARE LTD.
Adult and Health Services,Head of Adults,Third Party Payments 4THIRD,478101,Purchase of Care,19/02/2019,3553348-1873887H,914.24,ACCEPT CARE LTD.
Adult and Health Services,Head of Adults,Third Party Payments 4THIRD,478101,Purchase of Care,19/02/2019,3553348-1873960H,"5,196.88",ACCEPT CARE LTD.
Adult and Health Services,Head of Adults,Third Party Payments 4THIRD,478101,Purchase of Care,19/02/2019,3553348-1874026H,"1,434.84",ACCEPT CARE LTD.
Adult and Health Services,Head of Adults,Third Party Payments 4THIRD,478101,Purchase of Care,19/02/2019,3553348-1874061H,"6,521.20",ACCEPT CARE LTD.
Adult and Health Services,Head of Adults,Third Party Payments 4THIRD,478101,Purchase of Care,19/02/2019,3553348-1874264H,"9,206.40",ACCEPT CARE LTD.
Adult and Health Services,Head of Adults,Third Party Payments 4THIRD,478101,Purchase of Care,19/02/2019,3553348-1874368H,"1,180.96",ACCEPT CARE LTD.
Adult and Health Services,Head of Adults,Third Party Payments 4THIRD,478101,Purchase of Care,19/02/2019,3553348-1874435H,"3,288.00",ACCEPT CARE LTD.
Adult and Health Services,Head of Adults,Third Party Payments 4THIRD,478101,Purchase of Care,19/02/2019,3553348-1875351H,914.24,ACCEPT CARE LTD.
Adult and Health Services,Head of Adults,Third Party Payments 4THIRD,478101,Purchase of Care,19/02/2019,3553348-1875548H,"1,546.28",ACCEPT CARE LTD.
Adult and Health Services,Head of Adults,Third Party Payments 4THIRD,478101,Purchase of Care,19/02/2019,3553348-1875659H,914.24,ACCEPT CARE LTD.
Adult and Health Services,Head of Adults,Third Party Payments 4THIRD,478101,Purchase of Care,19/02/2019,3553348-1875849H,"1,068.60",ACCEPT CARE LTD.
Adult and Health Services,Head of Adults,Third Party Payments 4THIRD,478101,Purchase of Care,19/02/2019,3553348-1875957H,"3,178.44",ACCEPT CARE LTD.
Adult and Health Services,Head of Adults,Third Party Payments 4THIRD,478101,Purchase of Care,19/02/2019,3553348-1876012H,"1,208.36",ACCEPT CARE LTD.
Adult and Health Services,Head of Adults,Third Party Payments 4THIRD,478101,Purchase of Care,19/02/2019,3553348-1876025H,914.24,ACCEPT CARE LTD.
Adult and Health Services,Head of Adults,Third Party Payments 4THIRD,478101,Purchase of Care,19/02/2019,3553348-1876454H,911.52,ACCEPT CARE LTD.
Adult and Health Services,Head of Adults,Third Party Payments 4THIRD,478101,Purchase of Care,19/02/2019,3553348-1876645H,"1,765.48",ACCEPT CARE LTD.
Adult and Health Services,Head of Adults,Third Party Payments 4THIRD,478101,Purchase of Care,19/02/2019,3553348-1876656H,914.24,ACCEPT CARE LTD.
Adult and Health Services,Head of Adults,Third Party Payments 4THIRD,478101,Purchase of Care,19/02/2019,3553348-1876934H,914.24,ACCEPT CARE LTD.
Adult and Health Services,Head of Adults,Third Party Payments 4THIRD,478101,Purchase of Care,19/02/2019,3553348-1877170H,"7,032.68",ACCEPT CARE LTD.
Adult and Health Services,Head of Adults,Third Party Payments 4THIRD,478151,Purchase of Care,26/02/2019,3556679-775,"1,781.00",ACCEPT CARE LTD.
Adult and Health Services,Head of Adults,Third Party Payments 4THIRD,478151,Purchase of Care,26/02/2019,3556679-776,"2,484.36",ACCEPT CARE LTD.
Regeneration and Local Services,Economic Development and Housing,Premises,108125,Service Repairs and Maintenance,15/02/2019,3551237-ACE/SALVUS2019003,627.29,ACE MOTORCYCLE TRAINING (NE) LTD.
Children and Young Peoples Services,Head of Education and Skills,Transport,230007,Contract Hire,06/02/2019,3547850-344,"1,250.00",ACE TAXIS (WINSTON).
Children and Young Peoples Services,Head of Education and Skills,Transport,230007,Contract Hire,08/02/2019,3548640-347,"1,670.00",ACE TAXIS (WINSTON).
Children and Young Peoples Services,Head of Education and Skills,Transport,230007,Contract Hire,11/02/2019,3549099-346,"1,080.00",ACE TAXIS (WINSTON).
Children and Young Peoples Services,Head of Childrens Social Care,Third Party Payments 4THIRD,425040,Rendered by Voluntary Organisations,19/02/2019,3553265-PIG_1753,"18,940.04",ACORN CARE (NE) LTD.
Children and Young Peoples Services,Head of Childrens Social Care,Third Party Payments 4THIRD,425021,Rendered by Voluntary Organisations,26/02/2019,3556680-1902/01,"12,000.00",ACORN CARE (UK) LTD T/A ACORN RESIDENTIAL SERVICES.
Children and Young Peoples Services,Head of Childrens Social Care,Third Party Payments 4THIRD,425040,Rendered by Voluntary Organisations,19/02/2019,3553266-PIG_1794,"10,703.36",ACORN HOUSE (FOSTERING SERVICES) LTD.
Regeneration and Local Services,Direct Services,Premises,108099,Service Repairs and Maintenance,27/02/2019,3556935-IN5304,"21,512.05",ACROL AIR CONDITIONING CO LTD.
Regeneration and Local Services,Direct Services,Third Party Payments 4THIRD,430100,Rendered by Private Contractors,22/02/2019,3554955-IN5258,500.00,ACROL AIR CONDITIONING CO LTD.
Children and Young Peoples Services,Head of Childrens Social Care,Third Party Payments 4THIRD,486048,Service level agreements E486,11/02/2019,3549101-R81IN2/00008746,"2,238.76",ACTION FOR CHILDREN SERVICES LTD.*
Adult and Health Services,Head of Adults,Third Party Payments 4THIRD,472101,Purchase of Care,19/02/2019,3553605-1871473H,515.10,ACTION ON HEARING LOSS.
Regeneration and Local Services,Economic Development and Housing,Supplies and Services,338094,Services,25/02/2019,3555320-INV02246,500.00,ACUMEN COMMUNITY ENTERPRISE DEVELOPMENT TRUST LTD.
Children and Young Peoples Services,Head of Education and Skills,Supplies and Services,384871,Miscellaneous Expenses,25/02/2019,3555321-0219/01,600.00,ADAM BUSHNELL LTD.
Resources,Legal & Democratic Services,Supplies and Services,340001,Postages E340,15/02/2019,3551238-PSI0083533,"2,979.26",ADARE SEC LTD.
Resources,Legal & Democratic Services,Supplies and Services,332029,Printing Stationery and Gen Off Exps,06/02/2019,3547852-PSI0082749,"4,488.66",ADARE SEC LTD.
Resources,Legal & Democratic Services,Supplies and Services,332029,Printing Stationery and Gen Off Exps,25/02/2019,3555322-PSI0082748,"1,429.56",ADARE SEC LTD.
Children and Young Peoples Services,"Head of Early Help, Inclusion and Vulnerable Children",Premises,108251,Service Repairs and Maintenance,05/02/2019,3547612-39748296-61,680.00,ADT FIRE & SECURITY PLC.
Children and Young Peoples Services,"Head of Early Help, Inclusion and Vulnerable Children",Premises,108251,Service Repairs and Maintenance,28/02/2019,3557308-40223013-61,"1,062.04",ADT FIRE & SECURITY PLC.
Children and Young Peoples Services,"Head of Early Help, Inclusion and Vulnerable Children",Premises,108251,Service Repairs and Maintenance,28/02/2019,3557308-40223014-61,531.02,ADT FIRE & SECURITY PLC.
Regeneration and Local Services,Direct Services,Premises,108099,Service Repairs and Maintenance,08/02/2019,3548641-37047903-61,"1,308.00",ADT FIRE & SECURITY PLC.
Children and Young Peoples Services,"Head of Early Help, Inclusion and Vulnerable Children",Premises,108099,Service Repairs and Maintenance,08/02/2019,3548641-39983057-61,609.40,ADT FIRE & SECURITY PLC.
Adult and Health Services,Public Health,Premises,145009,Cleaning and Domestic Supplies,01/02/2019,3547014-39962107-61,573.98,ADT FIRE & SECURITY PLC.
Children and Young Peoples Services,Head of Education and Skills,Transport,230008,Contract Hire,04/02/2019,3547433-01/19A,"1,520.00",ADVANCE TRAVEL.
Children and Young Peoples Services,Head of Childrens Social Care,Third Party Payments 4THIRD,440038,Other third party payments E440,26/02/2019,3556682-INV-0914,"3,093.09",ADVOCATE RECRUITMENT LTD.
Children and Young Peoples Services,Head of Childrens Social Care,Supplies and Services,384534,Miscellaneous Expenses,05/02/2019,3547613-7250,"2,000.00",AFTER ADOPTION.
Children and Young Peoples Services,Head of Childrens Social Care,Supplies and Services,384534,Miscellaneous Expenses,06/02/2019,3547856-7072,"2,000.00",AFTER ADOPTION.
Children and Young Peoples Services,Head of Childrens Social Care,Third Party Payments 4THIRD,486043,Service level agreements E486,08/02/2019,3548643-7255,"1,630.00",AFTER ADOPTION.
Regeneration and Local Services,Technical Services,Supplies and Services,304221,Equipment and Materials,01/02/2019,3547015-27424251,569.56,AGGREGATE INDUSTRIES UK LTD.
Regeneration and Local Services,Technical Services,Supplies and Services,304221,Equipment and Materials,01/02/2019,3547015-27424252,941.88,AGGREGATE INDUSTRIES UK LTD.
Regeneration and Local Services,Technical Services,Supplies and Services,304221,Equipment and Materials,01/02/2019,3547015-27424256,904.28,AGGREGATE INDUSTRIES UK LTD.
Regeneration and Local Services,Technical Services,Supplies and Services,304221,Equipment and Materials,01/02/2019,3547015-27569224,717.26,AGGREGATE INDUSTRIES UK LTD.
Regeneration and Local Services,Technical Services,Supplies and Services,304221,Equipment and Materials,01/02/2019,3547015-27569227,959.74,AGGREGATE INDUSTRIES UK LTD.
Regeneration and Local Services,Technical Services,Supplies and Services,304221,Equipment and Materials,01/02/2019,3547015-27577282,930.56,AGGREGATE INDUSTRIES UK LTD.
Regeneration and Local Services,Technical Services,Supplies and Services,304221,Equipment and Materials,01/02/2019,3547015-27583344,"1,301.36",AGGREGATE INDUSTRIES UK LTD.
Regeneration and Local Services,Technical Services,Supplies and Services,304221,Equipment and Materials,01/02/2019,3547015-27612127,597.60,AGGREGATE INDUSTRIES UK LTD.
Regeneration and Local Services,Technical Services,Supplies and Services,304221,Equipment and Materials,01/02/2019,3547015-27617918,"1,527.92",AGGREGATE INDUSTRIES UK LTD.
Regeneration and Local Services,Technical Services,Supplies and Services,304221,Equipment and Materials,01/02/2019,3547015-27624142,"2,329.28",AGGREGATE INDUSTRIES UK LTD.
Regeneration and Local Services,Technical Services,Supplies and Services,304221,Equipment and Materials,04/02/2019,3547434-27393369,"2,828.96",AGGREGATE INDUSTRIES UK LTD.
Regeneration and Local Services,Technical Services,Supplies and Services,304221,Equipment and Materials,04/02/2019,3547434-27417772,"1,321.52",AGGREGATE INDUSTRIES UK LTD.
Regeneration and Local Services,Technical Services,Supplies and Services,304221,Equipment and Materials,04/02/2019,3547434-27424250,"1,409.36",AGGREGATE INDUSTRIES UK LTD.
Regeneration and Local Services,Technical Services,Supplies and Services,304221,Equipment and Materials,04/02/2019,3547434-27501355,"1,755.84",AGGREGATE INDUSTRIES UK LTD.
Regeneration and Local Services,Technical Services,Supplies and Services,304221,Equipment and Materials,04/02/2019,3547434-27507575,595.52,AGGREGATE INDUSTRIES UK LTD.
Regeneration and Local Services,Technical Services,Supplies and Services,304221,Equipment and Materials,04/02/2019,3547434-27509211,"1,113.60",AGGREGATE INDUSTRIES UK LTD.
Regeneration and Local Services,Technical Services,Supplies and Services,304221,Equipment and Materials,04/02/2019,3547434-27516415,"1,432.52",AGGREGATE INDUSTRIES UK LTD.
Regeneration and Local Services,Technical Services,Supplies and Services,304221,Equipment and Materials,04/02/2019,3547434-27530028,"1,067.72",AGGREGATE INDUSTRIES UK LTD.
Regeneration and Local Services,Technical Services,Supplies and Services,304221,Equipment and Materials,04/02/2019,3547434-27537610,894.12,AGGREGATE INDUSTRIES UK LTD.
Regeneration and Local Services,Technical Services,Supplies and Services,304221,Equipment and Materials,04/02/2019,3547434-27545741,"2,051.84",AGGREGATE INDUSTRIES UK LTD.
Regeneration and Local Services,Technical Services,Supplies and Services,304221,Equipment and Materials,04/02/2019,3547434-27545742,"1,646.00",AGGREGATE INDUSTRIES UK LTD.
Regeneration and Local Services,Technical Services,Supplies and Services,304221,Equipment and Materials,04/02/2019,3547434-27556481,"1,630.64",AGGREGATE INDUSTRIES UK LTD.
Regeneration and Local Services,Technical Services,Supplies and Services,304221,Equipment and Materials,04/02/2019,3547434-27612123,560.96,AGGREGATE INDUSTRIES UK LTD.
Regeneration and Local Services,Technical Services,Supplies and Services,304221,Equipment and Materials,04/02/2019,3547434-27617927,744.48,AGGREGATE INDUSTRIES UK LTD.
Regeneration and Local Services,Technical Services,Supplies and Services,304221,Equipment and Materials,04/02/2019,3547434-27624141,"1,664.24",AGGREGATE INDUSTRIES UK LTD.
Regeneration and Local Services,Technical Services,Supplies and Services,304221,Equipment and Materials,04/02/2019,3547434-27624151,528.20,AGGREGATE INDUSTRIES UK LTD.
Regeneration and Local Services,Technical Services,Supplies and Services,304221,Equipment and Materials,04/02/2019,3547434-27631111,"1,661.44",AGGREGATE INDUSTRIES UK LTD.
Regeneration and Local Services,Technical Services,Supplies and Services,304221,Equipment and Materials,04/02/2019,3547434-27637986,"1,362.88",AGGREGATE INDUSTRIES UK LTD.
Regeneration and Local Services,Technical Services,Supplies and Services,304221,Equipment and Materials,04/02/2019,3547434-27648813,957.44,AGGREGATE INDUSTRIES UK LTD.
Regeneration and Local Services,Technical Services,Supplies and Services,304221,Equipment and Materials,04/02/2019,3547434-27652479,"1,695.88",AGGREGATE INDUSTRIES UK LTD.
Regeneration and Local Services,Technical Services,Supplies and Services,304221,Equipment and Materials,04/02/2019,3547434-27656650,"1,625.80",AGGREGATE INDUSTRIES UK LTD.
Regeneration and Local Services,Technical Services,Supplies and Services,304221,Equipment and Materials,04/02/2019,3547434-27661885,"1,717.00",AGGREGATE INDUSTRIES UK LTD.
Regeneration and Local Services,Technical Services,Supplies and Services,304221,Equipment and Materials,04/02/2019,3547434-27667109,"1,574.96",AGGREGATE INDUSTRIES UK LTD.
Regeneration and Local Services,Technical Services,Supplies and Services,304221,Equipment and Materials,05/02/2019,3547614-27438841,"1,020.56",AGGREGATE INDUSTRIES UK LTD.
Regeneration and Local Services,Technical Services,Supplies and Services,304221,Equipment and Materials,05/02/2019,3547614-27522852,"1,373.44",AGGREGATE INDUSTRIES UK LTD.
Regeneration and Local Services,Technical Services,Supplies and Services,304221,Equipment and Materials,05/02/2019,3547614-27569230,581.96,AGGREGATE INDUSTRIES UK LTD.
Regeneration and Local Services,Technical Services,Supplies and Services,304221,Equipment and Materials,05/02/2019,3547614-27589151.,"1,194.72",AGGREGATE INDUSTRIES UK LTD.
Regeneration and Local Services,Technical Services,Supplies and Services,304221,Equipment and Materials,05/02/2019,3547614-27612120,"1,446.20",AGGREGATE INDUSTRIES UK LTD.
Regeneration and Local Services,Technical Services,Supplies and Services,304221,Equipment and Materials,05/02/2019,3547614-27673009,751.80,AGGREGATE INDUSTRIES UK LTD.
Regeneration and Local Services,Technical Services,Supplies and Services,304221,Equipment and Materials,06/02/2019,3547857-27562750,"1,066.80",AGGREGATE INDUSTRIES UK LTD.
Regeneration and Local Services,Technical Services,Supplies and Services,304221,Equipment and Materials,06/02/2019,3547857-27645001,"1,286.92",AGGREGATE INDUSTRIES UK LTD.
Regeneration and Local Services,Technical Services,Supplies and Services,304221,Equipment and Materials,06/02/2019,3547857-27645002,689.60,AGGREGATE INDUSTRIES UK LTD.
Regeneration and Local Services,Technical Services,Supplies and Services,304221,Equipment and Materials,06/02/2019,3547857-27647882,700.08,AGGREGATE INDUSTRIES UK LTD.
Regeneration and Local Services,Technical Services,Supplies and Services,304221,Equipment and Materials,06/02/2019,3547857-27647883,696.32,AGGREGATE INDUSTRIES UK LTD.
Regeneration and Local Services,Technical Services,Supplies and Services,304221,Equipment and Materials,06/02/2019,3547857-27674974,"1,424.32",AGGREGATE INDUSTRIES UK LTD.
Regeneration and Local Services,Technical Services,Supplies and Services,304221,Equipment and Materials,06/02/2019,3547857-27674975,"1,160.00",AGGREGATE INDUSTRIES UK LTD.
Regeneration and Local Services,Technical Services,Supplies and Services,304221,Equipment and Materials,07/02/2019,3548284-27680295,"1,980.12",AGGREGATE INDUSTRIES UK LTD.
Regeneration and Local Services,Technical Services,Supplies and Services,304221,Equipment and Materials,07/02/2019,3548284-27680296,727.56,AGGREGATE INDUSTRIES UK LTD.
Regeneration and Local Services,Technical Services,Supplies and Services,304221,Equipment and Materials,07/02/2019,3548284-27680297,"1,155.36",AGGREGATE INDUSTRIES UK LTD.
Regeneration and Local Services,Technical Services,Supplies and Services,304221,Equipment and Materials,07/02/2019,3548284-27680298,577.40,AGGREGATE INDUSTRIES UK LTD.
Regeneration and Local Services,Technical Services,Supplies and Services,304221,Equipment and Materials,07/02/2019,3548284-27680299,"1,068.68",AGGREGATE INDUSTRIES UK LTD.
Regeneration and Local Services,Technical Services,Supplies and Services,304221,Equipment and Materials,08/02/2019,3548644-27686392,"1,715.56",AGGREGATE INDUSTRIES UK LTD.
Regeneration and Local Services,Technical Services,Supplies and Services,304221,Equipment and Materials,08/02/2019,3548644-27686394,"1,161.16",AGGREGATE INDUSTRIES UK LTD.
Regeneration and Local Services,Technical Services,Supplies and Services,304221,Equipment and Materials,11/02/2019,3549105-27642871,"1,361.92",AGGREGATE INDUSTRIES UK LTD.
Regeneration and Local Services,Technical Services,Supplies and Services,304221,Equipment and Materials,11/02/2019,3549105-27692104,"2,078.72",AGGREGATE INDUSTRIES UK LTD.
Regeneration and Local Services,Technical Services,Supplies and Services,304221,Equipment and Materials,11/02/2019,3549105-27692105,"1,189.00",AGGREGATE INDUSTRIES UK LTD.
Regeneration and Local Services,Technical Services,Supplies and Services,304221,Equipment and Materials,11/02/2019,3549105-27692108,533.00,AGGREGATE INDUSTRIES UK LTD.
Regeneration and Local Services,Technical Services,Supplies and Services,304221,Equipment and Materials,11/02/2019,3549105-27698227,"1,840.84",AGGREGATE INDUSTRIES UK LTD.
Regeneration and Local Services,Technical Services,Supplies and Services,304221,Equipment and Materials,11/02/2019,3549105-27698228,"1,178.56",AGGREGATE INDUSTRIES UK LTD.
Regeneration and Local Services,Technical Services,Supplies and Services,304221,Equipment and Materials,13/02/2019,3550397-27706382,"1,260.24",AGGREGATE INDUSTRIES UK LTD.
Regeneration and Local Services,Technical Services,Supplies and Services,304221,Equipment and Materials,13/02/2019,3550397-27706383,"1,171.60",AGGREGATE INDUSTRIES UK LTD.
Regeneration and Local Services,Technical Services,Supplies and Services,304221,Equipment and Materials,13/02/2019,3550397-27706385,"1,106.44",AGGREGATE INDUSTRIES UK LTD.
Regeneration and Local Services,Technical Services,Supplies and Services,304221,Equipment and Materials,13/02/2019,3550397-27706389,"3,707.90",AGGREGATE INDUSTRIES UK LTD.
Regeneration and Local Services,Technical Services,Supplies and Services,304221,Equipment and Materials,14/02/2019,3550824-27673010,571.44,AGGREGATE INDUSTRIES UK LTD.
Regeneration and Local Services,Technical Services,Supplies and Services,304221,Equipment and Materials,14/02/2019,3550824-27712361,"1,933.20",AGGREGATE INDUSTRIES UK LTD.
Regeneration and Local Services,Technical Services,Supplies and Services,304221,Equipment and Materials,15/02/2019,3551241-27712362,"1,168.12",AGGREGATE INDUSTRIES UK LTD.
Regeneration and Local Services,Technical Services,Supplies and Services,304221,Equipment and Materials,15/02/2019,3551241-27712365,608.44,AGGREGATE INDUSTRIES UK LTD.
Regeneration and Local Services,Technical Services,Supplies and Services,304221,Equipment and Materials,15/02/2019,3551241-27718329,"1,803.32",AGGREGATE INDUSTRIES UK LTD.
Regeneration and Local Services,Technical Services,Supplies and Services,304221,Equipment and Materials,15/02/2019,3551241-27718330,"1,126.36",AGGREGATE INDUSTRIES UK LTD.
Regeneration and Local Services,Technical Services,Supplies and Services,304221,Equipment and Materials,15/02/2019,3551241-27718331,"1,107.80",AGGREGATE INDUSTRIES UK LTD.
Regeneration and Local Services,Technical Services,Supplies and Services,304221,Equipment and Materials,15/02/2019,3551241-27718333,952.22,AGGREGATE INDUSTRIES UK LTD.
Regeneration and Local Services,Technical Services,Supplies and Services,304221,Equipment and Materials,15/02/2019,3551241-27718334,642.56,AGGREGATE INDUSTRIES UK LTD.
Regeneration and Local Services,Technical Services,Supplies and Services,304221,Equipment and Materials,18/02/2019,3551574-27724096,"1,481.80",AGGREGATE INDUSTRIES UK LTD.
Regeneration and Local Services,Technical Services,Supplies and Services,304221,Equipment and Materials,18/02/2019,3551574-27724097,588.12,AGGREGATE INDUSTRIES UK LTD.
Regeneration and Local Services,Technical Services,Supplies and Services,304221,Equipment and Materials,18/02/2019,3551574-27724098,586.28,AGGREGATE INDUSTRIES UK LTD.
Regeneration and Local Services,Technical Services,Supplies and Services,304221,Equipment and Materials,18/02/2019,3551574-27724099,864.20,AGGREGATE INDUSTRIES UK LTD.
Regeneration and Local Services,Technical Services,Supplies and Services,304221,Equipment and Materials,18/02/2019,3551574-27724100,581.10,AGGREGATE INDUSTRIES UK LTD.
Regeneration and Local Services,Technical Services,Supplies and Services,304221,Equipment and Materials,18/02/2019,3551574-27729897,"1,657.48",AGGREGATE INDUSTRIES UK LTD.
Regeneration and Local Services,Technical Services,Supplies and Services,304221,Equipment and Materials,18/02/2019,3551574-27729898,"1,172.76",AGGREGATE INDUSTRIES UK LTD.
Regeneration and Local Services,Technical Services,Supplies and Services,304221,Equipment and Materials,18/02/2019,3551574-27729899,619.40,AGGREGATE INDUSTRIES UK LTD.
Regeneration and Local Services,Technical Services,Supplies and Services,304221,Equipment and Materials,18/02/2019,3551574-27729900,701.96,AGGREGATE INDUSTRIES UK LTD.
Regeneration and Local Services,Technical Services,Supplies and Services,304221,Equipment and Materials,18/02/2019,3551574-27729901,539.84,AGGREGATE INDUSTRIES UK LTD.
Regeneration and Local Services,Technical Services,Supplies and Services,304221,Equipment and Materials,18/02/2019,3551574-27729902,594.56,AGGREGATE INDUSTRIES UK LTD.
Regeneration and Local Services,Technical Services,Supplies and Services,304221,Equipment and Materials,18/02/2019,3551574-27729903,742.40,AGGREGATE INDUSTRIES UK LTD.
Regeneration and Local Services,Technical Services,Supplies and Services,304221,Equipment and Materials,19/02/2019,3552670-27736308,580.00,AGGREGATE INDUSTRIES UK LTD.
Regeneration and Local Services,Technical Services,Supplies and Services,304221,Equipment and Materials,19/02/2019,3552670-27736310,"1,846.16",AGGREGATE INDUSTRIES UK LTD.
Regeneration and Local Services,Technical Services,Supplies and Services,304221,Equipment and Materials,20/02/2019,3554303-27737922,"1,701.76",AGGREGATE INDUSTRIES UK LTD.
Regeneration and Local Services,Technical Services,Supplies and Services,304221,Equipment and Materials,20/02/2019,3554303-27737923,"1,183.20",AGGREGATE INDUSTRIES UK LTD.
Regeneration and Local Services,Technical Services,Supplies and Services,304221,Equipment and Materials,20/02/2019,3554303-27737924,"1,076.36",AGGREGATE INDUSTRIES UK LTD.
Regeneration and Local Services,Technical Services,Supplies and Services,304221,Equipment and Materials,20/02/2019,3554303-27737925,"1,842.76",AGGREGATE INDUSTRIES UK LTD.
Regeneration and Local Services,Technical Services,Supplies and Services,304221,Equipment and Materials,20/02/2019,3554303-27737926,584.80,AGGREGATE INDUSTRIES UK LTD.
Regeneration and Local Services,Technical Services,Supplies and Services,304221,Equipment and Materials,20/02/2019,3554303-27737928,572.96,AGGREGATE INDUSTRIES UK LTD.
Regeneration and Local Services,Technical Services,Supplies and Services,304221,Equipment and Materials,21/02/2019,3554433-27744408,"1,466.56",AGGREGATE INDUSTRIES UK LTD.
Regeneration and Local Services,Technical Services,Supplies and Services,304221,Equipment and Materials,21/02/2019,3554433-27744409,521.60,AGGREGATE INDUSTRIES UK LTD.
Regeneration and Local Services,Technical Services,Supplies and Services,304221,Equipment and Materials,21/02/2019,3554433-27744410,956.92,AGGREGATE INDUSTRIES UK LTD.
Regeneration and Local Services,Technical Services,Supplies and Services,304221,Equipment and Materials,22/02/2019,3554960-27751013,"1,643.20",AGGREGATE INDUSTRIES UK LTD.
Regeneration and Local Services,Technical Services,Supplies and Services,304221,Equipment and Materials,22/02/2019,3554960-27751014,"1,150.72",AGGREGATE INDUSTRIES UK LTD.
Regeneration and Local Services,Technical Services,Supplies and Services,304221,Equipment and Materials,22/02/2019,3554960-27751015,693.44,AGGREGATE INDUSTRIES UK LTD.
Regeneration and Local Services,Technical Services,Supplies and Services,304221,Equipment and Materials,22/02/2019,3554960-27751016,836.40,AGGREGATE INDUSTRIES UK LTD.
Regeneration and Local Services,Technical Services,Supplies and Services,304221,Equipment and Materials,22/02/2019,3554960-27751017,"1,367.92",AGGREGATE INDUSTRIES UK LTD.
Regeneration and Local Services,Technical Services,Supplies and Services,304221,Equipment and Materials,22/02/2019,3554960-27751018,568.52,AGGREGATE INDUSTRIES UK LTD.
Regeneration and Local Services,Technical Services,Supplies and Services,304221,Equipment and Materials,22/02/2019,3554960-27751020,"3,421.72",AGGREGATE INDUSTRIES UK LTD.
Regeneration and Local Services,Technical Services,Supplies and Services,304221,Equipment and Materials,25/02/2019,3555325-27757166,"1,654.16",AGGREGATE INDUSTRIES UK LTD.
Regeneration and Local Services,Technical Services,Supplies and Services,304221,Equipment and Materials,25/02/2019,3555325-27757167,"1,182.04",AGGREGATE INDUSTRIES UK LTD.
Regeneration and Local Services,Technical Services,Supplies and Services,304221,Equipment and Materials,25/02/2019,3555325-27757168,"1,083.20",AGGREGATE INDUSTRIES UK LTD.
Regeneration and Local Services,Technical Services,Supplies and Services,304221,Equipment and Materials,25/02/2019,3555325-27757169,535.96,AGGREGATE INDUSTRIES UK LTD.
Regeneration and Local Services,Technical Services,Supplies and Services,304221,Equipment and Materials,25/02/2019,3555325-27757170,"1,443.04",AGGREGATE INDUSTRIES UK LTD.
Regeneration and Local Services,Technical Services,Supplies and Services,304221,Equipment and Materials,25/02/2019,3555325-27757171,581.84,AGGREGATE INDUSTRIES UK LTD.
Regeneration and Local Services,Technical Services,Supplies and Services,304221,Equipment and Materials,25/02/2019,3555325-27757172,604.36,AGGREGATE INDUSTRIES UK LTD.
Regeneration and Local Services,Technical Services,Supplies and Services,304221,Equipment and Materials,25/02/2019,3555325-27757173,906.16,AGGREGATE INDUSTRIES UK LTD.
Regeneration and Local Services,Technical Services,Supplies and Services,304221,Equipment and Materials,26/02/2019,3556683-27245664,940.76,AGGREGATE INDUSTRIES UK LTD.
Regeneration and Local Services,Technical Services,Supplies and Services,304221,Equipment and Materials,26/02/2019,3556683-27652482,"1,871.54",AGGREGATE INDUSTRIES UK LTD.
Regeneration and Local Services,Technical Services,Supplies and Services,304221,Equipment and Materials,26/02/2019,3556683-27656655,"2,430.48",AGGREGATE INDUSTRIES UK LTD.
Regeneration and Local Services,Technical Services,Supplies and Services,304221,Equipment and Materials,26/02/2019,3556683-27661890,603.20,AGGREGATE INDUSTRIES UK LTD.
Regeneration and Local Services,Technical Services,Supplies and Services,304221,Equipment and Materials,26/02/2019,3556683-27763431,"1,535.16",AGGREGATE INDUSTRIES UK LTD.
Regeneration and Local Services,Technical Services,Supplies and Services,304221,Equipment and Materials,27/02/2019,3556938-27767228,570.72,AGGREGATE INDUSTRIES UK LTD.
Regeneration and Local Services,Technical Services,Supplies and Services,304221,Equipment and Materials,27/02/2019,3556938-27767229,668.48,AGGREGATE INDUSTRIES UK LTD.
Regeneration and Local Services,Technical Services,Supplies and Services,304221,Equipment and Materials,27/02/2019,3556938-27767230,655.04,AGGREGATE INDUSTRIES UK LTD.
Regeneration and Local Services,Technical Services,Supplies and Services,304221,Equipment and Materials,27/02/2019,3556938-27767231,765.36,AGGREGATE INDUSTRIES UK LTD.
Regeneration and Local Services,Technical Services,Supplies and Services,304221,Equipment and Materials,27/02/2019,3556938-27767233,"3,720.64",AGGREGATE INDUSTRIES UK LTD.
Regeneration and Local Services,Technical Services,Supplies and Services,304221,Equipment and Materials,27/02/2019,3556938-27767234,540.80,AGGREGATE INDUSTRIES UK LTD.
Regeneration and Local Services,Technical Services,Supplies and Services,304221,Equipment and Materials,28/02/2019,3557310-27763435,"3,403.44",AGGREGATE INDUSTRIES UK LTD.
Regeneration and Local Services,Technical Services,Supplies and Services,304221,Equipment and Materials,28/02/2019,3557310-27772202,"1,178.56",AGGREGATE INDUSTRIES UK LTD.
Regeneration and Local Services,Technical Services,Supplies and Services,304221,Equipment and Materials,28/02/2019,3557310-27772203,670.28,AGGREGATE INDUSTRIES UK LTD.
Regeneration and Local Services,Technical Services,Supplies and Services,304221,Equipment and Materials,28/02/2019,3557310-27772204,596.48,AGGREGATE INDUSTRIES UK LTD.
Regeneration and Local Services,Technical Services,Supplies and Services,304221,Equipment and Materials,28/02/2019,3557310-27772205,581.80,AGGREGATE INDUSTRIES UK LTD.
Resources,Digital and Customer Services,Supplies and Services,332029,Printing Stationery and Gen Off Exps,25/02/2019,3555326-122605,743.00,AGNE LTD T/A ALPHAGRAPHICS.
Adult and Health Services,Head of Adults,Transport,230005,Contract Hire,06/02/2019,3547860-0017,"1,330.00",AIRPORT TAXIS 4U.
Regeneration and Local Services,Transport and Contracted Services,Third Party Payments 4THIRD,440999,Other third party payments E440,27/02/2019,3556939-0900000381-028,"1,195.80",AIRWAVE SOLUTIONS LTD.
Dedicated Schools Grant,DSG High Needs Block,Transport,230010,Contract Hire,08/02/2019,3548645-1-JAN19,"1,440.00",AJT CARS (TAXIS).
Adult and Health Services,Head of Adults,Third Party Payments 4THIRD,474101,Purchase of Care,19/02/2019,3552910-2536195,"1,500.00",AKARI CARE LTD.
Adult and Health Services,Head of Adults,Third Party Payments 4THIRD,474101,Purchase of Care,19/02/2019,3552911-2537925,"2,393.16",AKARI CARE LTD.
Adult and Health Services,Head of Adults,Third Party Payments 4THIRD,474101,Purchase of Care,19/02/2019,3552912-2536223,"2,271.32",AKARI CARE LTD.
Adult and Health Services,Head of Adults,Third Party Payments 4THIRD,474101,Purchase of Care,19/02/2019,3552913-2537334,"2,371.44",AKARI CARE LTD.
Adult and Health Services,Head of Adults,Third Party Payments 4THIRD,474101,Purchase of Care,19/02/2019,3552913-2537341,"2,371.44",AKARI CARE LTD.
Adult and Health Services,Head of Adults,Third Party Payments 4THIRD,474101,Purchase of Care,19/02/2019,3552913-2537343,"2,371.44",AKARI CARE LTD.
Adult and Health Services,Head of Adults,Third Party Payments 4THIRD,474101,Purchase of Care,19/02/2019,3552913-2537353,"2,371.44",AKARI CARE LTD.
Adult and Health Services,Head of Adults,Third Party Payments 4THIRD,474101,Purchase of Care,19/02/2019,3552913-2537355,"2,371.44",AKARI CARE LTD.
Adult and Health Services,Head of Adults,Third Party Payments 4THIRD,474101,Purchase of Care,19/02/2019,3552913-2537359,"1,185.72",AKARI CARE LTD.
Adult and Health Services,Head of Adults,Third Party Payments 4THIRD,474101,Purchase of Care,19/02/2019,3552913-2537363,"1,185.72",AKARI CARE LTD.
Adult and Health Services,Head of Adults,Third Party Payments 4THIRD,474101,Purchase of Care,19/02/2019,3552913-2537369,"2,371.44",AKARI CARE LTD.
Adult and Health Services,Head of Adults,Third Party Payments 4THIRD,474101,Purchase of Care,19/02/2019,3552913-2537371,"1,185.72",AKARI CARE LTD.
Adult and Health Services,Head of Adults,Third Party Payments 4THIRD,474101,Purchase of Care,19/02/2019,3552913-2537377,"2,371.44",AKARI CARE LTD.
Adult and Health Services,Head of Adults,Third Party Payments 4THIRD,474101,Purchase of Care,26/02/2019,3556684-WINTERJAN19-024,"3,235.69",AKARI CARE LTD.
Adult and Health Services,Head of Adults,Third Party Payments 4THIRD,470101,Purchase of Care,19/02/2019,3552909-2535890,"2,279.00",AKARI CARE LTD.
Adult and Health Services,Head of Adults,Third Party Payments 4THIRD,470101,Purchase of Care,19/02/2019,3552909-2535891,"1,465.07",AKARI CARE LTD.
Adult and Health Services,Head of Adults,Third Party Payments 4THIRD,470101,Purchase of Care,19/02/2019,3552909-2535893,651.14,AKARI CARE LTD.
Adult and Health Services,Head of Adults,Third Party Payments 4THIRD,470101,Purchase of Care,19/02/2019,3552909-2535900,"2,279.00",AKARI CARE LTD.
Adult and Health Services,Head of Adults,Third Party Payments 4THIRD,470101,Purchase of Care,19/02/2019,3552909-2535901,"2,279.00",AKARI CARE LTD.
Adult and Health Services,Head of Adults,Third Party Payments 4THIRD,470101,Purchase of Care,19/02/2019,3552909-2535902,569.75,AKARI CARE LTD.
Adult and Health Services,Head of Adults,Third Party Payments 4THIRD,470101,Purchase of Care,19/02/2019,3552909-2535903,"2,279.00",AKARI CARE LTD.
Adult and Health Services,Head of Adults,Third Party Payments 4THIRD,470101,Purchase of Care,19/02/2019,3552909-2535905,"2,279.00",AKARI CARE LTD.
Adult and Health Services,Head of Adults,Third Party Payments 4THIRD,470101,Purchase of Care,19/02/2019,3552909-2535906,"2,279.00",AKARI CARE LTD.
Adult and Health Services,Head of Adults,Third Party Payments 4THIRD,470101,Purchase of Care,19/02/2019,3552909-2535909,"1,627.85",AKARI CARE LTD.
Adult and Health Services,Head of Adults,Third Party Payments 4THIRD,470101,Purchase of Care,19/02/2019,3552909-2535911,"2,279.00",AKARI CARE LTD.
Adult and Health Services,Head of Adults,Third Party Payments 4THIRD,470101,Purchase of Care,19/02/2019,3552909-2535913,"2,279.00",AKARI CARE LTD.
Adult and Health Services,Head of Adults,Third Party Payments 4THIRD,470101,Purchase of Care,19/02/2019,3552909-2535916,"2,279.00",AKARI CARE LTD.
Adult and Health Services,Head of Adults,Third Party Payments 4THIRD,470101,Purchase of Care,19/02/2019,3552909-2535917,"2,279.00",AKARI CARE LTD.
Adult and Health Services,Head of Adults,Third Party Payments 4THIRD,470101,Purchase of Care,19/02/2019,3552909-2535918,"2,279.00",AKARI CARE LTD.
Adult and Health Services,Head of Adults,Third Party Payments 4THIRD,470101,Purchase of Care,19/02/2019,3552909-2535919,"2,279.00",AKARI CARE LTD.
Adult and Health Services,Head of Adults,Third Party Payments 4THIRD,470101,Purchase of Care,19/02/2019,3552909-2535921,"1,220.89",AKARI CARE LTD.
Adult and Health Services,Head of Adults,Third Party Payments 4THIRD,470101,Purchase of Care,19/02/2019,3552909-2535922,"2,279.00",AKARI CARE LTD.
Adult and Health Services,Head of Adults,Third Party Payments 4THIRD,470101,Purchase of Care,19/02/2019,3552909-2535927,"2,279.00",AKARI CARE LTD.
Adult and Health Services,Head of Adults,Third Party Payments 4THIRD,470101,Purchase of Care,19/02/2019,3552909-2535928,"2,279.00",AKARI CARE LTD.
Adult and Health Services,Head of Adults,Third Party Payments 4THIRD,470101,Purchase of Care,19/02/2019,3552909-2535929,"2,279.00",AKARI CARE LTD.
Adult and Health Services,Head of Adults,Third Party Payments 4THIRD,470101,Purchase of Care,19/02/2019,3552909-2535930,"2,279.00",AKARI CARE LTD.
Adult and Health Services,Head of Adults,Third Party Payments 4THIRD,470101,Purchase of Care,19/02/2019,3552909-2535931,"1,139.48",AKARI CARE LTD.
Adult and Health Services,Head of Adults,Third Party Payments 4THIRD,470101,Purchase of Care,19/02/2019,3552909-2535932,"2,279.00",AKARI CARE LTD.
Adult and Health Services,Head of Adults,Third Party Payments 4THIRD,470101,Purchase of Care,19/02/2019,3552909-2535933,"2,279.00",AKARI CARE LTD.
Adult and Health Services,Head of Adults,Third Party Payments 4THIRD,470101,Purchase of Care,19/02/2019,3552910-2536196,"1,162.00",AKARI CARE LTD.
Adult and Health Services,Head of Adults,Third Party Payments 4THIRD,470101,Purchase of Care,19/02/2019,3552913-2537337,"2,359.00",AKARI CARE LTD.
Adult and Health Services,Head of Adults,Third Party Payments 4THIRD,470101,Purchase of Care,19/02/2019,3552913-2537338,"2,279.00",AKARI CARE LTD.
Adult and Health Services,Head of Adults,Third Party Payments 4THIRD,470101,Purchase of Care,19/02/2019,3552913-2537340,"2,279.00",AKARI CARE LTD.
Adult and Health Services,Head of Adults,Third Party Payments 4THIRD,470101,Purchase of Care,19/02/2019,3552913-2537342,"2,359.00",AKARI CARE LTD.
Adult and Health Services,Head of Adults,Third Party Payments 4THIRD,470101,Purchase of Care,19/02/2019,3552913-2537345,"2,279.00",AKARI CARE LTD.
Adult and Health Services,Head of Adults,Third Party Payments 4THIRD,470101,Purchase of Care,19/02/2019,3552913-2537348,"2,279.00",AKARI CARE LTD.
Adult and Health Services,Head of Adults,Third Party Payments 4THIRD,470101,Purchase of Care,19/02/2019,3552913-2537349,"2,279.00",AKARI CARE LTD.
Adult and Health Services,Head of Adults,Third Party Payments 4THIRD,470101,Purchase of Care,19/02/2019,3552913-2537357,"2,279.00",AKARI CARE LTD.
Adult and Health Services,Head of Adults,Third Party Payments 4THIRD,470101,Purchase of Care,19/02/2019,3552913-2537358,"2,279.00",AKARI CARE LTD.
Adult and Health Services,Head of Adults,Third Party Payments 4THIRD,470101,Purchase of Care,19/02/2019,3552913-2537379,"2,279.00",AKARI CARE LTD.
Adult and Health Services,Head of Adults,Third Party Payments 4THIRD,470101,Purchase of Care,19/02/2019,3552913-2537380,"2,279.00",AKARI CARE LTD.
Adult and Health Services,Head of Adults,Third Party Payments 4THIRD,470101,Purchase of Care,19/02/2019,3552913-2537381,"2,279.00",AKARI CARE LTD.
Adult and Health Services,Head of Adults,Third Party Payments 4THIRD,470101,Purchase of Care,19/02/2019,3552913-2538578,"1,709.25",AKARI CARE LTD.
Adult and Health Services,Head of Adults,Third Party Payments 4THIRD,470101,Purchase of Care,26/02/2019,3556684-WINTERJAN19-022,"4,074.66",AKARI CARE LTD.
Adult and Health Services,Head of Adults,Third Party Payments 4THIRD,470101,Purchase of Care,26/02/2019,3556685-WINTERJAN19-147,"6,895.59",AKARI CARE LTD.
Adult and Health Services,Head of Adults,Third Party Payments 4THIRD,471101,Purchase of Care,19/02/2019,3552909-2535892,"2,363.08",AKARI CARE LTD.
Adult and Health Services,Head of Adults,Third Party Payments 4THIRD,471101,Purchase of Care,19/02/2019,3552909-2535894,"2,363.08",AKARI CARE LTD.
Adult and Health Services,Head of Adults,Third Party Payments 4THIRD,471101,Purchase of Care,19/02/2019,3552909-2535895,"2,363.08",AKARI CARE LTD.
Adult and Health Services,Head of Adults,Third Party Payments 4THIRD,471101,Purchase of Care,19/02/2019,3552909-2535896,"2,363.08",AKARI CARE LTD.
Adult and Health Services,Head of Adults,Third Party Payments 4THIRD,471101,Purchase of Care,19/02/2019,3552909-2535897,"2,363.08",AKARI CARE LTD.
Adult and Health Services,Head of Adults,Third Party Payments 4THIRD,471101,Purchase of Care,19/02/2019,3552909-2535899,"2,363.08",AKARI CARE LTD.
Adult and Health Services,Head of Adults,Third Party Payments 4THIRD,471101,Purchase of Care,19/02/2019,3552909-2535904,"2,363.08",AKARI CARE LTD.
Adult and Health Services,Head of Adults,Third Party Payments 4THIRD,471101,Purchase of Care,19/02/2019,3552909-2535907,"2,363.08",AKARI CARE LTD.
Adult and Health Services,Head of Adults,Third Party Payments 4THIRD,471101,Purchase of Care,19/02/2019,3552909-2535908,"2,363.08",AKARI CARE LTD.
Adult and Health Services,Head of Adults,Third Party Payments 4THIRD,471101,Purchase of Care,19/02/2019,3552909-2535910,"2,363.08",AKARI CARE LTD.
Adult and Health Services,Head of Adults,Third Party Payments 4THIRD,471101,Purchase of Care,19/02/2019,3552909-2535912,"2,363.08",AKARI CARE LTD.
Adult and Health Services,Head of Adults,Third Party Payments 4THIRD,471101,Purchase of Care,19/02/2019,3552909-2535914,"2,025.49",AKARI CARE LTD.
Adult and Health Services,Head of Adults,Third Party Payments 4THIRD,471101,Purchase of Care,19/02/2019,3552909-2535915,"2,363.08",AKARI CARE LTD.
Adult and Health Services,Head of Adults,Third Party Payments 4THIRD,471101,Purchase of Care,19/02/2019,3552909-2535920,"2,363.08",AKARI CARE LTD.
Adult and Health Services,Head of Adults,Third Party Payments 4THIRD,471101,Purchase of Care,19/02/2019,3552909-2535923,"2,363.08",AKARI CARE LTD.
Adult and Health Services,Head of Adults,Third Party Payments 4THIRD,471101,Purchase of Care,19/02/2019,3552909-2535924,"2,363.08",AKARI CARE LTD.
Adult and Health Services,Head of Adults,Third Party Payments 4THIRD,471101,Purchase of Care,19/02/2019,3552909-2535925,"2,363.08",AKARI CARE LTD.
Adult and Health Services,Head of Adults,Third Party Payments 4THIRD,471101,Purchase of Care,19/02/2019,3552909-2535926,"2,363.08",AKARI CARE LTD.
Adult and Health Services,Head of Adults,Third Party Payments 4THIRD,471101,Purchase of Care,19/02/2019,3552913-2537336,"2,363.08",AKARI CARE LTD.
Adult and Health Services,Head of Adults,Third Party Payments 4THIRD,471101,Purchase of Care,19/02/2019,3552913-2537346,"2,363.08",AKARI CARE LTD.
Adult and Health Services,Head of Adults,Third Party Payments 4THIRD,471101,Purchase of Care,19/02/2019,3552913-2537347,"2,363.08",AKARI CARE LTD.
Adult and Health Services,Head of Adults,Third Party Payments 4THIRD,471101,Purchase of Care,19/02/2019,3552913-2537350,"2,355.82",AKARI CARE LTD.
Adult and Health Services,Head of Adults,Third Party Payments 4THIRD,471101,Purchase of Care,19/02/2019,3552913-2537351,"1,773.62",AKARI CARE LTD.
Adult and Health Services,Head of Adults,Third Party Payments 4THIRD,471101,Purchase of Care,19/02/2019,3552913-2537352,"2,363.08",AKARI CARE LTD.
Adult and Health Services,Head of Adults,Third Party Payments 4THIRD,471101,Purchase of Care,19/02/2019,3552913-2537361,"2,363.08",AKARI CARE LTD.
Adult and Health Services,Head of Adults,Third Party Payments 4THIRD,471101,Purchase of Care,19/02/2019,3552913-2537362,"2,363.08",AKARI CARE LTD.
Adult and Health Services,Head of Adults,Third Party Payments 4THIRD,471101,Purchase of Care,19/02/2019,3552913-2537365,"2,363.08",AKARI CARE LTD.
Adult and Health Services,Head of Adults,Third Party Payments 4THIRD,471101,Purchase of Care,19/02/2019,3552913-2537366,"2,363.08",AKARI CARE LTD.
Adult and Health Services,Head of Adults,Third Party Payments 4THIRD,471101,Purchase of Care,19/02/2019,3552913-2537367,"2,363.08",AKARI CARE LTD.
Adult and Health Services,Head of Adults,Third Party Payments 4THIRD,471101,Purchase of Care,19/02/2019,3552913-2537368,"2,363.08",AKARI CARE LTD.
Adult and Health Services,Head of Adults,Third Party Payments 4THIRD,471101,Purchase of Care,19/02/2019,3552913-2537373,"2,363.08",AKARI CARE LTD.
Adult and Health Services,Head of Adults,Third Party Payments 4THIRD,471101,Purchase of Care,19/02/2019,3552913-2537374,"2,363.08",AKARI CARE LTD.
Adult and Health Services,Head of Adults,Third Party Payments 4THIRD,471101,Purchase of Care,19/02/2019,3552913-2537375,"2,363.08",AKARI CARE LTD.
Adult and Health Services,Head of Adults,Third Party Payments 4THIRD,471101,Purchase of Care,19/02/2019,3552913-2537376,"2,363.08",AKARI CARE LTD.
Adult and Health Services,Head of Adults,Third Party Payments 4THIRD,471101,Purchase of Care,19/02/2019,3552913-2537382,"2,363.08",AKARI CARE LTD.
Adult and Health Services,Head of Adults,Third Party Payments 4THIRD,471101,Purchase of Care,26/02/2019,3556684-WINTERJAN19-023,"5,199.99",AKARI CARE LTD.
Adult and Health Services,Head of Adults,Third Party Payments 4THIRD,471101,Purchase of Care,26/02/2019,3556685-WINTERJAN19-148,"5,849.99",AKARI CARE LTD.
Children and Young Peoples Services,Head of Education and Skills,Transport,230008,Contract Hire,06/02/2019,3547861-38895872,"1,517.50",ALAN SOUTHERN T/A ALANS TAXIS PELTON FELL.
Children and Young Peoples Services,Head of Education and Skills,Transport,230007,Contract Hire,25/02/2019,3555327-189,"1,824.00",ALANS TAXIS BARNARD CASTLE.
Children and Young Peoples Services,Head of Education and Skills,Transport,230007,Contract Hire,25/02/2019,3555327-190,"1,615.00",ALANS TAXIS BARNARD CASTLE.
Children and Young Peoples Services,Head of Education and Skills,Transport,230007,Contract Hire,25/02/2019,3555327-191,"1,672.00",ALANS TAXIS BARNARD CASTLE.
Transformation and Partnerships,Partnerships & Community Engagement Div.,Supplies and Services,304259,Equipment and Materials,25/02/2019,3555328-164581,"3,627.23",ALBANY OFFICE EQUIPMENT (WHOLESALE) LTD.
Regeneration and Local Services,Direct Services,Supplies and Services,308011,Furniture,25/02/2019,3555328-164580,"2,352.00",ALBANY OFFICE EQUIPMENT (WHOLESALE) LTD.
Adult and Health Services,Head of Adults,Third Party Payments 4THIRD,474101,Purchase of Care,19/02/2019,3552914-2538112,"3,152.00",ALDBOURNE NURSING HOME LTD.
Regeneration and Local Services,Culture & Sport,Supplies and Services,338047,Services,07/02/2019,3548285-17-1816,776.00,ALEX SNEATH.
Regeneration and Local Services,Technical Services,Supplies and Services,304221,Equipment and Materials,28/02/2019,3557313-956,540.00,ALL SEASONS ARBORISTS.
Regeneration and Local Services,Culture & Sport,Third Party Payments 4THIRD,430100,Rendered by Private Contractors,26/02/2019,3556686-980,"4,600.00",ALL SEASONS ARBORISTS.
Adult and Health Services,Head of Adults,Third Party Payments 4THIRD,474101,Purchase of Care,19/02/2019,3552915-2535775,"2,371.44",ALLIANCE CARE (TRENDLEWOOD) LTD.
Adult and Health Services,Head of Adults,Third Party Payments 4THIRD,474101,Purchase of Care,19/02/2019,3552915-2535794,"2,371.44",ALLIANCE CARE (TRENDLEWOOD) LTD.
Adult and Health Services,Head of Adults,Third Party Payments 4THIRD,474101,Purchase of Care,19/02/2019,3552915-2535796,"2,371.44",ALLIANCE CARE (TRENDLEWOOD) LTD.
Adult and Health Services,Head of Adults,Third Party Payments 4THIRD,474101,Purchase of Care,19/02/2019,3552915-2535801,"2,371.44",ALLIANCE CARE (TRENDLEWOOD) LTD.
Adult and Health Services,Head of Adults,Third Party Payments 4THIRD,474101,Purchase of Care,19/02/2019,3552915-2535810,"2,371.44",ALLIANCE CARE (TRENDLEWOOD) LTD.
Adult and Health Services,Head of Adults,Third Party Payments 4THIRD,474101,Purchase of Care,19/02/2019,3552915-2538330,"8,723.51",ALLIANCE CARE (TRENDLEWOOD) LTD.
Adult and Health Services,Head of Adults,Third Party Payments 4THIRD,474101,Purchase of Care,26/02/2019,3556688-WINTERJAN19-140,"3,852.30",ALLIANCE CARE (TRENDLEWOOD) LTD.
Adult and Health Services,Head of Adults,Third Party Payments 4THIRD,470102,Purchase of Care,19/02/2019,3552915-2538436,"1,709.25",ALLIANCE CARE (TRENDLEWOOD) LTD.
Adult and Health Services,Head of Adults,Third Party Payments 4THIRD,470101,Purchase of Care,19/02/2019,3552915-2535753,"2,555.68",ALLIANCE CARE (TRENDLEWOOD) LTD.
Adult and Health Services,Head of Adults,Third Party Payments 4THIRD,470101,Purchase of Care,19/02/2019,3552915-2535758,"2,279.00",ALLIANCE CARE (TRENDLEWOOD) LTD.
Adult and Health Services,Head of Adults,Third Party Payments 4THIRD,470101,Purchase of Care,19/02/2019,3552915-2535760,"2,279.00",ALLIANCE CARE (TRENDLEWOOD) LTD.
Adult and Health Services,Head of Adults,Third Party Payments 4THIRD,470101,Purchase of Care,19/02/2019,3552915-2535764,"2,279.00",ALLIANCE CARE (TRENDLEWOOD) LTD.
Adult and Health Services,Head of Adults,Third Party Payments 4THIRD,470101,Purchase of Care,19/02/2019,3552915-2535766,"2,279.00",ALLIANCE CARE (TRENDLEWOOD) LTD.
Adult and Health Services,Head of Adults,Third Party Payments 4THIRD,470101,Purchase of Care,19/02/2019,3552915-2535772,"2,279.00",ALLIANCE CARE (TRENDLEWOOD) LTD.
Adult and Health Services,Head of Adults,Third Party Payments 4THIRD,470101,Purchase of Care,19/02/2019,3552915-2535773,"4,232.43",ALLIANCE CARE (TRENDLEWOOD) LTD.
Adult and Health Services,Head of Adults,Third Party Payments 4THIRD,470101,Purchase of Care,19/02/2019,3552915-2535777,"2,279.00",ALLIANCE CARE (TRENDLEWOOD) LTD.
Adult and Health Services,Head of Adults,Third Party Payments 4THIRD,470101,Purchase of Care,19/02/2019,3552915-2535778,"2,279.00",ALLIANCE CARE (TRENDLEWOOD) LTD.
Adult and Health Services,Head of Adults,Third Party Payments 4THIRD,470101,Purchase of Care,19/02/2019,3552915-2535779,"2,279.00",ALLIANCE CARE (TRENDLEWOOD) LTD.
Adult and Health Services,Head of Adults,Third Party Payments 4THIRD,470101,Purchase of Care,19/02/2019,3552915-2535787,"2,279.00",ALLIANCE CARE (TRENDLEWOOD) LTD.
Adult and Health Services,Head of Adults,Third Party Payments 4THIRD,470101,Purchase of Care,19/02/2019,3552915-2535788,"2,279.00",ALLIANCE CARE (TRENDLEWOOD) LTD.
Adult and Health Services,Head of Adults,Third Party Payments 4THIRD,470101,Purchase of Care,19/02/2019,3552915-2535789,"2,279.00",ALLIANCE CARE (TRENDLEWOOD) LTD.
Adult and Health Services,Head of Adults,Third Party Payments 4THIRD,470101,Purchase of Care,19/02/2019,3552915-2535791,"2,279.00",ALLIANCE CARE (TRENDLEWOOD) LTD.
Adult and Health Services,Head of Adults,Third Party Payments 4THIRD,470101,Purchase of Care,19/02/2019,3552915-2535793,"2,279.00",ALLIANCE CARE (TRENDLEWOOD) LTD.
Adult and Health Services,Head of Adults,Third Party Payments 4THIRD,470101,Purchase of Care,19/02/2019,3552915-2535798,"1,139.52",ALLIANCE CARE (TRENDLEWOOD) LTD.
Adult and Health Services,Head of Adults,Third Party Payments 4THIRD,470101,Purchase of Care,19/02/2019,3552915-2535806,"2,555.68",ALLIANCE CARE (TRENDLEWOOD) LTD.
Adult and Health Services,Head of Adults,Third Party Payments 4THIRD,470101,Purchase of Care,19/02/2019,3552915-2535807,"2,279.00",ALLIANCE CARE (TRENDLEWOOD) LTD.
Adult and Health Services,Head of Adults,Third Party Payments 4THIRD,470101,Purchase of Care,19/02/2019,3552915-2535808,"2,279.00",ALLIANCE CARE (TRENDLEWOOD) LTD.
Adult and Health Services,Head of Adults,Third Party Payments 4THIRD,470101,Purchase of Care,19/02/2019,3552915-2535815,"2,555.68",ALLIANCE CARE (TRENDLEWOOD) LTD.
Adult and Health Services,Head of Adults,Third Party Payments 4THIRD,470101,Purchase of Care,19/02/2019,3552915-2538437,"1,383.67",ALLIANCE CARE (TRENDLEWOOD) LTD.
Adult and Health Services,Head of Adults,Third Party Payments 4THIRD,470101,Purchase of Care,19/02/2019,3552915-2538438,"1,383.67",ALLIANCE CARE (TRENDLEWOOD) LTD.
Adult and Health Services,Head of Adults,Third Party Payments 4THIRD,470101,Purchase of Care,19/02/2019,3552915-2538443,"1,139.50",ALLIANCE CARE (TRENDLEWOOD) LTD.
Adult and Health Services,Head of Adults,Third Party Payments 4THIRD,470101,Purchase of Care,19/02/2019,3552915-2538689,602.30,ALLIANCE CARE (TRENDLEWOOD) LTD.
Adult and Health Services,Head of Adults,Third Party Payments 4THIRD,470101,Purchase of Care,26/02/2019,3556688-WINTERJAN19-138,"6,620.20",ALLIANCE CARE (TRENDLEWOOD) LTD.
Adult and Health Services,Head of Adults,Third Party Payments 4THIRD,471101,Purchase of Care,19/02/2019,3552915-2535751,"2,363.08",ALLIANCE CARE (TRENDLEWOOD) LTD.
Adult and Health Services,Head of Adults,Third Party Payments 4THIRD,471101,Purchase of Care,19/02/2019,3552915-2535762,"2,363.08",ALLIANCE CARE (TRENDLEWOOD) LTD.
Adult and Health Services,Head of Adults,Third Party Payments 4THIRD,471101,Purchase of Care,19/02/2019,3552915-2535765,"2,363.08",ALLIANCE CARE (TRENDLEWOOD) LTD.
Adult and Health Services,Head of Adults,Third Party Payments 4THIRD,471101,Purchase of Care,19/02/2019,3552915-2535767,"2,363.08",ALLIANCE CARE (TRENDLEWOOD) LTD.
Adult and Health Services,Head of Adults,Third Party Payments 4THIRD,471101,Purchase of Care,19/02/2019,3552915-2535780,"2,363.08",ALLIANCE CARE (TRENDLEWOOD) LTD.
Adult and Health Services,Head of Adults,Third Party Payments 4THIRD,471101,Purchase of Care,19/02/2019,3552915-2535790,"1,181.56",ALLIANCE CARE (TRENDLEWOOD) LTD.
Adult and Health Services,Head of Adults,Third Party Payments 4THIRD,471101,Purchase of Care,19/02/2019,3552915-2535792,"2,363.08",ALLIANCE CARE (TRENDLEWOOD) LTD.
Adult and Health Services,Head of Adults,Third Party Payments 4THIRD,471101,Purchase of Care,19/02/2019,3552915-2535800,"2,363.08",ALLIANCE CARE (TRENDLEWOOD) LTD.
Adult and Health Services,Head of Adults,Third Party Payments 4THIRD,471101,Purchase of Care,19/02/2019,3552915-2535803,"2,363.08",ALLIANCE CARE (TRENDLEWOOD) LTD.
Adult and Health Services,Head of Adults,Third Party Payments 4THIRD,471101,Purchase of Care,19/02/2019,3552915-2535805,"2,363.08",ALLIANCE CARE (TRENDLEWOOD) LTD.
Adult and Health Services,Head of Adults,Third Party Payments 4THIRD,471101,Purchase of Care,19/02/2019,3552915-2535809,"2,363.08",ALLIANCE CARE (TRENDLEWOOD) LTD.
Adult and Health Services,Head of Adults,Third Party Payments 4THIRD,471101,Purchase of Care,19/02/2019,3552915-2535812,"2,363.08",ALLIANCE CARE (TRENDLEWOOD) LTD.
Adult and Health Services,Head of Adults,Third Party Payments 4THIRD,471101,Purchase of Care,19/02/2019,3552915-2535813,"2,363.08",ALLIANCE CARE (TRENDLEWOOD) LTD.
Adult and Health Services,Head of Adults,Third Party Payments 4THIRD,471101,Purchase of Care,26/02/2019,3556688-WINTERJAN19-139,"4,224.99",ALLIANCE CARE (TRENDLEWOOD) LTD.
Children and Young Peoples Services,Head of Education and Skills,Transport,230007,Contract Hire,14/02/2019,3550831-DCC027-3030,635.16,ALSTON ROAD GARAGE.
Children and Young Peoples Services,Head of Education and Skills,Transport,230007,Contract Hire,14/02/2019,3550831-DCC027-3035,904.40,ALSTON ROAD GARAGE.
Children and Young Peoples Services,Head of Education and Skills,Transport,230007,Contract Hire,14/02/2019,3550831-DCC027-3037,"1,413.00",ALSTON ROAD GARAGE.
Children and Young Peoples Services,Head of Education and Skills,Transport,230007,Contract Hire,14/02/2019,3550831-DCC027-3039,"1,594.88",ALSTON ROAD GARAGE.
Adult and Health Services,Commissioning inc Supporting People,Third Party Payments 4THIRD,479101,Purchase of Care,08/02/2019,3548648-PSI168330,"44,998.00",ALZHEIMERS SOCIETY.
Regeneration and Local Services,Direct Services,Supplies and Services,304221,Equipment and Materials,22/02/2019,3554963-17050,561.11,AMBIC LTD.
Regeneration and Local Services,Direct Services,Third Party Payments 4THIRD,430100,Rendered by Private Contractors,06/02/2019,3547863-17034,"2,825.00",AMBIC LTD.
Regeneration and Local Services,Direct Services,Premises,120037,Energy Costs,14/02/2019,3550834-362470,947.09,AMP CLEAN ENERGY.
Regeneration and Local Services,Direct Services,Premises,120037,Energy Costs,21/02/2019,3554436-363195,893.56,AMP CLEAN ENERGY.
Adult and Health Services,Head of Adults,Third Party Payments 4THIRD,470101,Purchase of Care,19/02/2019,3552916-2537113,"2,236.00",ANCHOR CAREHOMES LTD.
Adult and Health Services,Head of Adults,Third Party Payments 4THIRD,470101,Purchase of Care,19/02/2019,3552917-2532448,"2,236.00",ANCHOR CAREHOMES LTD.
Adult and Health Services,Head of Adults,Third Party Payments 4THIRD,470101,Purchase of Care,19/02/2019,3552917-2532449,"2,236.00",ANCHOR CAREHOMES LTD.
Adult and Health Services,Head of Adults,Third Party Payments 4THIRD,470101,Purchase of Care,19/02/2019,3552917-2537112,"2,236.00",ANCHOR CAREHOMES LTD.
Adult and Health Services,Head of Adults,Third Party Payments 4THIRD,470101,Purchase of Care,19/02/2019,3552918-2535282,"2,100.00",ANCHOR TRUST.
Adult and Health Services,Head of Adults,Third Party Payments 4THIRD,470101,Purchase of Care,19/02/2019,3552918-2535283,"2,100.00",ANCHOR TRUST.
Adult and Health Services,Head of Adults,Third Party Payments 4THIRD,470101,Purchase of Care,19/02/2019,3552918-2535284,"2,100.00",ANCHOR TRUST.
Adult and Health Services,Head of Adults,Third Party Payments 4THIRD,470101,Purchase of Care,19/02/2019,3552919-2538209,"2,324.00",ANCHOR TRUST.
Adult and Health Services,Head of Adults,Third Party Payments 4THIRD,470101,Purchase of Care,19/02/2019,3552920-2485927,"2,105.71",ANCHOR TRUST.
Adult and Health Services,Head of Adults,Third Party Payments 4THIRD,470101,Purchase of Care,19/02/2019,3552920-2489794,"1,030.00",ANCHOR TRUST.
Adult and Health Services,Head of Adults,Third Party Payments 4THIRD,471101,Purchase of Care,19/02/2019,3552921-2535543,"1,943.48",ANDREW PASS.
Children and Young Peoples Services,Head of Education and Skills,Transport,230008,Contract Hire,06/02/2019,3547865-4392-JAN,"1,611.00",ANDREW PYGALL T/A ARP TAXIS.
Children and Young Peoples Services,Head of Education and Skills,Transport,230008,Contract Hire,14/02/2019,3550835-0070,"1,620.00",ANDREW SIMPSON T/A ANDY`S CABS.
Regeneration and Local Services,Direct Services,Third Party Payments 4THIRD,430115,Rendered by Private Contractors,25/02/2019,3555336-2017426,"2,648.64",ANDREW THOMPSON...
Children and Young Peoples Services,Head of Education and Skills,Transport,230008,Contract Hire,07/02/2019,3548291-155,"2,640.00",ANDY CABS.
Children and Young Peoples Services,"Head of Early Help, Inclusion and Vulnerable Children",Supplies and Services,304259,Equipment and Materials,18/02/2019,3551579-4756078,525.77,ANGEL SPRINGS LTD T/A WATERLOGIC.*
Children and Young Peoples Services,"Head of Early Help, Inclusion and Vulnerable Children",Supplies and Services,304259,Equipment and Materials,19/02/2019,3552674-4703750,534.18,ANGEL SPRINGS LTD T/A WATERLOGIC.*
Regeneration and Local Services,Economic Development and Housing,Supplies and Services,304259,Equipment and Materials,25/02/2019,3555337-4770310,873.30,ANGEL SPRINGS LTD T/A WATERLOGIC.*
Regeneration and Local Services,Economic Development and Housing,Supplies and Services,304259,Equipment and Materials,25/02/2019,3555337-4770311,731.04,ANGEL SPRINGS LTD T/A WATERLOGIC.*
Dedicated Schools Grant,DSG Early Years Block,Transfer Payments,510030,School Children,25/02/2019,3555338-12222,"1,152.52",ANGELA CHROSTOWSKI (CHILDMINDER).
Dedicated Schools Grant,DSG Early Years Block,Transfer Payments,510030,School Children,25/02/2019,3555341-12226,825.00,ANGELA PROCTOR..
Children and Young Peoples Services,Head of Education and Skills,Transport,230009,Contract Hire,15/02/2019,3551248-1/19,646.00,ANGIE`S TAXIS.
Children and Young Peoples Services,Head of Education and Skills,Transport,230006,Contract Hire,21/02/2019,3554439-1/19-F773,750.00,ANGIE`S TAXIS.
Children and Young Peoples Services,Head of Childrens Social Care,Supplies and Services,384534,Miscellaneous Expenses,25/02/2019,3555344-2018,"1,023.00",ANGUS FOODS LTD T/A THE AMBRY.
Adult and Health Services,Commissioning inc Supporting People,Premises,145050,Cleaning and Domestic Supplies,11/02/2019,3549110-71283,"8,403.12",ANLABY OFFICE CLEANING SERVICES LTD.
Adult and Health Services,Commissioning inc Supporting People,Premises,145050,Cleaning and Domestic Supplies,25/02/2019,3555345-71635,"8,133.84",ANLABY OFFICE CLEANING SERVICES LTD.
Dedicated Schools Grant,DSG Early Years Block,Transfer Payments,510030,School Children,25/02/2019,3555346-12231,794.06,ANN GRAY (CHILDMINDER).
Dedicated Schools Grant,DSG Early Years Block,Transfer Payments,510030,School Children,25/02/2019,3555347-12229,635.25,ANN ROBSON.
Dedicated Schools Grant,DSG Early Years Block,Transfer Payments,510030,School Children,25/02/2019,3555349-12232,794.06,ANNEMARIE WARNER (CHILDMINDER).
Dedicated Schools Grant,DSG Early Years Block,Transfer Payments,510032,School Children,25/02/2019,3555350-12059,631.12,ANNMARIE HURTON.
Children and Young Peoples Services,Head of Education and Skills,Transport,230007,Contract Hire,07/02/2019,3548295-0553755,"1,872.00",ANTHONY HOBSON (TAXI).
Children and Young Peoples Services,Head of Education and Skills,Transport,230007,Contract Hire,07/02/2019,3548295-0553757,"1,560.00",ANTHONY HOBSON (TAXI).
Adult and Health Services,Commissioning inc Supporting People,Supplies and Services,338089,Services,18/02/2019,3551580-7033,"3,250.00",APT TRAINING & CONSULTANCY LTD.
Regeneration and Local Services,Technical Services,Construction work A908,908105,Construction work,01/02/2019,3547026-31424,"1,770.00",AQUAJET DRAIN CLEANING LTD.
Regeneration and Local Services,Technical Services,Supplies and Services,338027,Services,20/02/2019,3554306-31530,"1,320.00",AQUAJET DRAIN CLEANING LTD.
Regeneration and Local Services,Technical Services,Third Party Payments 4THIRD,460351,Contract Payments,20/02/2019,3554306-31355,"1,020.00",AQUAJET DRAIN CLEANING LTD.
Children and Young Peoples Services,Head of Childrens Social Care,Supplies and Services,338044,Services,21/02/2019,3554442-PL0246,"2,184.20",AR ASSESSMENTS.
Regeneration and Local Services,Technical Services,Supplies and Services,304221,Equipment and Materials,25/02/2019,3555353-25358,"4,549.99",ARBOR TIMBER & BUILDERS MERCHANTS LTD.
Adult and Health Services,Head of Adults,Third Party Payments 4THIRD,474101,Purchase of Care,19/02/2019,3552922-2536826,"2,324.00",ARMSTRONG HOUSE.
Dedicated Schools Grant,DSG High Needs Block,Transport,230009,Contract Hire,06/02/2019,3547874-JAN2019-04,560.00,ARMSTRONG`S TAXIS.
Children and Young Peoples Services,Head of Education and Skills,Transport,230012,Contract Hire,06/02/2019,3547874-JAN2019-002,"1,022.20",ARMSTRONG`S TAXIS.
Children and Young Peoples Services,Head of Education and Skills,Transport,230008,Contract Hire,06/02/2019,3547874-JAN2019-01,"1,273.00",ARMSTRONG`S TAXIS.
Non-Service Specific,Non Service Specific-Financing,Long Term Debtors,924001,Car loans,01/02/2019,3547032-114963,620.00,ARRIVA NORTH EAST LTD.
Resources,Digital and Customer Services,Long Term Debtors,924001,Car loans,19/02/2019,3552681-115041,620.00,ARRIVA NORTH EAST LTD.
Non-Service Specific,Non Service Specific-Financing,Long Term Debtors,924001,Car loans,22/02/2019,3554969-115068,"1,240.00",ARRIVA NORTH EAST LTD.
Children and Young Peoples Services,Head of Education and Skills,Transport,235005,Public Transport,06/02/2019,3547876-114686,"6,023.51",ARRIVA NORTH EAST LTD.
Children and Young Peoples Services,Head of Education and Skills,Transport,235005,Public Transport,06/02/2019,3547876-114823,"1,286.73",ARRIVA NORTH EAST LTD.
Children and Young Peoples Services,Head of Education and Skills,Transport,235005,Public Transport,07/02/2019,3548299-114597,"80,462.48",ARRIVA NORTH EAST LTD.
Children and Young Peoples Services,Head of Education and Skills,Transport,235073,Public Transport,21/02/2019,3554446-114991,"1,000.00",ARRIVA NORTH EAST LTD.
Regeneration and Local Services,Culture & Sport,Supplies and Services,338047,Services,14/02/2019,3550842-2781,"5,175.95",ARTISTES INTERNATIONAL MANAGEMENT LTD T/A AIM.
Regeneration and Local Services,Culture & Sport,Supplies and Services,338047,Services,18/02/2019,3551584-2800,"2,575.37",ARTISTES INTERNATIONAL MANAGEMENT LTD T/A AIM.
Adult and Health Services,Head of Adults,Third Party Payments 4THIRD,470101,Purchase of Care,19/02/2019,3552923-2535502,"2,100.00",ASCOT CARE NORTH EAST LTD.
Adult and Health Services,Head of Adults,Third Party Payments 4THIRD,470101,Purchase of Care,19/02/2019,3552923-2535503,"2,100.00",ASCOT CARE NORTH EAST LTD.
Adult and Health Services,Head of Adults,Third Party Payments 4THIRD,470101,Purchase of Care,19/02/2019,3552924-2534828,"2,279.00",ASCOT CARE NORTH EAST LTD..
Adult and Health Services,Head of Adults,Third Party Payments 4THIRD,470101,Purchase of Care,19/02/2019,3552924-2534829,"1,546.46",ASCOT CARE NORTH EAST LTD..
Adult and Health Services,Head of Adults,Third Party Payments 4THIRD,470101,Purchase of Care,19/02/2019,3552924-2534830,"2,279.00",ASCOT CARE NORTH EAST LTD..
Adult and Health Services,Head of Adults,Third Party Payments 4THIRD,470101,Purchase of Care,19/02/2019,3552924-2534831,"2,279.00",ASCOT CARE NORTH EAST LTD..
Adult and Health Services,Head of Adults,Third Party Payments 4THIRD,470101,Purchase of Care,19/02/2019,3552924-2534833,"1,139.52",ASCOT CARE NORTH EAST LTD..
Adult and Health Services,Head of Adults,Third Party Payments 4THIRD,470101,Purchase of Care,19/02/2019,3552924-2534835,"1,777.36",ASCOT CARE NORTH EAST LTD..
Adult and Health Services,Head of Adults,Third Party Payments 4THIRD,470101,Purchase of Care,19/02/2019,3552924-2534836,"1,164.00",ASCOT CARE NORTH EAST LTD..
Adult and Health Services,Head of Adults,Third Party Payments 4THIRD,470101,Purchase of Care,19/02/2019,3552924-2534839,"1,378.04",ASCOT CARE NORTH EAST LTD..
Adult and Health Services,Head of Adults,Third Party Payments 4THIRD,470101,Purchase of Care,19/02/2019,3552924-2534840,"2,279.00",ASCOT CARE NORTH EAST LTD..
Adult and Health Services,Head of Adults,Third Party Payments 4THIRD,470101,Purchase of Care,19/02/2019,3552924-2534841,"1,092.36",ASCOT CARE NORTH EAST LTD..
Adult and Health Services,Head of Adults,Third Party Payments 4THIRD,470101,Purchase of Care,19/02/2019,3552924-2534842,"2,279.00",ASCOT CARE NORTH EAST LTD..
Adult and Health Services,Head of Adults,Third Party Payments 4THIRD,470101,Purchase of Care,19/02/2019,3552924-2534843,"2,279.00",ASCOT CARE NORTH EAST LTD..
Adult and Health Services,Head of Adults,Third Party Payments 4THIRD,470101,Purchase of Care,19/02/2019,3552924-2534844,"1,277.24",ASCOT CARE NORTH EAST LTD..
Adult and Health Services,Head of Adults,Third Party Payments 4THIRD,470101,Purchase of Care,19/02/2019,3552924-2534845,"1,419.80",ASCOT CARE NORTH EAST LTD..
Adult and Health Services,Head of Adults,Third Party Payments 4THIRD,470101,Purchase of Care,19/02/2019,3552924-2534846,"2,279.00",ASCOT CARE NORTH EAST LTD..
Adult and Health Services,Head of Adults,Third Party Payments 4THIRD,470101,Purchase of Care,19/02/2019,3552924-2534847,"1,726.60",ASCOT CARE NORTH EAST LTD..
Adult and Health Services,Head of Adults,Third Party Payments 4THIRD,470101,Purchase of Care,19/02/2019,3552924-2534848,"1,708.20",ASCOT CARE NORTH EAST LTD..
Adult and Health Services,Head of Adults,Third Party Payments 4THIRD,470101,Purchase of Care,19/02/2019,3552924-2534849,"1,709.08",ASCOT CARE NORTH EAST LTD..
Adult and Health Services,Head of Adults,Third Party Payments 4THIRD,470101,Purchase of Care,19/02/2019,3552924-2534850,"1,688.96",ASCOT CARE NORTH EAST LTD..
Adult and Health Services,Head of Adults,Third Party Payments 4THIRD,470101,Purchase of Care,19/02/2019,3552924-2534852,"1,726.60",ASCOT CARE NORTH EAST LTD..
Adult and Health Services,Head of Adults,Third Party Payments 4THIRD,470101,Purchase of Care,19/02/2019,3552924-2534853,"1,726.60",ASCOT CARE NORTH EAST LTD..
Adult and Health Services,Head of Adults,Third Party Payments 4THIRD,470101,Purchase of Care,19/02/2019,3552924-2534854,"2,279.00",ASCOT CARE NORTH EAST LTD..
Adult and Health Services,Head of Adults,Third Party Payments 4THIRD,470101,Purchase of Care,19/02/2019,3552924-2534856,"1,428.16",ASCOT CARE NORTH EAST LTD..
Adult and Health Services,Head of Adults,Third Party Payments 4THIRD,470101,Purchase of Care,26/02/2019,3556692-WINTERJAN19-098,"6,895.59",ASCOT CARE NORTH EAST LTD..
Adult and Health Services,Head of Adults,Third Party Payments 4THIRD,471101,Purchase of Care,19/02/2019,3552924-2534832,843.94,ASCOT CARE NORTH EAST LTD..
Adult and Health Services,Head of Adults,Third Party Payments 4THIRD,471101,Purchase of Care,19/02/2019,3552924-2534834,"2,363.08",ASCOT CARE NORTH EAST LTD..
Adult and Health Services,Head of Adults,Third Party Payments 4THIRD,471101,Purchase of Care,19/02/2019,3552924-2534837,"1,097.14",ASCOT CARE NORTH EAST LTD..
Adult and Health Services,Head of Adults,Third Party Payments 4THIRD,471101,Purchase of Care,19/02/2019,3552924-2534838,"2,363.08",ASCOT CARE NORTH EAST LTD..
Adult and Health Services,Head of Adults,Third Party Payments 4THIRD,471101,Purchase of Care,19/02/2019,3552924-2534851,"1,296.48",ASCOT CARE NORTH EAST LTD..
Adult and Health Services,Head of Adults,Third Party Payments 4THIRD,471101,Purchase of Care,19/02/2019,3552924-2534855,"1,943.04",ASCOT CARE NORTH EAST LTD..
Adult and Health Services,Head of Adults,Third Party Payments 4THIRD,471101,Purchase of Care,26/02/2019,3556692-WINTERJAN19-099,"1,300.00",ASCOT CARE NORTH EAST LTD..
Adult and Health Services,Public Health,Third Party Payments 4THIRD,460803,Contract Payments,21/02/2019,3554448-DPQX/00000183SC,658.00,ASDA PHARMACY.*
Adult and Health Services,Public Health,Third Party Payments 4THIRD,460803,Contract Payments,28/02/2019,3557327-FPKW/00000174NRT,762.07,ASDA PHARMACY.*
Adult and Health Services,Head of Adults,Third Party Payments 4THIRD,471101,Purchase of Care,19/02/2019,3552925-2536212,"2,391.84",ASHBOURNE LODGE CARE HOME.
Adult and Health Services,Head of Adults,Third Party Payments 4THIRD,478101,Purchase of Care,19/02/2019,3553647-1873231H,"1,800.00",ASHDOWN CARE HOMES LTD.
Adult and Health Services,Head of Adults,Third Party Payments 4THIRD,474101,Purchase of Care,19/02/2019,3552926-2537672,"2,700.00",ASHFIELD NURSING HOME LTD.
Regeneration and Local Services,Culture & Sport,Supplies and Services,312013,Newspapers books and periodicals E312,01/02/2019,3547034-5951491,518.62,ASKEWS & HOLTS LIBRARY SERVICES LTD.
Regeneration and Local Services,Culture & Sport,Supplies and Services,312013,Newspapers books and periodicals E312,13/02/2019,3550409-5960536,556.05,ASKEWS & HOLTS LIBRARY SERVICES LTD.
Regeneration and Local Services,Culture & Sport,Supplies and Services,312013,Newspapers books and periodicals E312,15/02/2019,3551253-5945388,593.49,ASKEWS & HOLTS LIBRARY SERVICES LTD.
Regeneration and Local Services,Culture & Sport,Supplies and Services,312013,Newspapers books and periodicals E312,19/02/2019,3552684-5960432,571.79,ASKEWS & HOLTS LIBRARY SERVICES LTD.
Regeneration and Local Services,Direct Services,Premises,106082,Centrally Controlled Rep and Maint,08/02/2019,3548659-8154,640.00,ASPECT FIRE SOLUTIONS LTD.
Adult and Health Services,Head of Adults,Third Party Payments 4THIRD,470101,Purchase of Care,19/02/2019,3552927-2537718,"1,001.92",ASPIRE CARE GROUP.
Adult and Health Services,Head of Adults,Third Party Payments 4THIRD,470101,Purchase of Care,19/02/2019,3552927-2537719,"2,003.84",ASPIRE CARE GROUP.
Adult and Health Services,Head of Adults,Third Party Payments 4THIRD,470101,Purchase of Care,19/02/2019,3552927-2537720,"2,003.84",ASPIRE CARE GROUP.
Adult and Health Services,Head of Adults,Third Party Payments 4THIRD,470101,Purchase of Care,19/02/2019,3552927-2537721,"1,594.84",ASPIRE CARE GROUP.
Adult and Health Services,Head of Adults,Third Party Payments 4THIRD,470101,Purchase of Care,19/02/2019,3552927-2537722,"1,324.88",ASPIRE CARE GROUP.
Adult and Health Services,Head of Adults,Third Party Payments 4THIRD,470101,Purchase of Care,19/02/2019,3552927-2537723,"1,452.64",ASPIRE CARE GROUP.
Adult and Health Services,Head of Adults,Third Party Payments 4THIRD,470101,Purchase of Care,19/02/2019,3552928-2536818,"1,700.00",ASPIRE CARE GROUP.
Adult and Health Services,Head of Adults,Third Party Payments 4THIRD,470101,Purchase of Care,19/02/2019,3552928-2536819,687.52,ASPIRE CARE GROUP.
Adult and Health Services,Head of Adults,Third Party Payments 4THIRD,470101,Purchase of Care,19/02/2019,3552928-2536820,"1,785.00",ASPIRE CARE GROUP.
Adult and Health Services,Head of Adults,Third Party Payments 4THIRD,470101,Purchase of Care,19/02/2019,3552928-2536821,"2,695.00",ASPIRE CARE GROUP.
Adult and Health Services,Head of Adults,Third Party Payments 4THIRD,470101,Purchase of Care,19/02/2019,3552928-2536822,"3,570.00",ASPIRE CARE GROUP.
Adult and Health Services,Head of Adults,Third Party Payments 4THIRD,470101,Purchase of Care,19/02/2019,3552928-2536823,"1,785.00",ASPIRE CARE GROUP.
Adult and Health Services,Head of Adults,Third Party Payments 4THIRD,470101,Purchase of Care,19/02/2019,3552928-2536824,668.64,ASPIRE CARE GROUP.
Adult and Health Services,Head of Adults,Third Party Payments 4THIRD,470101,Purchase of Care,19/02/2019,3552928-2536825,"2,003.84",ASPIRE CARE GROUP.
Adult and Health Services,Head of Adults,Third Party Payments 4THIRD,470101,Purchase of Care,19/02/2019,3552929-2535486,"2,003.84",ASPIRE CARE GROUP.
Adult and Health Services,Head of Adults,Third Party Payments 4THIRD,470101,Purchase of Care,19/02/2019,3552929-2535487,"2,003.84",ASPIRE CARE GROUP.
Children and Young Peoples Services,Head of Education and Skills,Supplies and Services,338027,Services,28/02/2019,3557329-INV2006137,"2,300.00",ASSESSMENT SERVICES LTD.
Regeneration and Local Services,Direct Services,Premises,106083,Centrally Controlled Rep and Maint,15/02/2019,3551254-14041,"2,801.00",ASTRAL CONTROL SERVICES LTD.
Children and Young Peoples Services,Head of Education and Skills,Transport,230007,Contract Hire,11/02/2019,3549119-690,"2,071.00",AT TAXIS LTD.
Children and Young Peoples Services,Head of Education and Skills,Transport,230008,Contract Hire,11/02/2019,3549119-688,"2,406.40",AT TAXIS LTD.
Children and Young Peoples Services,Head of Education and Skills,Transport,230008,Contract Hire,13/02/2019,3550410-687,"1,972.00",AT TAXIS LTD.
Adult and Health Services,Head of Adults,Transport,230005,Contract Hire,11/02/2019,3549119-689,"2,261.00",AT TAXIS LTD.
Regeneration and Local Services,Direct Services,Construction work A908,908105,Construction work,13/02/2019,3550411-REPLACEMENT-CREMATORS,"67,189.49",ATI ENVIRONMENTAL UK LTD.
Regeneration and Local Services,Direct Services,Fees,901002,Consultants fees 901002,12/02/2019,3549425-18034593,"7,903.53",ATKINS GLOBAL.
Regeneration and Local Services,Direct Services,Fees,901002,Consultants fees 901002,12/02/2019,3549425-18048585,"5,569.89",ATKINS GLOBAL.
Regeneration and Local Services,Direct Services,Fees,901002,Consultants fees 901002,12/02/2019,3549425-18048587,"5,569.89",ATKINS GLOBAL.
Regeneration and Local Services,Direct Services,Fees,901002,Consultants fees 901002,12/02/2019,3549425-18048588,"5,569.89",ATKINS GLOBAL.
Regeneration and Local Services,Culture & Sport,Fees,901002,Consultants fees 901002,15/02/2019,3551255-19002452,"1,648.00",ATKINS GLOBAL.
Children and Young Peoples Services,Head of Education and Skills,Fees,901002,Consultants fees 901002,18/02/2019,3551586-19002139,903.56,ATKINS GLOBAL.
Regeneration and Local Services,Spatial Policy Planning Assets & Environment,Fees,901002,Consultants fees 901002,19/02/2019,3552685-19002455,"1,147.49",ATKINS GLOBAL.
Regeneration and Local Services,Culture & Sport,Fees,901002,Consultants fees 901002,25/02/2019,3555356-19003979,"7,850.00",ATKINS GLOBAL.
Regeneration and Local Services,Technical Services,Supplies and Services,384199,Miscellaneous Expenses,25/02/2019,3555356-19003935,870.24,ATKINS GLOBAL.
Adult and Health Services,Head of Adults,Third Party Payments 4THIRD,474101,Purchase of Care,19/02/2019,3552930-2537666,"2,324.00",ATLAS CARE HOMES LTD.
Adult and Health Services,Head of Adults,Third Party Payments 4THIRD,474101,Purchase of Care,19/02/2019,3552930-2537667,"1,210.00",ATLAS CARE HOMES LTD.
Adult and Health Services,Head of Adults,Third Party Payments 4THIRD,470101,Purchase of Care,19/02/2019,3552931-2536308,"3,006.16",ATLAS CARE HOMES LTD.
Adult and Health Services,Head of Adults,Third Party Payments 4THIRD,470101,Purchase of Care,19/02/2019,3552931-2536309,"2,060.00",ATLAS CARE HOMES LTD.
Children and Young Peoples Services,Head of Education and Skills,Transport,230007,Contract Hire,11/02/2019,3549120-DCC11JAN19,"1,520.00",ATLAS TAXIS BISHOP AUCKLAND.
Children and Young Peoples Services,Head of Education and Skills,Transport,230008,Contract Hire,11/02/2019,3549120-DCC13JAN19,"2,340.00",ATLAS TAXIS BISHOP AUCKLAND.
Children and Young Peoples Services,Head of Education and Skills,Transport,230008,Contract Hire,11/02/2019,3549120-DCC6JAN19,"2,160.00",ATLAS TAXIS BISHOP AUCKLAND.
Children and Young Peoples Services,Head of Education and Skills,Transport,230008,Contract Hire,14/02/2019,3550845-DCC05JAN19,"1,701.00",ATLAS TAXIS BISHOP AUCKLAND.
Children and Young Peoples Services,Head of Education and Skills,Transport,230008,Contract Hire,14/02/2019,3550845-DCC10JAN19,"1,899.34",ATLAS TAXIS BISHOP AUCKLAND.
Children and Young Peoples Services,Head of Education and Skills,Transport,230008,Contract Hire,14/02/2019,3550845-DCC12JAN19,"1,022.00",ATLAS TAXIS BISHOP AUCKLAND.
Children and Young Peoples Services,Head of Education and Skills,Transport,230008,Contract Hire,14/02/2019,3550845-DCC15JAN19,"1,440.00",ATLAS TAXIS BISHOP AUCKLAND.
Children and Young Peoples Services,Head of Education and Skills,Transport,230008,Contract Hire,14/02/2019,3550845-DCC1JAN19,"1,989.50",ATLAS TAXIS BISHOP AUCKLAND.
Children and Young Peoples Services,Head of Education and Skills,Transport,230008,Contract Hire,14/02/2019,3550845-DCC4JAN19,"1,602.00",ATLAS TAXIS BISHOP AUCKLAND.
Adult and Health Services,Head of Adults,Transport,230005,Contract Hire,11/02/2019,3549120-DCC14JAN19,"1,620.00",ATLAS TAXIS BISHOP AUCKLAND.
Adult and Health Services,Head of Adults,Transport,230005,Contract Hire,11/02/2019,3549120-DCC2JAN19,"1,760.00",ATLAS TAXIS BISHOP AUCKLAND.
Children and Young Peoples Services,Head of Education and Skills,Transport,230007,Contract Hire,11/02/2019,3549121-03892,"1,293.70",ATLAS TAXIS CONSETT.
Children and Young Peoples Services,Head of Education and Skills,Transport,230007,Contract Hire,11/02/2019,3549121-03893,703.00,ATLAS TAXIS CONSETT.
Children and Young Peoples Services,Head of Education and Skills,Transport,230007,Contract Hire,11/02/2019,3549121-03894,779.00,ATLAS TAXIS CONSETT.
Children and Young Peoples Services,Head of Education and Skills,Transport,230007,Contract Hire,11/02/2019,3549121-03895,752.00,ATLAS TAXIS CONSETT.
Children and Young Peoples Services,Head of Education and Skills,Transport,230007,Contract Hire,11/02/2019,3549121-03897,999.36,ATLAS TAXIS CONSETT.
Children and Young Peoples Services,Head of Education and Skills,Transport,230007,Contract Hire,11/02/2019,3549121-03899,608.00,ATLAS TAXIS CONSETT.
Children and Young Peoples Services,Head of Education and Skills,Transport,230009,Contract Hire,11/02/2019,3549121-03903,"1,917.80",ATLAS TAXIS CONSETT.
Children and Young Peoples Services,Head of Education and Skills,Transport,230006,Contract Hire,11/02/2019,3549121-03901,"1,390.00",ATLAS TAXIS CONSETT.
Children and Young Peoples Services,Head of Education and Skills,Transport,230006,Contract Hire,11/02/2019,3549121-03902,"1,002.21",ATLAS TAXIS CONSETT.
Children and Young Peoples Services,Head of Education and Skills,Transport,230006,Contract Hire,25/02/2019,3555357-03904,544.00,ATLAS TAXIS CONSETT.
Dedicated Schools Grant,DSG High Needs Block,Transport,230010,Contract Hire,14/02/2019,3550846-03898,721.60,ATLAS TAXIS CONSETT.
Adult and Health Services,Head of Adults,Transport,230005,Contract Hire,11/02/2019,3549121-03896,561.00,ATLAS TAXIS CONSETT.
Regeneration and Local Services,Economic Development and Housing,Supplies and Services,384700,Miscellaneous Expenses,15/02/2019,3551256-RED-02-2019-109,"1,000.00",ATLAS WASHROOM SYSTEMS LTD.
Regeneration and Local Services,Direct Services,Third Party Payments 4THIRD,430100,Rendered by Private Contractors,27/02/2019,3556955-6774,"4,220.00",ATLAS WASHROOM SYSTEMS LTD.
Adult and Health Services,Head of Adults,Supplies and Services,384504,Miscellaneous Expenses,01/02/2019,3547035-AHS02790,"1,028.48",AUCKLAND HOME SOLUTIONS CIC.
Adult and Health Services,Head of Adults,Supplies and Services,384504,Miscellaneous Expenses,26/02/2019,3556694-AHS02869,"1,028.48",AUCKLAND HOME SOLUTIONS CIC.
Regeneration and Local Services,Direct Services,Fees,901002,Consultants fees 901002,18/02/2019,3551587-ANL2019/49,"1,045.39",AURA NEWCASTLE LTD.
Adult and Health Services,Head of Adults,Third Party Payments 4THIRD,470101,Purchase of Care,19/02/2019,3552932-2537105,"2,003.84",AUTISM CARE UK (4) LTD.
Adult and Health Services,Head of Adults,Third Party Payments 4THIRD,470101,Purchase of Care,19/02/2019,3552932-2537106,"9,047.44",AUTISM CARE UK (4) LTD.
Adult and Health Services,Head of Adults,Third Party Payments 4THIRD,470101,Purchase of Care,19/02/2019,3552932-2537107,"4,329.68",AUTISM CARE UK (4) LTD.
Adult and Health Services,Head of Adults,Third Party Payments 4THIRD,470101,Purchase of Care,19/02/2019,3552932-2537108,"1,742.44",AUTISM CARE UK (4) LTD.
Adult and Health Services,Head of Adults,Third Party Payments 4THIRD,470101,Purchase of Care,19/02/2019,3552932-2537109,568.96,AUTISM CARE UK (4) LTD.
Adult and Health Services,Head of Adults,Third Party Payments 4THIRD,470101,Purchase of Care,19/02/2019,3552932-2537110,"3,091.20",AUTISM CARE UK (4) LTD.
Adult and Health Services,Head of Adults,Third Party Payments 4THIRD,470101,Purchase of Care,19/02/2019,3552932-2538543,"28,914.93",AUTISM CARE UK (4) LTD.
Adult and Health Services,Head of Adults,Third Party Payments 4THIRD,478101,Purchase of Care,19/02/2019,3553652-1870969H,"6,561.96",AUTISM CARE UK (4) LTD.
Adult and Health Services,Head of Adults,Third Party Payments 4THIRD,478101,Purchase of Care,19/02/2019,3553652-1871353H,"3,948.80",AUTISM CARE UK (4) LTD.
Adult and Health Services,Head of Adults,Third Party Payments 4THIRD,478101,Purchase of Care,19/02/2019,3553652-1872161H,"3,047.68",AUTISM CARE UK (4) LTD.
Adult and Health Services,Head of Adults,Third Party Payments 4THIRD,478101,Purchase of Care,19/02/2019,3553652-1872362H,"4,699.76",AUTISM CARE UK (4) LTD.
Adult and Health Services,Head of Adults,Third Party Payments 4THIRD,478101,Purchase of Care,19/02/2019,3553652-1872414H,"3,948.80",AUTISM CARE UK (4) LTD.
Adult and Health Services,Head of Adults,Third Party Payments 4THIRD,478101,Purchase of Care,19/02/2019,3553652-1872643H,"3,948.80",AUTISM CARE UK (4) LTD.
Adult and Health Services,Head of Adults,Third Party Payments 4THIRD,478101,Purchase of Care,19/02/2019,3553652-1872655H,"3,948.80",AUTISM CARE UK (4) LTD.
Adult and Health Services,Head of Adults,Third Party Payments 4THIRD,478101,Purchase of Care,19/02/2019,3553652-1872824H,"2,880.84",AUTISM CARE UK (4) LTD.
Adult and Health Services,Head of Adults,Third Party Payments 4THIRD,478101,Purchase of Care,19/02/2019,3553652-1873329H,"6,709.84",AUTISM CARE UK (4) LTD.
Adult and Health Services,Head of Adults,Third Party Payments 4THIRD,478101,Purchase of Care,19/02/2019,3553652-1874210H,"5,056.20",AUTISM CARE UK (4) LTD.
Regeneration and Local Services,Culture & Sport,Supplies and Services,384199,Miscellaneous Expenses,04/02/2019,3547438-SIN057318,500.00,AVALON PROMOTIONS LTD.
Children and Young Peoples Services,Head of Education and Skills,Transport,230008,Contract Hire,06/02/2019,3547878-310119,"1,520.00",AVALON TAXIS.
Regeneration and Local Services,EnvironmentHealth & Consumer Protection,Third Party Payments 4THIRD,430100,Rendered by Private Contractors,25/02/2019,3555361-28241,"1,435.00",AXLE WEIGHT TECHNOLOGY LTD.
Dedicated Schools Grant,DSG Early Years Block,Transfer Payments,510032,School Children,25/02/2019,3555362-12061,"1,051.87",AYCLIFFE DAY NURSERY.
Dedicated Schools Grant,DSG Early Years Block,Transfer Payments,510030,School Children,25/02/2019,3555362-12234,"4,239.67",AYCLIFFE DAY NURSERY.
Regeneration and Local Services,Direct Services,Third Party Payments 4THIRD,430100,Rendered by Private Contractors,21/02/2019,3554453-31770,"3,846.00",AYCLIFFE FABRICATIONS LTD.
Regeneration and Local Services,Technical Services,Stock A926,926900,Stock in hand-Inventory system,25/02/2019,3555363-INV128484,777.60,AZTEC CHEMICALS LTD.
Regeneration and Local Services,Economic Development and Housing,Supplies and Services,338066,Services,06/02/2019,3547880-1342,"22,475.00",B2B NORTH LTD.
Regeneration and Local Services,Direct Services,Supplies and Services,304221,Equipment and Materials,26/02/2019,3556695-97337722,836.47,BALL COLEGRAVE LTD.
Adult and Health Services,Head of Adults,Third Party Payments 4THIRD,474101,Purchase of Care,19/02/2019,3552933-2536352,"3,360.00",BARCHESTER HEALTHCARE HOMES LTD.
Adult and Health Services,Head of Adults,Third Party Payments 4THIRD,474101,Purchase of Care,19/02/2019,3552933-2536353,"2,950.00",BARCHESTER HEALTHCARE HOMES LTD.
Adult and Health Services,Head of Adults,Third Party Payments 4THIRD,474101,Purchase of Care,19/02/2019,3552933-2536355,"2,950.00",BARCHESTER HEALTHCARE HOMES LTD.
Adult and Health Services,Head of Adults,Third Party Payments 4THIRD,474101,Purchase of Care,19/02/2019,3552933-2536356,"2,990.00",BARCHESTER HEALTHCARE HOMES LTD.
Adult and Health Services,Head of Adults,Third Party Payments 4THIRD,474101,Purchase of Care,19/02/2019,3552933-2536357,"2,700.00",BARCHESTER HEALTHCARE HOMES LTD.
Adult and Health Services,Head of Adults,Third Party Payments 4THIRD,474101,Purchase of Care,19/02/2019,3552935-2536461,"1,980.00",BARCHESTER HEALTHCARE HOMES LTD.
Adult and Health Services,Head of Adults,Third Party Payments 4THIRD,474101,Purchase of Care,19/02/2019,3552935-2536462,"1,204.52",BARCHESTER HEALTHCARE HOMES LTD.
Adult and Health Services,Head of Adults,Third Party Payments 4THIRD,474101,Purchase of Care,19/02/2019,3552935-2536463,"6,964.00",BARCHESTER HEALTHCARE HOMES LTD.
Adult and Health Services,Head of Adults,Third Party Payments 4THIRD,474101,Purchase of Care,19/02/2019,3552936-2537383,"1,976.00",BARCHESTER HEALTHCARE HOMES LTD.
Adult and Health Services,Head of Adults,Third Party Payments 4THIRD,474101,Purchase of Care,19/02/2019,3552938-2507409,"1,125.04",BARCHESTER HEALTHCARE HOMES LTD.
Adult and Health Services,Head of Adults,Third Party Payments 4THIRD,474101,Purchase of Care,19/02/2019,3552938-2507411,"2,250.08",BARCHESTER HEALTHCARE HOMES LTD.
Adult and Health Services,Head of Adults,Third Party Payments 4THIRD,474101,Purchase of Care,19/02/2019,3552938-2507413,"2,250.08",BARCHESTER HEALTHCARE HOMES LTD.
Adult and Health Services,Head of Adults,Third Party Payments 4THIRD,474101,Purchase of Care,19/02/2019,3552938-2507415,"2,250.08",BARCHESTER HEALTHCARE HOMES LTD.
Adult and Health Services,Head of Adults,Third Party Payments 4THIRD,474101,Purchase of Care,19/02/2019,3552938-2507417,"2,250.08",BARCHESTER HEALTHCARE HOMES LTD.
Adult and Health Services,Head of Adults,Third Party Payments 4THIRD,474101,Purchase of Care,19/02/2019,3552938-2507420,"2,250.08",BARCHESTER HEALTHCARE HOMES LTD.
Adult and Health Services,Head of Adults,Third Party Payments 4THIRD,474101,Purchase of Care,19/02/2019,3552938-2507423,"2,250.08",BARCHESTER HEALTHCARE HOMES LTD.
Adult and Health Services,Head of Adults,Third Party Payments 4THIRD,474101,Purchase of Care,19/02/2019,3552938-2507426,"2,250.08",BARCHESTER HEALTHCARE HOMES LTD.
Adult and Health Services,Head of Adults,Third Party Payments 4THIRD,474101,Purchase of Care,19/02/2019,3552938-2507429,"2,250.08",BARCHESTER HEALTHCARE HOMES LTD.
Adult and Health Services,Head of Adults,Third Party Payments 4THIRD,474101,Purchase of Care,19/02/2019,3552938-2507432,"1,125.04",BARCHESTER HEALTHCARE HOMES LTD.
Adult and Health Services,Head of Adults,Third Party Payments 4THIRD,474101,Purchase of Care,19/02/2019,3552938-2507435,"2,250.08",BARCHESTER HEALTHCARE HOMES LTD.
Adult and Health Services,Head of Adults,Third Party Payments 4THIRD,474101,Purchase of Care,19/02/2019,3552938-2507438,"1,125.04",BARCHESTER HEALTHCARE HOMES LTD.
Adult and Health Services,Head of Adults,Third Party Payments 4THIRD,474101,Purchase of Care,19/02/2019,3552938-2507440,"2,250.08",BARCHESTER HEALTHCARE HOMES LTD.
Adult and Health Services,Head of Adults,Third Party Payments 4THIRD,474101,Purchase of Care,19/02/2019,3552938-2507443,"2,454.04",BARCHESTER HEALTHCARE HOMES LTD.
Adult and Health Services,Head of Adults,Third Party Payments 4THIRD,474101,Purchase of Care,19/02/2019,3552938-2507446,"2,250.08",BARCHESTER HEALTHCARE HOMES LTD.
Adult and Health Services,Head of Adults,Third Party Payments 4THIRD,474101,Purchase of Care,19/02/2019,3552938-2507449,"2,250.08",BARCHESTER HEALTHCARE HOMES LTD.
Adult and Health Services,Head of Adults,Third Party Payments 4THIRD,474101,Purchase of Care,19/02/2019,3552938-2507452,"2,250.08",BARCHESTER HEALTHCARE HOMES LTD.
Adult and Health Services,Head of Adults,Third Party Payments 4THIRD,474101,Purchase of Care,19/02/2019,3552938-2535359,"2,089.36",BARCHESTER HEALTHCARE HOMES LTD.
Adult and Health Services,Head of Adults,Third Party Payments 4THIRD,474101,Purchase of Care,19/02/2019,3552938-2535361,"2,250.08",BARCHESTER HEALTHCARE HOMES LTD.
Adult and Health Services,Head of Adults,Third Party Payments 4THIRD,474101,Purchase of Care,19/02/2019,3552938-2535363,"2,250.08",BARCHESTER HEALTHCARE HOMES LTD.
Adult and Health Services,Head of Adults,Third Party Payments 4THIRD,474101,Purchase of Care,19/02/2019,3552938-2535365,"2,250.08",BARCHESTER HEALTHCARE HOMES LTD.
Adult and Health Services,Head of Adults,Third Party Payments 4THIRD,474101,Purchase of Care,19/02/2019,3552938-2535368,"2,250.08",BARCHESTER HEALTHCARE HOMES LTD.
Adult and Health Services,Head of Adults,Third Party Payments 4THIRD,474101,Purchase of Care,19/02/2019,3552938-2535370,"2,250.08",BARCHESTER HEALTHCARE HOMES LTD.
Adult and Health Services,Head of Adults,Third Party Payments 4THIRD,474101,Purchase of Care,19/02/2019,3552938-2535373,"2,250.08",BARCHESTER HEALTHCARE HOMES LTD.
Adult and Health Services,Head of Adults,Third Party Payments 4THIRD,474101,Purchase of Care,19/02/2019,3552938-2535376,"1,125.04",BARCHESTER HEALTHCARE HOMES LTD.
Adult and Health Services,Head of Adults,Third Party Payments 4THIRD,474101,Purchase of Care,19/02/2019,3552938-2535379,"2,250.08",BARCHESTER HEALTHCARE HOMES LTD.
Adult and Health Services,Head of Adults,Third Party Payments 4THIRD,474101,Purchase of Care,19/02/2019,3552938-2535382,"1,125.04",BARCHESTER HEALTHCARE HOMES LTD.
Adult and Health Services,Head of Adults,Third Party Payments 4THIRD,474101,Purchase of Care,19/02/2019,3552938-2535384,"2,250.08",BARCHESTER HEALTHCARE HOMES LTD.
Adult and Health Services,Head of Adults,Third Party Payments 4THIRD,474101,Purchase of Care,19/02/2019,3552938-2535387,"2,454.04",BARCHESTER HEALTHCARE HOMES LTD.
Adult and Health Services,Head of Adults,Third Party Payments 4THIRD,474101,Purchase of Care,19/02/2019,3552938-2535390,"2,250.08",BARCHESTER HEALTHCARE HOMES LTD.
Adult and Health Services,Head of Adults,Third Party Payments 4THIRD,474101,Purchase of Care,19/02/2019,3552938-2535393,"2,250.08",BARCHESTER HEALTHCARE HOMES LTD.
Adult and Health Services,Head of Adults,Third Party Payments 4THIRD,474101,Purchase of Care,19/02/2019,3552938-2535396,"2,250.08",BARCHESTER HEALTHCARE HOMES LTD.
Adult and Health Services,Head of Adults,Third Party Payments 4THIRD,474101,Purchase of Care,19/02/2019,3552941-2537924,"2,480.00",BARCHESTER HEALTHCARE HOMES LTD.
Adult and Health Services,Head of Adults,Third Party Payments 4THIRD,474101,Purchase of Care,26/02/2019,3556696-WINTERJAN19-125,"4,705.22",BARCHESTER HEALTHCARE HOMES LTD.
Adult and Health Services,Head of Adults,Third Party Payments 4THIRD,470101,Purchase of Care,19/02/2019,3552934-2536420,"1,900.00",BARCHESTER HEALTHCARE HOMES LTD.
Adult and Health Services,Head of Adults,Third Party Payments 4THIRD,470101,Purchase of Care,19/02/2019,3552934-2536422,950.00,BARCHESTER HEALTHCARE HOMES LTD.
Adult and Health Services,Head of Adults,Third Party Payments 4THIRD,470101,Purchase of Care,19/02/2019,3552935-2536458,"2,700.00",BARCHESTER HEALTHCARE HOMES LTD.
Adult and Health Services,Head of Adults,Third Party Payments 4THIRD,470101,Purchase of Care,19/02/2019,3552935-2536459,"2,700.00",BARCHESTER HEALTHCARE HOMES LTD.
Adult and Health Services,Head of Adults,Third Party Payments 4THIRD,470101,Purchase of Care,19/02/2019,3552935-2536460,"4,857.14",BARCHESTER HEALTHCARE HOMES LTD.
Adult and Health Services,Head of Adults,Third Party Payments 4THIRD,470101,Purchase of Care,19/02/2019,3552935-2538401,"2,720.00",BARCHESTER HEALTHCARE HOMES LTD.
Adult and Health Services,Head of Adults,Third Party Payments 4THIRD,470101,Purchase of Care,19/02/2019,3552935-2538408,"3,108.57",BARCHESTER HEALTHCARE HOMES LTD.
Adult and Health Services,Head of Adults,Third Party Payments 4THIRD,470101,Purchase of Care,19/02/2019,3552935-2538475,"2,800.00",BARCHESTER HEALTHCARE HOMES LTD.
Adult and Health Services,Head of Adults,Third Party Payments 4THIRD,470101,Purchase of Care,19/02/2019,3552935-2538538,"1,360.00",BARCHESTER HEALTHCARE HOMES LTD.
Adult and Health Services,Head of Adults,Third Party Payments 4THIRD,470101,Purchase of Care,19/02/2019,3552937-2536303,"2,324.00",BARCHESTER HEALTHCARE HOMES LTD.
Adult and Health Services,Head of Adults,Third Party Payments 4THIRD,470101,Purchase of Care,19/02/2019,3552937-2536304,"2,324.00",BARCHESTER HEALTHCARE HOMES LTD.
Adult and Health Services,Head of Adults,Third Party Payments 4THIRD,470101,Purchase of Care,19/02/2019,3552937-2536305,"2,324.00",BARCHESTER HEALTHCARE HOMES LTD.
Adult and Health Services,Head of Adults,Third Party Payments 4THIRD,470101,Purchase of Care,19/02/2019,3552937-2536306,"2,324.00",BARCHESTER HEALTHCARE HOMES LTD.
Adult and Health Services,Head of Adults,Third Party Payments 4THIRD,470101,Purchase of Care,19/02/2019,3552939-2536204,"2,156.00",BARCHESTER HEALTHCARE HOMES LTD.
Adult and Health Services,Head of Adults,Third Party Payments 4THIRD,471101,Purchase of Care,19/02/2019,3552934-2536421,"1,980.00",BARCHESTER HEALTHCARE HOMES LTD.
Adult and Health Services,Head of Adults,Third Party Payments 4THIRD,471101,Purchase of Care,19/02/2019,3552937-2536301,"2,420.00",BARCHESTER HEALTHCARE HOMES LTD.
Adult and Health Services,Head of Adults,Third Party Payments 4THIRD,471101,Purchase of Care,19/02/2019,3552937-2536302,"2,420.00",BARCHESTER HEALTHCARE HOMES LTD.
Adult and Health Services,Head of Adults,Third Party Payments 4THIRD,471101,Purchase of Care,19/02/2019,3552937-2536307,"2,420.00",BARCHESTER HEALTHCARE HOMES LTD.
Adult and Health Services,Head of Adults,Third Party Payments 4THIRD,471101,Purchase of Care,19/02/2019,3552940-2537919,"1,237.84",BARCHESTER HEALTHCARE HOMES LTD.
Regeneration and Local Services,Spatial Policy Planning Assets & Environment,Supplies and Services,384199,Miscellaneous Expenses,20/02/2019,3554307-11637,"22,793.76",BARKER & BLAND LTD.
Children and Young Peoples Services,Head of Childrens Social Care,Supplies and Services,338044,Services,13/02/2019,3550416-CAS-02-2019-076,700.00,BARNARDO SERVICES LTD.
Adult and Health Services,Commissioning inc Supporting People,Third Party Payments 4THIRD,479102,Purchase of Care,11/02/2019,3549124-141008261,"43,925.67",BARNARDO SERVICES LTD.
Adult and Health Services,Commissioning inc Supporting People,Third Party Payments 4THIRD,479102,Purchase of Care,26/02/2019,3556697-141008539,"29,283.78",BARNARDO SERVICES LTD.
Regeneration and Local Services,Transport and Contracted Services,Third Party Payments 4THIRD,440999,Other third party payments E440,15/02/2019,3551260-63751,"6,514.32",BAYDALE CONTROL SYSTEMS LTD.
Regeneration and Local Services,Transport and Contracted Services,Third Party Payments 4THIRD,440999,Other third party payments E440,25/02/2019,3555368-65571,"1,990.12",BAYDALE CONTROL SYSTEMS LTD.
Regeneration and Local Services,Transport and Contracted Services,Third Party Payments 4THIRD,440999,Other third party payments E440,25/02/2019,3555368-65573,836.16,BAYDALE CONTROL SYSTEMS LTD.
Regeneration and Local Services,Transport and Contracted Services,Third Party Payments 4THIRD,440999,Other third party payments E440,25/02/2019,3555368-65574,836.16,BAYDALE CONTROL SYSTEMS LTD.
Regeneration and Local Services,Transport and Contracted Services,Third Party Payments 4THIRD,440999,Other third party payments E440,25/02/2019,3555368-65575,"2,108.48",BAYDALE CONTROL SYSTEMS LTD.
Regeneration and Local Services,Direct Services,Third Party Payments 4THIRD,430100,Rendered by Private Contractors,19/02/2019,3552688-1811006,"6,792.72",BCE NORTHERN LTD.
Transformation and Partnerships,Partnerships & Community Engagement Div.,Supplies and Services,384086,Miscellaneous Expenses,22/02/2019,3554974-BOYL02-18MARC04-18,950.00,BEAMISH & EAST STANLEY SPORTS CLUB.
Adult and Health Services,Head of Adults,Third Party Payments 4THIRD,470101,Purchase of Care,19/02/2019,3552944-2537195,"2,156.88",BEAMISH RESIDENTIAL CARE HOME LTD.
Adult and Health Services,Head of Adults,Third Party Payments 4THIRD,470101,Purchase of Care,19/02/2019,3552944-2537197,"2,156.88",BEAMISH RESIDENTIAL CARE HOME LTD.
Adult and Health Services,Head of Adults,Third Party Payments 4THIRD,470101,Purchase of Care,19/02/2019,3552944-2537198,"2,156.88",BEAMISH RESIDENTIAL CARE HOME LTD.
Adult and Health Services,Head of Adults,Third Party Payments 4THIRD,470101,Purchase of Care,19/02/2019,3552944-2537201,"1,583.08",BEAMISH RESIDENTIAL CARE HOME LTD.
Adult and Health Services,Head of Adults,Third Party Payments 4THIRD,470101,Purchase of Care,19/02/2019,3552944-2537202,"1,078.44",BEAMISH RESIDENTIAL CARE HOME LTD.
Adult and Health Services,Head of Adults,Third Party Payments 4THIRD,470101,Purchase of Care,19/02/2019,3552944-2537203,"2,156.88",BEAMISH RESIDENTIAL CARE HOME LTD.
Adult and Health Services,Head of Adults,Third Party Payments 4THIRD,470101,Purchase of Care,19/02/2019,3552944-2537204,"2,156.88",BEAMISH RESIDENTIAL CARE HOME LTD.
Adult and Health Services,Head of Adults,Third Party Payments 4THIRD,470101,Purchase of Care,19/02/2019,3552944-2537205,"2,156.88",BEAMISH RESIDENTIAL CARE HOME LTD.
Adult and Health Services,Head of Adults,Third Party Payments 4THIRD,470101,Purchase of Care,19/02/2019,3552944-2537206,528.00,BEAMISH RESIDENTIAL CARE HOME LTD.
Adult and Health Services,Head of Adults,Third Party Payments 4THIRD,470101,Purchase of Care,19/02/2019,3552944-2537207,"2,156.88",BEAMISH RESIDENTIAL CARE HOME LTD.
Adult and Health Services,Head of Adults,Third Party Payments 4THIRD,470101,Purchase of Care,26/02/2019,3556698-WINTERJAN19-027,"2,669.76",BEAMISH RESIDENTIAL CARE HOME LTD.
Adult and Health Services,Head of Adults,Third Party Payments 4THIRD,471101,Purchase of Care,19/02/2019,3552944-2537194,"1,558.08",BEAMISH RESIDENTIAL CARE HOME LTD.
Adult and Health Services,Head of Adults,Third Party Payments 4THIRD,471101,Purchase of Care,19/02/2019,3552944-2537196,"1,487.84",BEAMISH RESIDENTIAL CARE HOME LTD.
Adult and Health Services,Head of Adults,Third Party Payments 4THIRD,471101,Purchase of Care,19/02/2019,3552944-2537199,"1,689.84",BEAMISH RESIDENTIAL CARE HOME LTD.
Adult and Health Services,Head of Adults,Third Party Payments 4THIRD,471101,Purchase of Care,19/02/2019,3552944-2537200,"2,242.24",BEAMISH RESIDENTIAL CARE HOME LTD.
Adult and Health Services,Head of Adults,Third Party Payments 4THIRD,471101,Purchase of Care,26/02/2019,3556698-WINTERJAN19-028,"1,233.52",BEAMISH RESIDENTIAL CARE HOME LTD.
Adult and Health Services,Head of Adults,Third Party Payments 4THIRD,478101,Purchase of Care,19/02/2019,3553656-1870872H,"1,153.28",BEECHFIELD CARE & SUPPORT LTD.
Adult and Health Services,Head of Adults,Third Party Payments 4THIRD,478101,Purchase of Care,19/02/2019,3553656-1870895H,"1,153.28",BEECHFIELD CARE & SUPPORT LTD.
Adult and Health Services,Head of Adults,Third Party Payments 4THIRD,478101,Purchase of Care,19/02/2019,3553656-1870933H,"1,171.16",BEECHFIELD CARE & SUPPORT LTD.
Adult and Health Services,Head of Adults,Third Party Payments 4THIRD,478101,Purchase of Care,19/02/2019,3553656-1870961H,"1,153.28",BEECHFIELD CARE & SUPPORT LTD.
Adult and Health Services,Head of Adults,Third Party Payments 4THIRD,478101,Purchase of Care,19/02/2019,3553656-1871002H,"1,153.28",BEECHFIELD CARE & SUPPORT LTD.
Adult and Health Services,Head of Adults,Third Party Payments 4THIRD,478101,Purchase of Care,19/02/2019,3553656-1871022H,"1,153.28",BEECHFIELD CARE & SUPPORT LTD.
Adult and Health Services,Head of Adults,Third Party Payments 4THIRD,478101,Purchase of Care,19/02/2019,3553656-1871110H,"1,153.28",BEECHFIELD CARE & SUPPORT LTD.
Adult and Health Services,Head of Adults,Third Party Payments 4THIRD,478101,Purchase of Care,19/02/2019,3553656-1872207H,"1,314.20",BEECHFIELD CARE & SUPPORT LTD.
Adult and Health Services,Head of Adults,Third Party Payments 4THIRD,478101,Purchase of Care,19/02/2019,3553656-1872828H,"1,421.48",BEECHFIELD CARE & SUPPORT LTD.
Adult and Health Services,Head of Adults,Third Party Payments 4THIRD,478101,Purchase of Care,19/02/2019,3553656-1873648H,"1,153.28",BEECHFIELD CARE & SUPPORT LTD.
Adult and Health Services,Head of Adults,Third Party Payments 4THIRD,478101,Purchase of Care,19/02/2019,3553656-1874472H,"1,153.28",BEECHFIELD CARE & SUPPORT LTD.
Children and Young Peoples Services,Head of Education and Skills,Transport,230008,Contract Hire,06/02/2019,3547884-825,"1,423.67",BEELINE MINI BUSES.
Children and Young Peoples Services,Head of Education and Skills,Transport,230008,Contract Hire,06/02/2019,3547884-826,628.38,BEELINE MINI BUSES.
Children and Young Peoples Services,Head of Education and Skills,Transport,230008,Contract Hire,06/02/2019,3547884-827,634.41,BEELINE MINI BUSES.
Children and Young Peoples Services,Head of Education and Skills,Transport,230008,Contract Hire,06/02/2019,3547884-828,555.30,BEELINE MINI BUSES.
Children and Young Peoples Services,Head of Education and Skills,Transport,230016,Contract Hire,06/02/2019,3547885-SMITH2/JANUARY19,741.00,BEELINE PRIVATE HIRE.
Children and Young Peoples Services,Head of Education and Skills,Transport,230008,Contract Hire,06/02/2019,3547885-SMITH1/JANUARY19,"1,677.00",BEELINE PRIVATE HIRE.
Children and Young Peoples Services,Head of Education and Skills,Transport,230003,Contract Hire,18/02/2019,3551595-STJOHNS3003,"2,432.00",BELL BROTHERS TRAVEL.
Children and Young Peoples Services,Head of Education and Skills,Transport,230003,Contract Hire,18/02/2019,3551595-STJOHNS3005,"4,712.00",BELL BROTHERS TRAVEL.
Regeneration and Local Services,Direct Services,Third Party Payments 4THIRD,430100,Rendered by Private Contractors,21/02/2019,3554460-46056885,"1,808.62",BELL TRUCK SALES LTD T/A BELL TRUCK & VAN.
Regeneration and Local Services,Direct Services,Third Party Payments 4THIRD,430100,Rendered by Private Contractors,21/02/2019,3554460-46056887,"2,472.71",BELL TRUCK SALES LTD T/A BELL TRUCK & VAN.
Regeneration and Local Services,Direct Services,Transport,210057,Repair and Maintenance of Vehicles,12/02/2019,3549430-35159913,651.53,BELL TRUCK SALES LTD T/A BELL TRUCK & VAN.
Regeneration and Local Services,Direct Services,Transport,210057,Repair and Maintenance of Vehicles,12/02/2019,3549431-35160387,"2,235.35",BELL TRUCK SALES LTD T/A BELL TRUCK & VAN.
Regeneration and Local Services,Direct Services,Transport,210057,Repair and Maintenance of Vehicles,12/02/2019,3549431-35160425,689.70,BELL TRUCK SALES LTD T/A BELL TRUCK & VAN.
Regeneration and Local Services,Direct Services,Transport,210057,Repair and Maintenance of Vehicles,12/02/2019,3549431-35160433,684.69,BELL TRUCK SALES LTD T/A BELL TRUCK & VAN.
Regeneration and Local Services,Direct Services,Transport,210057,Repair and Maintenance of Vehicles,12/02/2019,3549431-35160737,720.14,BELL TRUCK SALES LTD T/A BELL TRUCK & VAN.
Regeneration and Local Services,Direct Services,Transport,210057,Repair and Maintenance of Vehicles,13/02/2019,3550421-35160686,959.94,BELL TRUCK SALES LTD T/A BELL TRUCK & VAN.
Regeneration and Local Services,Direct Services,Transport,210057,Repair and Maintenance of Vehicles,13/02/2019,3550421-35160766,920.30,BELL TRUCK SALES LTD T/A BELL TRUCK & VAN.
Regeneration and Local Services,Direct Services,Transport,210057,Repair and Maintenance of Vehicles,13/02/2019,3550421-35160826,689.70,BELL TRUCK SALES LTD T/A BELL TRUCK & VAN.
Regeneration and Local Services,Direct Services,Transport,210057,Repair and Maintenance of Vehicles,14/02/2019,3550853-15143427,"1,063.05",BELL TRUCK SALES LTD T/A BELL TRUCK & VAN.
Regeneration and Local Services,Direct Services,Transport,210057,Repair and Maintenance of Vehicles,14/02/2019,3550853-45056030,659.75,BELL TRUCK SALES LTD T/A BELL TRUCK & VAN.
Regeneration and Local Services,Direct Services,Transport,210057,Repair and Maintenance of Vehicles,15/02/2019,3551261-35160767,"1,438.34",BELL TRUCK SALES LTD T/A BELL TRUCK & VAN.
Regeneration and Local Services,Direct Services,Transport,210057,Repair and Maintenance of Vehicles,18/02/2019,3551596-35160877,667.03,BELL TRUCK SALES LTD T/A BELL TRUCK & VAN.
Regeneration and Local Services,Direct Services,Transport,210057,Repair and Maintenance of Vehicles,18/02/2019,3551596-35160990,937.60,BELL TRUCK SALES LTD T/A BELL TRUCK & VAN.
Regeneration and Local Services,Culture & Sport,Supplies and Services,338047,Services,25/02/2019,3555369-236,872.34,BEN WATERS (MUSICIAN).
Children and Young Peoples Services,Head of Education and Skills,Transport,230007,Contract Hire,06/02/2019,3547887-6-JAN19,"1,121.00",BENNETTS TAXIS.
Adult and Health Services,Head of Adults,Third Party Payments 4THIRD,470101,Purchase of Care,19/02/2019,3552945-2538247,"1,001.92",BENTON CARE SERVICES LTD.
Adult and Health Services,Head of Adults,Third Party Payments 4THIRD,470101,Purchase of Care,19/02/2019,3552945-2538248,"3,120.20",BENTON CARE SERVICES LTD.
Adult and Health Services,Head of Adults,Third Party Payments 4THIRD,470101,Purchase of Care,19/02/2019,3552945-2538249,"3,120.20",BENTON CARE SERVICES LTD.
Adult and Health Services,Head of Adults,Third Party Payments 4THIRD,470101,Purchase of Care,19/02/2019,3552945-2538250,"2,003.84",BENTON CARE SERVICES LTD.
Adult and Health Services,Head of Adults,Third Party Payments 4THIRD,470101,Purchase of Care,19/02/2019,3552945-2538251,"3,120.20",BENTON CARE SERVICES LTD.
Adult and Health Services,Head of Adults,Third Party Payments 4THIRD,470101,Purchase of Care,19/02/2019,3552945-2538252,"3,120.20",BENTON CARE SERVICES LTD.
Adult and Health Services,Head of Adults,Third Party Payments 4THIRD,470101,Purchase of Care,19/02/2019,3552945-2538253,"3,120.20",BENTON CARE SERVICES LTD.
Adult and Health Services,Head of Adults,Third Party Payments 4THIRD,470101,Purchase of Care,19/02/2019,3552945-2538254,"3,120.20",BENTON CARE SERVICES LTD.
Adult and Health Services,Public Health,Third Party Payments 4THIRD,460803,Contract Payments,21/02/2019,3554464-FQYW/00000147SC,552.00,BESTWAY NATIONAL CHEMIST LTD T/A WELL.
Adult and Health Services,Public Health,Third Party Payments 4THIRD,460803,Contract Payments,21/02/2019,3554467-FNQL/00000140SC,522.00,BESTWAY NATIONAL CHEMIST LTD T/A WELL.
Adult and Health Services,Public Health,Third Party Payments 4THIRD,460803,Contract Payments,21/02/2019,3554469-DYPD/00000166SC,774.00,BESTWAY NATIONAL CHEMIST LTD T/A WELL.
Adult and Health Services,Public Health,Third Party Payments 4THIRD,460803,Contract Payments,28/02/2019,3557336-FNQL/00000141NRT,574.44,BESTWAY NATIONAL CHEMIST LTD T/A WELL.
Children and Young Peoples Services,Head of Childrens Social Care,Third Party Payments 4THIRD,425040,Rendered by Voluntary Organisations,19/02/2019,3553272-PIG_1779,"5,720.12",BETA NORTH LTD T/A BETA CARE SERVICES.
Adult and Health Services,Public Health,Premises,145009,Cleaning and Domestic Supplies,25/02/2019,3555372-0000031576,"1,257.21",BETTAKLEEN LTD.
Adult and Health Services,Public Health,Premises,145009,Cleaning and Domestic Supplies,25/02/2019,3555372-0000031578,668.64,BETTAKLEEN LTD.
Transformation and Partnerships,Communications Management,Supplies and Services,336005,Advertising E336,08/02/2019,3548670-13669,"3,780.00",BEYOND DIGITAL SOLUTIONS LTD.
Adult and Health Services,Commissioning inc Supporting People,Third Party Payments 4THIRD,442002,Supporting People E442,13/02/2019,3550425-1968540,"16,448.04",BID SERVICES.
Children and Young Peoples Services,Head of Education and Skills,Transport,230006,Contract Hire,06/02/2019,3547889-F728-JAN,"1,209.60",BIG MAMA`S TAXI.
Dedicated Schools Grant,DSG High Needs Block,Transport,230010,Contract Hire,06/02/2019,3547889-B006-JAN,"1,408.00",BIG MAMA`S TAXI.
Children and Young Peoples Services,Head of Education and Skills,Transport,230008,Contract Hire,06/02/2019,3547889-A017-JAN,"1,824.00",BIG MAMA`S TAXI.
Children and Young Peoples Services,Head of Education and Skills,Vehicles Equipment Furniture and Fittings,912529,Purchase-equipment,27/02/2019,3556964-65001800244PROFORMA,"2,136.00",BIKEDOCKSOLUTIONS T/A UK AGGREGATES LTD.
Adult and Health Services,Head of Adults,Supplies and Services,304516,Equipment and Materials,08/02/2019,3548673-INV-0218,878.50,BILL SCOTT TAXIS LTD.
Children and Young Peoples Services,Head of Education and Skills,Transport,230007,Contract Hire,06/02/2019,3547891-05-JAN19,855.00,BILL`S TAXIS.
Regeneration and Local Services,Direct Services,Premises,108099,Service Repairs and Maintenance,01/02/2019,3547043-27047,"3,860.00",BIOCHEMICA GROUP LTD.
Regeneration and Local Services,Direct Services,Premises,108099,Service Repairs and Maintenance,01/02/2019,3547043-28801,"2,670.00",BIOCHEMICA GROUP LTD.
Regeneration and Local Services,Direct Services,Premises,108099,Service Repairs and Maintenance,08/02/2019,3548674-31389,785.00,BIOCHEMICA GROUP LTD.
Children and Young Peoples Services,Head of Education and Skills,Transport,230007,Contract Hire,06/02/2019,3547892-0090,532.00,BIRDS TAXIS LTD.
Children and Young Peoples Services,Head of Education and Skills,Transport,230009,Contract Hire,14/02/2019,3550861-0089-7317,990.00,BIRDS TAXIS LTD.
Children and Young Peoples Services,Head of Education and Skills,Transport,230016,Contract Hire,14/02/2019,3550861-0088-S001,"3,024.00",BIRDS TAXIS LTD.
Children and Young Peoples Services,Head of Education and Skills,Transport,230008,Contract Hire,14/02/2019,3550861-0099-S107,"1,242.00",BIRDS TAXIS LTD.
Adult and Health Services,Head of Adults,Transport,230005,Contract Hire,06/02/2019,3547892-AB0091,612.00,BIRDS TAXIS LTD.
Adult and Health Services,Head of Adults,Transport,230005,Contract Hire,06/02/2019,3547892-AB0095,616.00,BIRDS TAXIS LTD.
Dedicated Schools Grant,DSG Early Years Block,Transfer Payments,510032,School Children,25/02/2019,3555374-12063,"9,424.80",BISHOP AUCKLAND COLLEGE NURSERY.
Dedicated Schools Grant,DSG Early Years Block,Transfer Payments,510030,School Children,25/02/2019,3555374-12236,"31,133.87",BISHOP AUCKLAND COLLEGE NURSERY.
Dedicated Schools Grant,DSG Early Years Block,Transfer Payments,510030,School Children,25/02/2019,3555375-12237,"3,215.85",BISHOP IAN RAMSEY PRE SCHOOL.
Regeneration and Local Services,Direct Services,Supplies and Services,304359,Equipment and Materials,14/02/2019,3550862-BMPR/168/LWA,743.05,BISHOP MIDDLEHAM PLANT & RECYCLING LTD.
Regeneration and Local Services,Direct Services,Supplies and Services,304359,Equipment and Materials,14/02/2019,3550862-BMPR/175/LWA,614.05,BISHOP MIDDLEHAM PLANT & RECYCLING LTD.
Regeneration and Local Services,Direct Services,Supplies and Services,304359,Equipment and Materials,14/02/2019,3550862-BMPR/181/LWA,743.05,BISHOP MIDDLEHAM PLANT & RECYCLING LTD.
Regeneration and Local Services,Culture & Sport,Supplies and Services,304359,Equipment and Materials,27/02/2019,3556965-BMPR/188/LWA,614.05,BISHOP MIDDLEHAM PLANT & RECYCLING LTD.
Regeneration and Local Services,Direct Services,Supplies and Services,304359,Equipment and Materials,27/02/2019,3556965-BMPR/189/LWA,743.05,BISHOP MIDDLEHAM PLANT & RECYCLING LTD.
Children and Young Peoples Services,Head of Education and Skills,Transport,230008,Contract Hire,08/02/2019,3548675-23,"1,232.00",BL CARS.
Children and Young Peoples Services,Head of Education and Skills,Transport,230008,Contract Hire,13/02/2019,3550428-21N088,"2,140.00",BL CARS.
Regeneration and Local Services,Spatial Policy Planning Assets & Environment,Supplies and Services,304999,Equipment and Materials,05/02/2019,3547636-RED-02-2019-031,"2,559.99",BLACK HORSE BEAMISH LTD.
Children and Young Peoples Services,Head of Childrens Social Care,Supplies and Services,338066,Services,04/02/2019,3547445-SIN004603,"59,088.48",BLOOM PROCUREMENT SERVICES LTD (FORMERLY NEPRO LTD).
Children and Young Peoples Services,Head of Childrens Social Care,Supplies and Services,338066,Services,05/02/2019,3547637-SIN004444,"86,511.30",BLOOM PROCUREMENT SERVICES LTD (FORMERLY NEPRO LTD).
Regeneration and Local Services,Economic Development and Housing,Supplies and Services,338066,Services,20/02/2019,3554310-SIN005012,"38,275.52",BLOOM PROCUREMENT SERVICES LTD (FORMERLY NEPRO LTD).
Children and Young Peoples Services,Head of Childrens Social Care,Supplies and Services,338066,Services,26/02/2019,3556701-SIN005129,"81,280.67",BLOOM PROCUREMENT SERVICES LTD (FORMERLY NEPRO LTD).
Dedicated Schools Grant,DSG Early Years Block,Transfer Payments,510032,School Children,25/02/2019,3555377-12158,"2,314.12",BLUE SKY CHILDCARE.
Dedicated Schools Grant,DSG Early Years Block,Transfer Payments,510030,School Children,25/02/2019,3555377-12380,"5,705.70",BLUE SKY CHILDCARE.
Adult and Health Services,Head of Adults,Third Party Payments 4THIRD,479111,Purchase of Care,26/02/2019,3556702-201827,976.50,BLUE SKY TRUST.
Children and Young Peoples Services,Head of Education and Skills,Transport,230007,Contract Hire,01/02/2019,3547046-18904,540.00,BLUELINE TAXIS.
Children and Young Peoples Services,Head of Education and Skills,Transport,230007,Contract Hire,07/02/2019,3548309-19569,"1,300.00",BLUELINE TAXIS.
Children and Young Peoples Services,Head of Education and Skills,Transport,230007,Contract Hire,13/02/2019,3550429-20217,868.00,BLUELINE TAXIS.
Children and Young Peoples Services,Head of Education and Skills,Transport,230007,Contract Hire,14/02/2019,3550866-19558,880.00,BLUELINE TAXIS.
Children and Young Peoples Services,Head of Education and Skills,Transport,230007,Contract Hire,28/02/2019,3557345-20938,538.00,BLUELINE TAXIS.
Children and Young Peoples Services,Head of Education and Skills,Transport,230007,Contract Hire,28/02/2019,3557345-20939,874.00,BLUELINE TAXIS.
Children and Young Peoples Services,Head of Education and Skills,Transport,230009,Contract Hire,01/02/2019,3547046-18888,522.00,BLUELINE TAXIS.
Children and Young Peoples Services,Head of Education and Skills,Transport,230009,Contract Hire,04/02/2019,3547446-18346,"1,349.00",BLUELINE TAXIS.
Children and Young Peoples Services,Head of Education and Skills,Transport,230009,Contract Hire,04/02/2019,3547446-18905,"1,263.00",BLUELINE TAXIS.
Children and Young Peoples Services,Head of Education and Skills,Transport,230006,Contract Hire,13/02/2019,3550429-20162,"1,120.68",BLUELINE TAXIS.
Children and Young Peoples Services,Head of Education and Skills,Transport,230006,Contract Hire,13/02/2019,3550429-20165,986.50,BLUELINE TAXIS.
Children and Young Peoples Services,Head of Education and Skills,Transport,230006,Contract Hire,14/02/2019,3550866-20863,"1,352.00",BLUELINE TAXIS.
Children and Young Peoples Services,Head of Education and Skills,Transport,230006,Contract Hire,14/02/2019,3550866-20865,"1,130.20",BLUELINE TAXIS.
Children and Young Peoples Services,Head of Education and Skills,Transport,230012,Contract Hire,01/02/2019,3547046-19004,"1,020.00",BLUELINE TAXIS.
Children and Young Peoples Services,Head of Education and Skills,Transport,230012,Contract Hire,13/02/2019,3550429-20158,"2,016.00",BLUELINE TAXIS.
Children and Young Peoples Services,Head of Education and Skills,Transport,230012,Contract Hire,14/02/2019,3550866-19621,"2,640.00",BLUELINE TAXIS.
Children and Young Peoples Services,Head of Education and Skills,Transport,230012,Contract Hire,14/02/2019,3550866-20192,"1,330.00",BLUELINE TAXIS.
Children and Young Peoples Services,Head of Education and Skills,Transport,230016,Contract Hire,06/02/2019,3547895-18557,736.00,BLUELINE TAXIS.
Children and Young Peoples Services,Head of Education and Skills,Transport,230016,Contract Hire,13/02/2019,3550429-20160,540.00,BLUELINE TAXIS.
Children and Young Peoples Services,Head of Education and Skills,Transport,230016,Contract Hire,13/02/2019,3550429-20263,658.00,BLUELINE TAXIS.
Children and Young Peoples Services,Head of Education and Skills,Transport,230008,Contract Hire,01/02/2019,3547046-18374,"1,458.00",BLUELINE TAXIS.
Children and Young Peoples Services,Head of Education and Skills,Transport,230008,Contract Hire,01/02/2019,3547046-18376,"2,432.00",BLUELINE TAXIS.
Children and Young Peoples Services,Head of Education and Skills,Transport,230008,Contract Hire,01/02/2019,3547046-18890,"2,852.00",BLUELINE TAXIS.
Children and Young Peoples Services,Head of Education and Skills,Transport,230008,Contract Hire,01/02/2019,3547046-18891,"2,258.64",BLUELINE TAXIS.
Children and Young Peoples Services,Head of Education and Skills,Transport,230008,Contract Hire,01/02/2019,3547046-18912,"1,584.00",BLUELINE TAXIS.
Children and Young Peoples Services,Head of Education and Skills,Transport,230008,Contract Hire,01/02/2019,3547046-18923,"2,754.00",BLUELINE TAXIS.
Children and Young Peoples Services,Head of Education and Skills,Transport,230008,Contract Hire,01/02/2019,3547046-19062,600.00,BLUELINE TAXIS.
Children and Young Peoples Services,Head of Education and Skills,Transport,230008,Contract Hire,01/02/2019,3547046-19628,"1,330.00",BLUELINE TAXIS.
Children and Young Peoples Services,Head of Education and Skills,Transport,230008,Contract Hire,04/02/2019,3547446-19058,"1,124.50",BLUELINE TAXIS.
Children and Young Peoples Services,Head of Education and Skills,Transport,230008,Contract Hire,06/02/2019,3547895-18916,"1,979.00",BLUELINE TAXIS.
Children and Young Peoples Services,Head of Education and Skills,Transport,230008,Contract Hire,06/02/2019,3547895-19005,865.00,BLUELINE TAXIS.
Children and Young Peoples Services,Head of Education and Skills,Transport,230008,Contract Hire,13/02/2019,3550429-20136,742.50,BLUELINE TAXIS.
Children and Young Peoples Services,Head of Education and Skills,Transport,230008,Contract Hire,13/02/2019,3550429-20138,"2,480.00",BLUELINE TAXIS.
Children and Young Peoples Services,Head of Education and Skills,Transport,230008,Contract Hire,13/02/2019,3550429-20161,"1,856.00",BLUELINE TAXIS.
Children and Young Peoples Services,Head of Education and Skills,Transport,230008,Contract Hire,13/02/2019,3550429-20191,"1,875.00",BLUELINE TAXIS.
Children and Young Peoples Services,Head of Education and Skills,Transport,230008,Contract Hire,13/02/2019,3550429-20205,"1,710.00",BLUELINE TAXIS.
Children and Young Peoples Services,Head of Education and Skills,Transport,230008,Contract Hire,14/02/2019,3550866-20157-DEC,940.00,BLUELINE TAXIS.
Children and Young Peoples Services,Head of Education and Skills,Transport,230008,Contract Hire,14/02/2019,3550866-20195,"1,575.00",BLUELINE TAXIS.
Adult and Health Services,Head of Adults,Transport,230005,Contract Hire,13/02/2019,3550429-20156,552.00,BLUELINE TAXIS.
Adult and Health Services,Head of Adults,Transport,230005,Contract Hire,15/02/2019,3551265-20892,504.00,BLUELINE TAXIS.
Adult and Health Services,Head of Adults,Transport,230005,Contract Hire,15/02/2019,3551265-20893,616.00,BLUELINE TAXIS.
Children and Young Peoples Services,Head of Education and Skills,Transport,230003,Contract Hire,13/02/2019,3550430-2218,"1,944.00",BOB SMITH COACHES.
Children and Young Peoples Services,Head of Education and Skills,Transport,230008,Contract Hire,06/02/2019,3547896-7029,"2,820.00",BOBBY DOVE.
Adult and Health Services,Head of Adults,Transport,230005,Contract Hire,06/02/2019,3547896-7077/2019,"1,189.00",BOBBY DOVE.
Children and Young Peoples Services,"Head of Early Help, Inclusion and Vulnerable Children",Transport,230007,Contract Hire,06/02/2019,3547897-76B,"2,470.00",BOBS TAXIS.
Children and Young Peoples Services,Head of Education and Skills,Transport,230008,Contract Hire,06/02/2019,3547897-76,"1,260.00",BOBS TAXIS.
Adult and Health Services,Head of Adults,Third Party Payments 4THIRD,474101,Purchase of Care,19/02/2019,3552948-2534013,"2,371.44",BONDCARE WILLINGTON LTD.
Adult and Health Services,Head of Adults,Third Party Payments 4THIRD,474101,Purchase of Care,19/02/2019,3552948-2534020,"2,935.28",BONDCARE WILLINGTON LTD.
Adult and Health Services,Head of Adults,Third Party Payments 4THIRD,474101,Purchase of Care,19/02/2019,3552948-2534029,"2,935.28",BONDCARE WILLINGTON LTD.
Adult and Health Services,Head of Adults,Third Party Payments 4THIRD,474101,Purchase of Care,19/02/2019,3552948-2534036,"2,371.44",BONDCARE WILLINGTON LTD.
Adult and Health Services,Head of Adults,Third Party Payments 4THIRD,474101,Purchase of Care,19/02/2019,3552948-2534040,"2,371.44",BONDCARE WILLINGTON LTD.
Adult and Health Services,Head of Adults,Third Party Payments 4THIRD,474101,Purchase of Care,19/02/2019,3552948-2534045,"2,381.52",BONDCARE WILLINGTON LTD.
Adult and Health Services,Head of Adults,Third Party Payments 4THIRD,474101,Purchase of Care,19/02/2019,3552948-2534049,"2,371.44",BONDCARE WILLINGTON LTD.
Adult and Health Services,Head of Adults,Third Party Payments 4THIRD,474101,Purchase of Care,19/02/2019,3552948-2534053,"2,371.44",BONDCARE WILLINGTON LTD.
Adult and Health Services,Head of Adults,Third Party Payments 4THIRD,474101,Purchase of Care,19/02/2019,3552950-2535563,"2,371.44",BONDCARE WILLINGTON LTD.
Adult and Health Services,Head of Adults,Third Party Payments 4THIRD,474101,Purchase of Care,19/02/2019,3552950-2535565,"1,185.72",BONDCARE WILLINGTON LTD.
Adult and Health Services,Head of Adults,Third Party Payments 4THIRD,474101,Purchase of Care,19/02/2019,3552950-2535566,"2,393.32",BONDCARE WILLINGTON LTD.
Adult and Health Services,Head of Adults,Third Party Payments 4THIRD,474101,Purchase of Care,19/02/2019,3552950-2535574,"1,185.72",BONDCARE WILLINGTON LTD.
Adult and Health Services,Head of Adults,Third Party Payments 4THIRD,474101,Purchase of Care,19/02/2019,3552950-2535576,"2,371.44",BONDCARE WILLINGTON LTD.
Adult and Health Services,Head of Adults,Third Party Payments 4THIRD,474101,Purchase of Care,19/02/2019,3552950-2535578,"1,185.72",BONDCARE WILLINGTON LTD.
Adult and Health Services,Head of Adults,Third Party Payments 4THIRD,474101,Purchase of Care,19/02/2019,3552950-2535580,"1,185.72",BONDCARE WILLINGTON LTD.
Adult and Health Services,Head of Adults,Third Party Payments 4THIRD,474101,Purchase of Care,19/02/2019,3552950-2535582,"2,371.44",BONDCARE WILLINGTON LTD.
Adult and Health Services,Head of Adults,Third Party Payments 4THIRD,474101,Purchase of Care,19/02/2019,3552950-2535584,"2,371.44",BONDCARE WILLINGTON LTD.
Adult and Health Services,Head of Adults,Third Party Payments 4THIRD,474101,Purchase of Care,19/02/2019,3552950-2535588,"1,185.72",BONDCARE WILLINGTON LTD.
Adult and Health Services,Head of Adults,Third Party Payments 4THIRD,474101,Purchase of Care,19/02/2019,3552950-2535589,920.52,BONDCARE WILLINGTON LTD.
Adult and Health Services,Head of Adults,Third Party Payments 4THIRD,474101,Purchase of Care,19/02/2019,3552950-2535591,"2,371.44",BONDCARE WILLINGTON LTD.
Adult and Health Services,Head of Adults,Third Party Payments 4THIRD,474101,Purchase of Care,19/02/2019,3552950-2535594,"1,185.72",BONDCARE WILLINGTON LTD.
Adult and Health Services,Head of Adults,Third Party Payments 4THIRD,474101,Purchase of Care,19/02/2019,3552950-2535600,"2,371.44",BONDCARE WILLINGTON LTD.
Adult and Health Services,Head of Adults,Third Party Payments 4THIRD,474101,Purchase of Care,19/02/2019,3552950-2535602,"2,371.44",BONDCARE WILLINGTON LTD.
Adult and Health Services,Head of Adults,Third Party Payments 4THIRD,474101,Purchase of Care,19/02/2019,3552950-2535612,"2,371.44",BONDCARE WILLINGTON LTD.
Adult and Health Services,Head of Adults,Third Party Payments 4THIRD,474101,Purchase of Care,19/02/2019,3552950-2535618,"1,185.72",BONDCARE WILLINGTON LTD.
Adult and Health Services,Head of Adults,Third Party Payments 4THIRD,474101,Purchase of Care,26/02/2019,3556703-WINTERJAN19-038,"4,194.41",BONDCARE WILLINGTON LTD.
Adult and Health Services,Head of Adults,Third Party Payments 4THIRD,474101,Purchase of Care,26/02/2019,3556705-WINTERJAN19-131,"4,929.21",BONDCARE WILLINGTON LTD.
Adult and Health Services,Head of Adults,Third Party Payments 4THIRD,470101,Purchase of Care,19/02/2019,3552947-2535729,"2,350.84",BONDCARE WILLINGTON LTD.
Adult and Health Services,Head of Adults,Third Party Payments 4THIRD,470101,Purchase of Care,19/02/2019,3552947-2535735,"2,350.84",BONDCARE WILLINGTON LTD.
Adult and Health Services,Head of Adults,Third Party Payments 4THIRD,470101,Purchase of Care,19/02/2019,3552947-2535739,"2,350.84",BONDCARE WILLINGTON LTD.
Adult and Health Services,Head of Adults,Third Party Payments 4THIRD,470101,Purchase of Care,19/02/2019,3552947-2535740,"2,350.84",BONDCARE WILLINGTON LTD.
Adult and Health Services,Head of Adults,Third Party Payments 4THIRD,470101,Purchase of Care,19/02/2019,3552947-2535743,"2,350.84",BONDCARE WILLINGTON LTD.
Adult and Health Services,Head of Adults,Third Party Payments 4THIRD,470101,Purchase of Care,19/02/2019,3552947-2535745,"2,350.84",BONDCARE WILLINGTON LTD.
Adult and Health Services,Head of Adults,Third Party Payments 4THIRD,470101,Purchase of Care,19/02/2019,3552948-2534016,"2,279.00",BONDCARE WILLINGTON LTD.
Adult and Health Services,Head of Adults,Third Party Payments 4THIRD,470101,Purchase of Care,19/02/2019,3552948-2534018,"2,279.00",BONDCARE WILLINGTON LTD.
Adult and Health Services,Head of Adults,Third Party Payments 4THIRD,470101,Purchase of Care,19/02/2019,3552948-2534019,"2,279.00",BONDCARE WILLINGTON LTD.
Adult and Health Services,Head of Adults,Third Party Payments 4THIRD,470101,Purchase of Care,19/02/2019,3552948-2534023,"2,899.48",BONDCARE WILLINGTON LTD.
Adult and Health Services,Head of Adults,Third Party Payments 4THIRD,470101,Purchase of Care,19/02/2019,3552948-2534024,"3,808.00",BONDCARE WILLINGTON LTD.
Adult and Health Services,Head of Adults,Third Party Payments 4THIRD,470101,Purchase of Care,19/02/2019,3552948-2534026,"2,279.00",BONDCARE WILLINGTON LTD.
Adult and Health Services,Head of Adults,Third Party Payments 4THIRD,470101,Purchase of Care,19/02/2019,3552948-2534031,"2,899.48",BONDCARE WILLINGTON LTD.
Adult and Health Services,Head of Adults,Third Party Payments 4THIRD,470101,Purchase of Care,19/02/2019,3552948-2534032,"2,279.00",BONDCARE WILLINGTON LTD.
Adult and Health Services,Head of Adults,Third Party Payments 4THIRD,470101,Purchase of Care,19/02/2019,3552948-2534034,"2,279.00",BONDCARE WILLINGTON LTD.
Adult and Health Services,Head of Adults,Third Party Payments 4THIRD,470101,Purchase of Care,19/02/2019,3552948-2534035,"2,350.84",BONDCARE WILLINGTON LTD.
Adult and Health Services,Head of Adults,Third Party Payments 4THIRD,470101,Purchase of Care,19/02/2019,3552948-2534038,"2,279.00",BONDCARE WILLINGTON LTD.
Adult and Health Services,Head of Adults,Third Party Payments 4THIRD,470101,Purchase of Care,19/02/2019,3552948-2534039,"2,279.00",BONDCARE WILLINGTON LTD.
Adult and Health Services,Head of Adults,Third Party Payments 4THIRD,470101,Purchase of Care,19/02/2019,3552948-2534042,"2,279.00",BONDCARE WILLINGTON LTD.
Adult and Health Services,Head of Adults,Third Party Payments 4THIRD,470101,Purchase of Care,19/02/2019,3552948-2534043,"2,350.84",BONDCARE WILLINGTON LTD.
Adult and Health Services,Head of Adults,Third Party Payments 4THIRD,470101,Purchase of Care,19/02/2019,3552948-2534044,"2,279.00",BONDCARE WILLINGTON LTD.
Adult and Health Services,Head of Adults,Third Party Payments 4THIRD,470101,Purchase of Care,19/02/2019,3552948-2534047,"2,279.00",BONDCARE WILLINGTON LTD.
Adult and Health Services,Head of Adults,Third Party Payments 4THIRD,470101,Purchase of Care,19/02/2019,3552948-2534048,"2,350.84",BONDCARE WILLINGTON LTD.
Adult and Health Services,Head of Adults,Third Party Payments 4THIRD,470101,Purchase of Care,19/02/2019,3552948-2534051,"2,279.00",BONDCARE WILLINGTON LTD.
Adult and Health Services,Head of Adults,Third Party Payments 4THIRD,470101,Purchase of Care,19/02/2019,3552948-2534052,"2,350.84",BONDCARE WILLINGTON LTD.
Adult and Health Services,Head of Adults,Third Party Payments 4THIRD,470101,Purchase of Care,19/02/2019,3552948-2534055,"2,350.84",BONDCARE WILLINGTON LTD.
Adult and Health Services,Head of Adults,Third Party Payments 4THIRD,470101,Purchase of Care,19/02/2019,3552948-2534056,"2,350.84",BONDCARE WILLINGTON LTD.
Adult and Health Services,Head of Adults,Third Party Payments 4THIRD,470101,Purchase of Care,19/02/2019,3552948-2534057,"2,350.84",BONDCARE WILLINGTON LTD.
Adult and Health Services,Head of Adults,Third Party Payments 4THIRD,470101,Purchase of Care,19/02/2019,3552948-2538464,"2,924.98",BONDCARE WILLINGTON LTD.
Adult and Health Services,Head of Adults,Third Party Payments 4THIRD,470101,Purchase of Care,19/02/2019,3552948-2538486,"4,313.82",BONDCARE WILLINGTON LTD.
Adult and Health Services,Head of Adults,Third Party Payments 4THIRD,470101,Purchase of Care,19/02/2019,3552948-2538522,"1,035.52",BONDCARE WILLINGTON LTD.
Adult and Health Services,Head of Adults,Third Party Payments 4THIRD,470101,Purchase of Care,19/02/2019,3552948-2538785,"2,116.21",BONDCARE WILLINGTON LTD.
Adult and Health Services,Head of Adults,Third Party Payments 4THIRD,470101,Purchase of Care,19/02/2019,3552949-2536935,"2,052.00",BONDCARE WILLINGTON LTD.
Adult and Health Services,Head of Adults,Third Party Payments 4THIRD,470101,Purchase of Care,19/02/2019,3552950-2535562,"3,087.24",BONDCARE WILLINGTON LTD.
Adult and Health Services,Head of Adults,Third Party Payments 4THIRD,470101,Purchase of Care,19/02/2019,3552950-2535568,606.00,BONDCARE WILLINGTON LTD.
Adult and Health Services,Head of Adults,Third Party Payments 4THIRD,470101,Purchase of Care,19/02/2019,3552950-2535569,"2,350.84",BONDCARE WILLINGTON LTD.
Adult and Health Services,Head of Adults,Third Party Payments 4THIRD,470101,Purchase of Care,19/02/2019,3552950-2535570,"2,350.84",BONDCARE WILLINGTON LTD.
Adult and Health Services,Head of Adults,Third Party Payments 4THIRD,470101,Purchase of Care,19/02/2019,3552950-2535571,"2,350.84",BONDCARE WILLINGTON LTD.
Adult and Health Services,Head of Adults,Third Party Payments 4THIRD,470101,Purchase of Care,19/02/2019,3552950-2535572,526.00,BONDCARE WILLINGTON LTD.
Adult and Health Services,Head of Adults,Third Party Payments 4THIRD,470101,Purchase of Care,19/02/2019,3552950-2535587,"2,350.84",BONDCARE WILLINGTON LTD.
Adult and Health Services,Head of Adults,Third Party Payments 4THIRD,470101,Purchase of Care,19/02/2019,3552950-2535593,"2,350.84",BONDCARE WILLINGTON LTD.
Adult and Health Services,Head of Adults,Third Party Payments 4THIRD,470101,Purchase of Care,19/02/2019,3552950-2535597,"2,350.84",BONDCARE WILLINGTON LTD.
Adult and Health Services,Head of Adults,Third Party Payments 4THIRD,470101,Purchase of Care,19/02/2019,3552950-2535598,"1,175.44",BONDCARE WILLINGTON LTD.
Adult and Health Services,Head of Adults,Third Party Payments 4THIRD,470101,Purchase of Care,19/02/2019,3552950-2535599,552.32,BONDCARE WILLINGTON LTD.
Adult and Health Services,Head of Adults,Third Party Payments 4THIRD,470101,Purchase of Care,19/02/2019,3552950-2535604,"2,350.84",BONDCARE WILLINGTON LTD.
Adult and Health Services,Head of Adults,Third Party Payments 4THIRD,470101,Purchase of Care,19/02/2019,3552950-2535606,"8,521.20",BONDCARE WILLINGTON LTD.
Adult and Health Services,Head of Adults,Third Party Payments 4THIRD,470101,Purchase of Care,19/02/2019,3552950-2535607,"2,350.84",BONDCARE WILLINGTON LTD.
Adult and Health Services,Head of Adults,Third Party Payments 4THIRD,470101,Purchase of Care,19/02/2019,3552950-2535608,"2,350.84",BONDCARE WILLINGTON LTD.
Adult and Health Services,Head of Adults,Third Party Payments 4THIRD,470101,Purchase of Care,19/02/2019,3552950-2535609,736.40,BONDCARE WILLINGTON LTD.
Adult and Health Services,Head of Adults,Third Party Payments 4THIRD,470101,Purchase of Care,19/02/2019,3552950-2535610,"2,350.84",BONDCARE WILLINGTON LTD.
Adult and Health Services,Head of Adults,Third Party Payments 4THIRD,470101,Purchase of Care,19/02/2019,3552950-2535611,"2,350.84",BONDCARE WILLINGTON LTD.
Adult and Health Services,Head of Adults,Third Party Payments 4THIRD,470101,Purchase of Care,19/02/2019,3552950-2535614,"2,350.84",BONDCARE WILLINGTON LTD.
Adult and Health Services,Head of Adults,Third Party Payments 4THIRD,470101,Purchase of Care,19/02/2019,3552950-2535615,"2,350.84",BONDCARE WILLINGTON LTD.
Adult and Health Services,Head of Adults,Third Party Payments 4THIRD,470101,Purchase of Care,19/02/2019,3552950-2535616,"2,350.84",BONDCARE WILLINGTON LTD.
Adult and Health Services,Head of Adults,Third Party Payments 4THIRD,470101,Purchase of Care,19/02/2019,3552950-2535617,"4,536.00",BONDCARE WILLINGTON LTD.
Adult and Health Services,Head of Adults,Third Party Payments 4THIRD,470101,Purchase of Care,19/02/2019,3552950-2538774,519.43,BONDCARE WILLINGTON LTD.
Adult and Health Services,Head of Adults,Third Party Payments 4THIRD,470101,Purchase of Care,19/02/2019,3552950-2538812,755.62,BONDCARE WILLINGTON LTD.
Adult and Health Services,Head of Adults,Third Party Payments 4THIRD,470101,Purchase of Care,26/02/2019,3556703-WINTERJAN19-037,"5,014.97",BONDCARE WILLINGTON LTD.
Adult and Health Services,Head of Adults,Third Party Payments 4THIRD,471101,Purchase of Care,19/02/2019,3552947-2535721,"2,363.08",BONDCARE WILLINGTON LTD.
Adult and Health Services,Head of Adults,Third Party Payments 4THIRD,471101,Purchase of Care,19/02/2019,3552947-2535722,"2,363.08",BONDCARE WILLINGTON LTD.
Adult and Health Services,Head of Adults,Third Party Payments 4THIRD,471101,Purchase of Care,19/02/2019,3552947-2535723,"2,363.08",BONDCARE WILLINGTON LTD.
Adult and Health Services,Head of Adults,Third Party Payments 4THIRD,471101,Purchase of Care,19/02/2019,3552947-2535724,"2,363.08",BONDCARE WILLINGTON LTD.
Adult and Health Services,Head of Adults,Third Party Payments 4THIRD,471101,Purchase of Care,19/02/2019,3552947-2535725,"2,363.08",BONDCARE WILLINGTON LTD.
Adult and Health Services,Head of Adults,Third Party Payments 4THIRD,471101,Purchase of Care,19/02/2019,3552947-2535726,"2,363.08",BONDCARE WILLINGTON LTD.
Adult and Health Services,Head of Adults,Third Party Payments 4THIRD,471101,Purchase of Care,19/02/2019,3552947-2535727,"2,363.08",BONDCARE WILLINGTON LTD.
Adult and Health Services,Head of Adults,Third Party Payments 4THIRD,471101,Purchase of Care,19/02/2019,3552947-2535728,"1,181.52",BONDCARE WILLINGTON LTD.
Adult and Health Services,Head of Adults,Third Party Payments 4THIRD,471101,Purchase of Care,19/02/2019,3552947-2535730,"2,363.08",BONDCARE WILLINGTON LTD.
Adult and Health Services,Head of Adults,Third Party Payments 4THIRD,471101,Purchase of Care,19/02/2019,3552947-2535731,843.95,BONDCARE WILLINGTON LTD.
Adult and Health Services,Head of Adults,Third Party Payments 4THIRD,471101,Purchase of Care,19/02/2019,3552947-2535732,"2,363.08",BONDCARE WILLINGTON LTD.
Adult and Health Services,Head of Adults,Third Party Payments 4THIRD,471101,Purchase of Care,19/02/2019,3552947-2535733,"2,363.08",BONDCARE WILLINGTON LTD.
Adult and Health Services,Head of Adults,Third Party Payments 4THIRD,471101,Purchase of Care,19/02/2019,3552947-2535734,"2,363.08",BONDCARE WILLINGTON LTD.
Adult and Health Services,Head of Adults,Third Party Payments 4THIRD,471101,Purchase of Care,19/02/2019,3552947-2535736,"2,363.08",BONDCARE WILLINGTON LTD.
Adult and Health Services,Head of Adults,Third Party Payments 4THIRD,471101,Purchase of Care,19/02/2019,3552947-2535737,"2,363.08",BONDCARE WILLINGTON LTD.
Adult and Health Services,Head of Adults,Third Party Payments 4THIRD,471101,Purchase of Care,19/02/2019,3552947-2535738,"1,181.56",BONDCARE WILLINGTON LTD.
Adult and Health Services,Head of Adults,Third Party Payments 4THIRD,471101,Purchase of Care,19/02/2019,3552947-2535741,"2,363.08",BONDCARE WILLINGTON LTD.
Adult and Health Services,Head of Adults,Third Party Payments 4THIRD,471101,Purchase of Care,19/02/2019,3552947-2535742,"2,363.08",BONDCARE WILLINGTON LTD.
Adult and Health Services,Head of Adults,Third Party Payments 4THIRD,471101,Purchase of Care,19/02/2019,3552947-2535744,"2,363.08",BONDCARE WILLINGTON LTD.
Adult and Health Services,Head of Adults,Third Party Payments 4THIRD,471101,Purchase of Care,19/02/2019,3552947-2535746,"2,363.08",BONDCARE WILLINGTON LTD.
Adult and Health Services,Head of Adults,Third Party Payments 4THIRD,471101,Purchase of Care,19/02/2019,3552947-2535747,"2,363.08",BONDCARE WILLINGTON LTD.
Adult and Health Services,Head of Adults,Third Party Payments 4THIRD,471101,Purchase of Care,19/02/2019,3552947-2535748,"2,363.08",BONDCARE WILLINGTON LTD.
Adult and Health Services,Head of Adults,Third Party Payments 4THIRD,471101,Purchase of Care,19/02/2019,3552947-2535749,"2,363.08",BONDCARE WILLINGTON LTD.
Adult and Health Services,Head of Adults,Third Party Payments 4THIRD,471101,Purchase of Care,19/02/2019,3552950-2535586,"2,363.08",BONDCARE WILLINGTON LTD.
Adult and Health Services,Head of Adults,Third Party Payments 4THIRD,471101,Purchase of Care,26/02/2019,3556704-WINTERJAN19-047,"7,474.99",BONDCARE WILLINGTON LTD.
Adult and Health Services,Head of Adults,Third Party Payments 4THIRD,478101,Purchase of Care,19/02/2019,3553664-1877549H,"6,106.00",BONDCARE WILLINGTON LTD.
Adult and Health Services,Head of Adults,Third Party Payments 4THIRD,478101,Purchase of Care,19/02/2019,3553664-1877550H,"4,509.12",BONDCARE WILLINGTON LTD.
Adult and Health Services,Head of Adults,Third Party Payments 4THIRD,478101,Purchase of Care,19/02/2019,3553664-1877551H,"8,195.60",BONDCARE WILLINGTON LTD.
Adult and Health Services,Head of Adults,Third Party Payments 4THIRD,473101,Purchase of Care,19/02/2019,3553667-1870960D,"1,508.40",BONDCARE WILLINGTON LTD..
Adult and Health Services,Head of Adults,Third Party Payments 4THIRD,473101,Purchase of Care,19/02/2019,3553667-1871233D,660.00,BONDCARE WILLINGTON LTD..
Adult and Health Services,Head of Adults,Third Party Payments 4THIRD,473101,Purchase of Care,19/02/2019,3553667-1871453D,"1,055.88",BONDCARE WILLINGTON LTD..
Adult and Health Services,Head of Adults,Third Party Payments 4THIRD,473101,Purchase of Care,19/02/2019,3553667-1871800D,"1,759.80",BONDCARE WILLINGTON LTD..
Adult and Health Services,Head of Adults,Third Party Payments 4THIRD,473101,Purchase of Care,19/02/2019,3553667-1872095D,"1,959.80",BONDCARE WILLINGTON LTD..
Adult and Health Services,Head of Adults,Third Party Payments 4THIRD,473101,Purchase of Care,19/02/2019,3553667-1872158D,528.00,BONDCARE WILLINGTON LTD..
Adult and Health Services,Head of Adults,Third Party Payments 4THIRD,473101,Purchase of Care,19/02/2019,3553667-1872169D,"1,508.40",BONDCARE WILLINGTON LTD..
Adult and Health Services,Head of Adults,Third Party Payments 4THIRD,473101,Purchase of Care,19/02/2019,3553667-1872197D,905.00,BONDCARE WILLINGTON LTD..
Adult and Health Services,Head of Adults,Third Party Payments 4THIRD,473101,Purchase of Care,19/02/2019,3553667-1872562D,"1,977.24",BONDCARE WILLINGTON LTD..
Adult and Health Services,Head of Adults,Third Party Payments 4THIRD,473101,Purchase of Care,19/02/2019,3553667-1872802D,603.36,BONDCARE WILLINGTON LTD..
Adult and Health Services,Head of Adults,Third Party Payments 4THIRD,473101,Purchase of Care,19/02/2019,3553667-1873115D,528.00,BONDCARE WILLINGTON LTD..
Adult and Health Services,Head of Adults,Third Party Payments 4THIRD,473101,Purchase of Care,19/02/2019,3553667-1873304D,"1,759.80",BONDCARE WILLINGTON LTD..
Adult and Health Services,Head of Adults,Third Party Payments 4THIRD,473101,Purchase of Care,19/02/2019,3553667-1875212D,758.64,BONDCARE WILLINGTON LTD..
Regeneration and Local Services,Culture & Sport,Supplies and Services,312013,Newspapers books and periodicals E312,22/02/2019,3554981-130340,737.49,BOOK PROTECTORS & COMPANY.
Adult and Health Services,Public Health,Third Party Payments 4THIRD,460803,Contract Payments,21/02/2019,3554480-DPWT/00000179SC,570.00,BOOTS THE CHEMISTS LTD.*
Adult and Health Services,Public Health,Third Party Payments 4THIRD,460803,Contract Payments,21/02/2019,3554483-DWTP/00000168SC,572.00,BOOTS THE CHEMISTS LTD.*
Adult and Health Services,Public Health,Third Party Payments 4THIRD,460803,Contract Payments,21/02/2019,3554484-FNHN/00000105SC,846.00,BOOTS THE CHEMISTS LTD.*
Adult and Health Services,Public Health,Third Party Payments 4THIRD,460803,Contract Payments,21/02/2019,3554485-DRJY/00000166SC,928.00,BOOTS THE CHEMISTS LTD.*
Adult and Health Services,Public Health,Third Party Payments 4THIRD,460803,Contract Payments,21/02/2019,3554495-FHRN/00000164SC,942.00,BOOTS THE CHEMISTS LTD.*
Adult and Health Services,Public Health,Third Party Payments 4THIRD,460803,Contract Payments,28/02/2019,3557355-FCPT/00000151NRT,581.60,BOOTS THE CHEMISTS LTD.*
Dedicated Schools Grant,DSG Early Years Block,Transfer Payments,510030,School Children,25/02/2019,3555379-12238,"5,276.70",BOW SCHOOL & NURSERY.
Children and Young Peoples Services,Head of Education and Skills,Transport,230009,Contract Hire,01/02/2019,3547050-002-JAN19,864.00,BOWBURN TAXIS.
Children and Young Peoples Services,Head of Education and Skills,Transport,230009,Contract Hire,01/02/2019,3547050-004-G006,"1,200.00",BOWBURN TAXIS.
Dedicated Schools Grant,DSG Early Years Block,Transfer Payments,510032,School Children,25/02/2019,3555381-12064,"1,051.87",BOWES PRE SCHOOL.
Dedicated Schools Grant,DSG Early Years Block,Transfer Payments,510030,School Children,25/02/2019,3555381-12239,"3,141.45",BOWES PRE SCHOOL.
Children and Young Peoples Services,Head of Education and Skills,Transport,230008,Contract Hire,06/02/2019,3547898-DC05,"2,052.00",BOWES TRAVEL.
Children and Young Peoples Services,Central Charges (CYPS),Supplies and Services,384197,Miscellaneous Expenses,25/02/2019,3555382-A0017287,"1,481.44",BOX IT NORTH.
Regeneration and Local Services,Technical Services,Stock A926,926900,Stock in hand-Inventory system,28/02/2019,3557360-17563,840.00,BOXCLEVER TOTAL WASTE MANAGEMENT LTD.
Regeneration and Local Services,Direct Services,Supplies and Services,304221,Equipment and Materials,28/02/2019,3557362-190261,"2,800.00",BRAMBLEDOWN LANDSCAPE SERVICES LTD.
Regeneration and Local Services,Culture & Sport,Premises,145023,Cleaning and Domestic Supplies,01/02/2019,3547052-22SI2243956,"1,478.74",BRENNTAG UK LTD.
Regeneration and Local Services,Culture & Sport,Premises,145023,Cleaning and Domestic Supplies,19/02/2019,3552693-22SI2244639,"1,063.61",BRENNTAG UK LTD.
Regeneration and Local Services,Culture & Sport,Premises,145023,Cleaning and Domestic Supplies,20/02/2019,3554312-22SI2244822,884.80,BRENNTAG UK LTD.
Regeneration and Local Services,Culture & Sport,Premises,145023,Cleaning and Domestic Supplies,25/02/2019,3555384-22SI2245062,697.64,BRENNTAG UK LTD.
Children and Young Peoples Services,Head of Education and Skills,Transport,230008,Contract Hire,06/02/2019,3547902-BZ00290,"1,026.00",BREZ`S TAXIS.
Children and Young Peoples Services,Head of Education and Skills,Transport,230008,Contract Hire,06/02/2019,3547902-BZ00291,931.00,BREZ`S TAXIS.
Adult and Health Services,Head of Adults,Transport,230005,Contract Hire,06/02/2019,3547902-BZ00288,768.00,BREZ`S TAXIS.
Adult and Health Services,Head of Adults,Transport,230005,Contract Hire,06/02/2019,3547902-BZ00289,616.00,BREZ`S TAXIS.
Regeneration and Local Services,Economic Development and Housing,Construction work A908,908105,Construction work,20/02/2019,3554313-1296,"3,850.00",BRIAN J STRONG.
Children and Young Peoples Services,Head of Education and Skills,Transport,230008,Contract Hire,14/02/2019,3550868-5-E070,"1,425.00",BRIAN PURVIS T/A BJ`S TAXIS.
Adult and Health Services,Head of Adults,Transport,230005,Contract Hire,11/02/2019,3549136-1-SLD017,705.90,BRIAN PURVIS T/A BJ`S TAXIS.
Regeneration and Local Services,Technical Services,Third Party Payments 4THIRD,430100,Rendered by Private Contractors,25/02/2019,3555385-44584,"2,882.20",BRIDGEWAY CONSULTING LTD.
Regeneration and Local Services,Technical Services,Third Party Payments 4THIRD,430100,Rendered by Private Contractors,25/02/2019,3555385-44585,"3,410.50",BRIDGEWAY CONSULTING LTD.
Dedicated Schools Grant,DSG Early Years Block,Transfer Payments,510032,School Children,25/02/2019,3555386-12067,"8,625.37",BRIGHT STAR NURSERY.
Dedicated Schools Grant,DSG Early Years Block,Transfer Payments,510030,School Children,25/02/2019,3555386-12243,"30,784.50",BRIGHT STAR NURSERY.
Adult and Health Services,Head of Adults,Third Party Payments 4THIRD,470101,Purchase of Care,19/02/2019,3552951-2538217,"1,576.24",BRIGHTERKIND T/A AVERY HOUSE HEALTHCARE LTD.
Resources,Digital and Customer Services,Supplies and Services,344111,Telephones,12/02/2019,3549440-VP90592270M16101,"3,036.09",BRITISH TELECOMMUNICATIONS PLC.
Regeneration and Local Services,Transport and Contracted Services,Supplies and Services,344033,Telephones,11/02/2019,3549137-NE20902556Q044IR,"2,472.58",BRITISH TELECOMMUNICATIONS PLC.
Adult and Health Services,Public Health,Third Party Payments 4THIRD,460803,Contract Payments,21/02/2019,3554510-DXNF/00000150SC,522.00,BRITTON & ROBSON LTD.
Adult and Health Services,Public Health,Third Party Payments 4THIRD,460803,Contract Payments,28/02/2019,3557365-DXNF/00000151NRT,"1,306.96",BRITTON & ROBSON LTD.
Adult and Health Services,Head of Adults,Third Party Payments 4THIRD,470101,Purchase of Care,19/02/2019,3552952-2534636,"2,279.00",BROOMHOUSE CARE LTD.
Adult and Health Services,Head of Adults,Third Party Payments 4THIRD,470101,Purchase of Care,19/02/2019,3552952-2534637,"2,279.00",BROOMHOUSE CARE LTD.
Adult and Health Services,Head of Adults,Third Party Payments 4THIRD,470101,Purchase of Care,19/02/2019,3552952-2534639,"2,279.00",BROOMHOUSE CARE LTD.
Adult and Health Services,Head of Adults,Third Party Payments 4THIRD,470101,Purchase of Care,19/02/2019,3552952-2534641,"2,279.00",BROOMHOUSE CARE LTD.
Adult and Health Services,Head of Adults,Third Party Payments 4THIRD,470101,Purchase of Care,19/02/2019,3552952-2534643,"2,279.00",BROOMHOUSE CARE LTD.
Adult and Health Services,Head of Adults,Third Party Payments 4THIRD,470101,Purchase of Care,19/02/2019,3552952-2534645,"2,279.00",BROOMHOUSE CARE LTD.
Adult and Health Services,Head of Adults,Third Party Payments 4THIRD,470101,Purchase of Care,19/02/2019,3552952-2534648,"2,279.00",BROOMHOUSE CARE LTD.
Adult and Health Services,Head of Adults,Third Party Payments 4THIRD,470101,Purchase of Care,19/02/2019,3552952-2534649,"2,279.00",BROOMHOUSE CARE LTD.
Adult and Health Services,Head of Adults,Third Party Payments 4THIRD,470101,Purchase of Care,19/02/2019,3552952-2538395,"2,246.44",BROOMHOUSE CARE LTD.
Adult and Health Services,Head of Adults,Third Party Payments 4THIRD,470101,Purchase of Care,26/02/2019,3556707-WINTERJAN19-079,"2,820.92",BROOMHOUSE CARE LTD.
Adult and Health Services,Head of Adults,Third Party Payments 4THIRD,471101,Purchase of Care,19/02/2019,3552952-2534629,"2,363.08",BROOMHOUSE CARE LTD.
Adult and Health Services,Head of Adults,Third Party Payments 4THIRD,471101,Purchase of Care,19/02/2019,3552952-2534630,"2,363.08",BROOMHOUSE CARE LTD.
Adult and Health Services,Head of Adults,Third Party Payments 4THIRD,471101,Purchase of Care,19/02/2019,3552952-2534632,"2,363.08",BROOMHOUSE CARE LTD.
Adult and Health Services,Head of Adults,Third Party Payments 4THIRD,471101,Purchase of Care,19/02/2019,3552952-2534633,"2,363.08",BROOMHOUSE CARE LTD.
Adult and Health Services,Head of Adults,Third Party Payments 4THIRD,471101,Purchase of Care,19/02/2019,3552952-2534634,"2,363.08",BROOMHOUSE CARE LTD.
Adult and Health Services,Head of Adults,Third Party Payments 4THIRD,471101,Purchase of Care,19/02/2019,3552952-2534635,"1,181.52",BROOMHOUSE CARE LTD.
Adult and Health Services,Head of Adults,Third Party Payments 4THIRD,471101,Purchase of Care,19/02/2019,3552952-2534640,"2,363.08",BROOMHOUSE CARE LTD.
Adult and Health Services,Head of Adults,Third Party Payments 4THIRD,471101,Purchase of Care,19/02/2019,3552952-2534644,"2,363.08",BROOMHOUSE CARE LTD.
Adult and Health Services,Head of Adults,Third Party Payments 4THIRD,471101,Purchase of Care,19/02/2019,3552952-2534646,"2,363.08",BROOMHOUSE CARE LTD.
Adult and Health Services,Head of Adults,Third Party Payments 4THIRD,471101,Purchase of Care,19/02/2019,3552952-2534647,"2,363.08",BROOMHOUSE CARE LTD.
Adult and Health Services,Head of Adults,Third Party Payments 4THIRD,471101,Purchase of Care,19/02/2019,3552952-2534650,"2,363.08",BROOMHOUSE CARE LTD.
Adult and Health Services,Head of Adults,Third Party Payments 4THIRD,471101,Purchase of Care,19/02/2019,3552952-2534651,"2,363.08",BROOMHOUSE CARE LTD.
Adult and Health Services,Head of Adults,Third Party Payments 4THIRD,471101,Purchase of Care,19/02/2019,3552952-2534652,"2,363.08",BROOMHOUSE CARE LTD.
Adult and Health Services,Head of Adults,Third Party Payments 4THIRD,471101,Purchase of Care,19/02/2019,3552952-2534653,"1,513.36",BROOMHOUSE CARE LTD.
Adult and Health Services,Head of Adults,Third Party Payments 4THIRD,471101,Purchase of Care,19/02/2019,3552952-2538392,506.37,BROOMHOUSE CARE LTD.
Adult and Health Services,Head of Adults,Third Party Payments 4THIRD,471101,Purchase of Care,19/02/2019,3552952-2538393,"1,772.31",BROOMHOUSE CARE LTD.
Adult and Health Services,Head of Adults,Third Party Payments 4THIRD,471101,Purchase of Care,26/02/2019,3556707-WINTERJAN19-080,"4,874.99",BROOMHOUSE CARE LTD.
Regeneration and Local Services,Direct Services,Supplies and Services,304221,Equipment and Materials,22/02/2019,3554990-1660/0485836,"1,101.44",BSS GROUP PLC.
Regeneration and Local Services,Transport and Contracted Services,Supplies and Services,304245,Equipment and Materials,22/02/2019,3554991-54849,"2,550.00",BUDDI.
Regeneration and Local Services,Transport and Contracted Services,Supplies and Services,304245,Equipment and Materials,22/02/2019,3554991-54850,780.00,BUDDI.
Dedicated Schools Grant,DSG Early Years Block,Transfer Payments,510032,School Children,25/02/2019,3555388-12068,"5,049.00",BUDDIES CHILDCARE CENTRE.
Dedicated Schools Grant,DSG Early Years Block,Transfer Payments,510030,School Children,25/02/2019,3555388-12244,"6,196.12",BUDDIES CHILDCARE CENTRE.
Children and Young Peoples Services,Head of Education and Skills,Supplies and Services,338094,Services,25/02/2019,3555389-18-646,"1,575.00",BULLION COMMUNITY RESOURCE CENTRE.
Adult and Health Services,Head of Adults,Third Party Payments 4THIRD,470101,Purchase of Care,19/02/2019,3552953-2538212,"1,006.00",BURLINGTON CARE (YORKSHIRE) LTD.
Adult and Health Services,Head of Adults,Third Party Payments 4THIRD,470101,Purchase of Care,19/02/2019,3552954-2537485,"2,120.16",BURLINGTON CARE (YORKSHIRE) LTD.
Adult and Health Services,Head of Adults,Third Party Payments 4THIRD,470101,Purchase of Care,19/02/2019,3552956-2536465,"2,112.00",BURLINGTON CARE LTD.
Adult and Health Services,Head of Adults,Third Party Payments 4THIRD,471101,Purchase of Care,19/02/2019,3552955-2536726,"2,112.00",BURLINGTON CARE LTD.
Regeneration and Local Services,Transport and Contracted Services,Construction work A908,908105,Construction work,14/02/2019,3550869-NO25435,"2,733.48",BUS SHELTERS LTD.
Regeneration and Local Services,Transport and Contracted Services,Construction work A908,908105,Construction work,14/02/2019,3550869-NO25436,"2,733.48",BUS SHELTERS LTD.
Regeneration and Local Services,Transport and Contracted Services,Construction work A908,908105,Construction work,21/02/2019,3554512-NO25424,"2,903.48",BUS SHELTERS LTD.
Regeneration and Local Services,Economic Development and Housing,Third Party Payments 4THIRD,460305,Contract Payments,05/02/2019,3547641-13179,"39,087.50",BUSINESS & ENTERPRISE COMMERCIAL LTD T/A BE GROUP.
Regeneration and Local Services,Economic Development and Housing,Third Party Payments 4THIRD,460305,Contract Payments,07/02/2019,3548318-RED-02-2019-049,"67,786.51",BUSINESS & ENTERPRISE COMMERCIAL LTD T/A BE GROUP.
Regeneration and Local Services,Economic Development and Housing,Third Party Payments 4THIRD,460305,Contract Payments,27/02/2019,3556971-RED-02-2019-161,"20,205.43",BUSINESS & ENTERPRISE COMMERCIAL LTD T/A BE GROUP.
Dedicated Schools Grant,DSG Early Years Block,Transfer Payments,510032,School Children,25/02/2019,3555390-12069,"8,835.75",BUSY BEARS LTD.
Dedicated Schools Grant,DSG Early Years Block,Transfer Payments,510030,School Children,25/02/2019,3555390-12245,"24,420.30",BUSY BEARS LTD.
Dedicated Schools Grant,DSG Early Years Block,Transfer Payments,510030,School Children,25/02/2019,3555391-12241,"2,881.69",BUSY BODIES CHILDCARE.
Dedicated Schools Grant,DSG Early Years Block,Transfer Payments,510030,School Children,25/02/2019,3555392-12247,"4,323.28",BUSY BODIES CHILDCARE.
Dedicated Schools Grant,DSG Early Years Block,Transfer Payments,510030,School Children,25/02/2019,3555393-12248,"1,102.20",BUTTERFLIES DAY CARE.
Dedicated Schools Grant,DSG Early Years Block,Transfer Payments,510032,School Children,25/02/2019,3555394-12073,"6,942.37",BYERLEY ROAD PRE SCHOOL.
Dedicated Schools Grant,DSG Early Years Block,Transfer Payments,510030,School Children,25/02/2019,3555394-12249,"6,793.87",BYERLEY ROAD PRE SCHOOL.
Children and Young Peoples Services,Head of Education and Skills,Transport,230008,Contract Hire,06/02/2019,3547905-A028016,"1,170.00",C & R TAXIS.
Children and Young Peoples Services,Head of Education and Skills,Transport,230008,Contract Hire,06/02/2019,3547905-S026016,"1,395.00",C & R TAXIS.
Children and Young Peoples Services,Head of Education and Skills,Transport,230008,Contract Hire,06/02/2019,3547905-W04003,"1,800.00",C & R TAXIS.
Children and Young Peoples Services,Head of Education and Skills,Transport,230008,Contract Hire,06/02/2019,3547905-W078016,"2,160.00",C & R TAXIS.
Children and Young Peoples Services,Head of Education and Skills,Transport,230008,Contract Hire,13/02/2019,311754-N010/16,"1,330.00",C STEWART.
Children and Young Peoples Services,Head of Education and Skills,Transport,230009,Contract Hire,06/02/2019,3547906-BIL0148,880.00,CA MUSGROVE.
Children and Young Peoples Services,Head of Education and Skills,Transport,230008,Contract Hire,08/02/2019,3548681-BIL0149,"1,000.00",CA MUSGROVE.
Regeneration and Local Services,Culture & Sport,Premises,120021,Energy Costs,18/02/2019,3551613-31162184,788.18,CALOR GAS LTD.
Resources,Legal & Democratic Services,Supplies and Services,384199,Miscellaneous Expenses,22/02/2019,3554994-NECP006,"2,800.00",CANDLE & BELL LTD.
Regeneration and Local Services,Culture & Sport,Supplies and Services,304259,Equipment and Materials,25/02/2019,3555395-CN19849492,992.70,CANNON HYGIENE LTD.
Regeneration and Local Services,Culture & Sport,Supplies and Services,384199,Miscellaneous Expenses,25/02/2019,3555395-CN19851297,589.80,CANNON HYGIENE LTD.
Adult and Health Services,Head of Adults,Supplies and Services,338366,Services,11/02/2019,3549146-54484,"1,254.05",CARE ABILITY HEALTHCARE LTD.
Adult and Health Services,Head of Adults,Supplies and Services,338366,Services,15/02/2019,3551276-55983,"1,356.05",CARE ABILITY HEALTHCARE LTD.
Adult and Health Services,Head of Adults,Supplies and Services,338366,Services,18/02/2019,3551616-56000,"1,836.30",CARE ABILITY HEALTHCARE LTD.
Adult and Health Services,Head of Adults,Supplies and Services,338366,Services,25/02/2019,3555396-56220,"1,546.05",CARE ABILITY HEALTHCARE LTD.
Adult and Health Services,Head of Adults,Supplies and Services,338069,Services,20/02/2019,3554316-42470806,"17,288.00",CARE QUALITY COMMISSION.
Adult and Health Services,Head of Adults,Third Party Payments 4THIRD,474101,Purchase of Care,19/02/2019,3552957-2536728,"1,185.72",CARE UK COMMUNITY PARTNERSHIPS LTD.
Adult and Health Services,Head of Adults,Third Party Payments 4THIRD,474101,Purchase of Care,19/02/2019,3552957-2536737,"1,185.72",CARE UK COMMUNITY PARTNERSHIPS LTD.
Adult and Health Services,Head of Adults,Third Party Payments 4THIRD,474101,Purchase of Care,19/02/2019,3552957-2536753,"2,371.44",CARE UK COMMUNITY PARTNERSHIPS LTD.
Adult and Health Services,Head of Adults,Third Party Payments 4THIRD,474101,Purchase of Care,19/02/2019,3552957-2536755,"2,371.44",CARE UK COMMUNITY PARTNERSHIPS LTD.
Adult and Health Services,Head of Adults,Third Party Payments 4THIRD,474101,Purchase of Care,19/02/2019,3552957-2536759,"2,371.44",CARE UK COMMUNITY PARTNERSHIPS LTD.
Adult and Health Services,Head of Adults,Third Party Payments 4THIRD,474101,Purchase of Care,19/02/2019,3552957-2536764,"2,371.44",CARE UK COMMUNITY PARTNERSHIPS LTD.
Adult and Health Services,Head of Adults,Third Party Payments 4THIRD,474101,Purchase of Care,19/02/2019,3552957-2536767,"2,371.44",CARE UK COMMUNITY PARTNERSHIPS LTD.
Adult and Health Services,Head of Adults,Third Party Payments 4THIRD,474101,Purchase of Care,19/02/2019,3552957-2536770,"1,185.72",CARE UK COMMUNITY PARTNERSHIPS LTD.
Adult and Health Services,Head of Adults,Third Party Payments 4THIRD,474101,Purchase of Care,19/02/2019,3552963-2534011,"2,100.00",CARE UK COMMUNITY PARTNERSHIPS LTD.
Adult and Health Services,Head of Adults,Third Party Payments 4THIRD,474101,Purchase of Care,26/02/2019,3556710-WINTERJAN19-197,"2,628.91",CARE UK COMMUNITY PARTNERSHIPS LTD.
Adult and Health Services,Head of Adults,Third Party Payments 4THIRD,470101,Purchase of Care,19/02/2019,3552957-2536731,"2,279.00",CARE UK COMMUNITY PARTNERSHIPS LTD.
Adult and Health Services,Head of Adults,Third Party Payments 4THIRD,470101,Purchase of Care,19/02/2019,3552957-2536740,"2,279.00",CARE UK COMMUNITY PARTNERSHIPS LTD.
Adult and Health Services,Head of Adults,Third Party Payments 4THIRD,470101,Purchase of Care,19/02/2019,3552957-2536743,"2,279.00",CARE UK COMMUNITY PARTNERSHIPS LTD.
Adult and Health Services,Head of Adults,Third Party Payments 4THIRD,470101,Purchase of Care,19/02/2019,3552957-2536744,"2,279.00",CARE UK COMMUNITY PARTNERSHIPS LTD.
Adult and Health Services,Head of Adults,Third Party Payments 4THIRD,470101,Purchase of Care,19/02/2019,3552957-2536745,"2,279.00",CARE UK COMMUNITY PARTNERSHIPS LTD.
Adult and Health Services,Head of Adults,Third Party Payments 4THIRD,470101,Purchase of Care,19/02/2019,3552957-2536746,"2,279.00",CARE UK COMMUNITY PARTNERSHIPS LTD.
Adult and Health Services,Head of Adults,Third Party Payments 4THIRD,470101,Purchase of Care,19/02/2019,3552957-2536747,"2,279.00",CARE UK COMMUNITY PARTNERSHIPS LTD.
Adult and Health Services,Head of Adults,Third Party Payments 4THIRD,470101,Purchase of Care,19/02/2019,3552957-2536749,"2,279.00",CARE UK COMMUNITY PARTNERSHIPS LTD.
Adult and Health Services,Head of Adults,Third Party Payments 4THIRD,470101,Purchase of Care,19/02/2019,3552957-2536750,"2,279.00",CARE UK COMMUNITY PARTNERSHIPS LTD.
Adult and Health Services,Head of Adults,Third Party Payments 4THIRD,470101,Purchase of Care,19/02/2019,3552957-2536751,"2,279.00",CARE UK COMMUNITY PARTNERSHIPS LTD.
Adult and Health Services,Head of Adults,Third Party Payments 4THIRD,470101,Purchase of Care,19/02/2019,3552957-2536752,"2,555.68",CARE UK COMMUNITY PARTNERSHIPS LTD.
Adult and Health Services,Head of Adults,Third Party Payments 4THIRD,470101,Purchase of Care,19/02/2019,3552957-2536769,"2,279.00",CARE UK COMMUNITY PARTNERSHIPS LTD.
Adult and Health Services,Head of Adults,Third Party Payments 4THIRD,470101,Purchase of Care,19/02/2019,3552957-2536772,"2,279.00",CARE UK COMMUNITY PARTNERSHIPS LTD.
Adult and Health Services,Head of Adults,Third Party Payments 4THIRD,470101,Purchase of Care,19/02/2019,3552957-2536773,"2,279.00",CARE UK COMMUNITY PARTNERSHIPS LTD.
Adult and Health Services,Head of Adults,Third Party Payments 4THIRD,470101,Purchase of Care,19/02/2019,3552957-2536774,"2,279.00",CARE UK COMMUNITY PARTNERSHIPS LTD.
Adult and Health Services,Head of Adults,Third Party Payments 4THIRD,470101,Purchase of Care,19/02/2019,3552957-2536775,"2,279.00",CARE UK COMMUNITY PARTNERSHIPS LTD.
Adult and Health Services,Head of Adults,Third Party Payments 4THIRD,470101,Purchase of Care,19/02/2019,3552957-2536776,"2,279.00",CARE UK COMMUNITY PARTNERSHIPS LTD.
Adult and Health Services,Head of Adults,Third Party Payments 4THIRD,470101,Purchase of Care,19/02/2019,3552957-2538513,651.14,CARE UK COMMUNITY PARTNERSHIPS LTD.
Adult and Health Services,Head of Adults,Third Party Payments 4THIRD,470101,Purchase of Care,19/02/2019,3552957-2538514,"1,627.85",CARE UK COMMUNITY PARTNERSHIPS LTD.
Adult and Health Services,Head of Adults,Third Party Payments 4THIRD,470101,Purchase of Care,19/02/2019,3552958-2536777,"2,052.00",CARE UK COMMUNITY PARTNERSHIPS LTD.
Adult and Health Services,Head of Adults,Third Party Payments 4THIRD,470101,Purchase of Care,19/02/2019,3552958-2536778,"2,052.00",CARE UK COMMUNITY PARTNERSHIPS LTD.
Adult and Health Services,Head of Adults,Third Party Payments 4THIRD,470101,Purchase of Care,19/02/2019,3552959-2535285,651.14,CARE UK COMMUNITY PARTNERSHIPS LTD.
Adult and Health Services,Head of Adults,Third Party Payments 4THIRD,470101,Purchase of Care,19/02/2019,3552959-2535286,"2,279.00",CARE UK COMMUNITY PARTNERSHIPS LTD.
Adult and Health Services,Head of Adults,Third Party Payments 4THIRD,470101,Purchase of Care,19/02/2019,3552959-2535287,"2,279.00",CARE UK COMMUNITY PARTNERSHIPS LTD.
Adult and Health Services,Head of Adults,Third Party Payments 4THIRD,470101,Purchase of Care,19/02/2019,3552959-2535288,"2,279.00",CARE UK COMMUNITY PARTNERSHIPS LTD.
Adult and Health Services,Head of Adults,Third Party Payments 4THIRD,470101,Purchase of Care,19/02/2019,3552959-2535289,"2,279.00",CARE UK COMMUNITY PARTNERSHIPS LTD.
Adult and Health Services,Head of Adults,Third Party Payments 4THIRD,470101,Purchase of Care,19/02/2019,3552959-2535290,"2,279.00",CARE UK COMMUNITY PARTNERSHIPS LTD.
Adult and Health Services,Head of Adults,Third Party Payments 4THIRD,470101,Purchase of Care,19/02/2019,3552959-2535291,"2,279.00",CARE UK COMMUNITY PARTNERSHIPS LTD.
Adult and Health Services,Head of Adults,Third Party Payments 4THIRD,470101,Purchase of Care,19/02/2019,3552959-2535293,"2,279.00",CARE UK COMMUNITY PARTNERSHIPS LTD.
Adult and Health Services,Head of Adults,Third Party Payments 4THIRD,470101,Purchase of Care,19/02/2019,3552959-2535294,"1,627.85",CARE UK COMMUNITY PARTNERSHIPS LTD.
Adult and Health Services,Head of Adults,Third Party Payments 4THIRD,470101,Purchase of Care,19/02/2019,3552959-2535295,"1,709.25",CARE UK COMMUNITY PARTNERSHIPS LTD.
Adult and Health Services,Head of Adults,Third Party Payments 4THIRD,470101,Purchase of Care,19/02/2019,3552959-2535296,813.92,CARE UK COMMUNITY PARTNERSHIPS LTD.
Adult and Health Services,Head of Adults,Third Party Payments 4THIRD,470101,Purchase of Care,19/02/2019,3552959-2535297,"2,034.82",CARE UK COMMUNITY PARTNERSHIPS LTD.
Adult and Health Services,Head of Adults,Third Party Payments 4THIRD,470101,Purchase of Care,19/02/2019,3552959-2535298,"1,546.46",CARE UK COMMUNITY PARTNERSHIPS LTD.
Adult and Health Services,Head of Adults,Third Party Payments 4THIRD,470101,Purchase of Care,19/02/2019,3552959-2535299,569.75,CARE UK COMMUNITY PARTNERSHIPS LTD.
Adult and Health Services,Head of Adults,Third Party Payments 4THIRD,470101,Purchase of Care,19/02/2019,3552959-2535300,"2,279.00",CARE UK COMMUNITY PARTNERSHIPS LTD.
Adult and Health Services,Head of Adults,Third Party Payments 4THIRD,470101,Purchase of Care,19/02/2019,3552959-2535301,"2,279.00",CARE UK COMMUNITY PARTNERSHIPS LTD.
Adult and Health Services,Head of Adults,Third Party Payments 4THIRD,470101,Purchase of Care,19/02/2019,3552959-2535302,"2,279.00",CARE UK COMMUNITY PARTNERSHIPS LTD.
Adult and Health Services,Head of Adults,Third Party Payments 4THIRD,470101,Purchase of Care,19/02/2019,3552959-2535303,"2,279.00",CARE UK COMMUNITY PARTNERSHIPS LTD.
Adult and Health Services,Head of Adults,Third Party Payments 4THIRD,470101,Purchase of Care,19/02/2019,3552959-2535304,"2,279.00",CARE UK COMMUNITY PARTNERSHIPS LTD.
Adult and Health Services,Head of Adults,Third Party Payments 4THIRD,470101,Purchase of Care,19/02/2019,3552959-2535305,"2,279.00",CARE UK COMMUNITY PARTNERSHIPS LTD.
Adult and Health Services,Head of Adults,Third Party Payments 4THIRD,470101,Purchase of Care,19/02/2019,3552959-2535306,"2,279.00",CARE UK COMMUNITY PARTNERSHIPS LTD.
Adult and Health Services,Head of Adults,Third Party Payments 4THIRD,470101,Purchase of Care,19/02/2019,3552959-2535307,"2,279.00",CARE UK COMMUNITY PARTNERSHIPS LTD.
Adult and Health Services,Head of Adults,Third Party Payments 4THIRD,470101,Purchase of Care,19/02/2019,3552959-2535308,"2,279.00",CARE UK COMMUNITY PARTNERSHIPS LTD.
Adult and Health Services,Head of Adults,Third Party Payments 4THIRD,470101,Purchase of Care,19/02/2019,3552959-2535309,"2,399.00",CARE UK COMMUNITY PARTNERSHIPS LTD.
Adult and Health Services,Head of Adults,Third Party Payments 4THIRD,470101,Purchase of Care,19/02/2019,3552960-2536598,"2,313.00",CARE UK COMMUNITY PARTNERSHIPS LTD.
Adult and Health Services,Head of Adults,Third Party Payments 4THIRD,470101,Purchase of Care,19/02/2019,3552961-2536597,"1,357.57",CARE UK COMMUNITY PARTNERSHIPS LTD.
Adult and Health Services,Head of Adults,Third Party Payments 4THIRD,470101,Purchase of Care,19/02/2019,3552962-2536571,"2,279.00",CARE UK COMMUNITY PARTNERSHIPS LTD.
Adult and Health Services,Head of Adults,Third Party Payments 4THIRD,470101,Purchase of Care,19/02/2019,3552962-2536573,"2,279.00",CARE UK COMMUNITY PARTNERSHIPS LTD.
Adult and Health Services,Head of Adults,Third Party Payments 4THIRD,470101,Purchase of Care,19/02/2019,3552962-2536580,"2,279.00",CARE UK COMMUNITY PARTNERSHIPS LTD.
Adult and Health Services,Head of Adults,Third Party Payments 4THIRD,470101,Purchase of Care,19/02/2019,3552962-2536582,"2,279.00",CARE UK COMMUNITY PARTNERSHIPS LTD.
Adult and Health Services,Head of Adults,Third Party Payments 4THIRD,470101,Purchase of Care,19/02/2019,3552962-2536583,"1,139.48",CARE UK COMMUNITY PARTNERSHIPS LTD.
Adult and Health Services,Head of Adults,Third Party Payments 4THIRD,470101,Purchase of Care,19/02/2019,3552962-2536586,"2,279.00",CARE UK COMMUNITY PARTNERSHIPS LTD.
Adult and Health Services,Head of Adults,Third Party Payments 4THIRD,470101,Purchase of Care,19/02/2019,3552962-2536589,"2,279.00",CARE UK COMMUNITY PARTNERSHIPS LTD.
Adult and Health Services,Head of Adults,Third Party Payments 4THIRD,470101,Purchase of Care,19/02/2019,3552962-2536590,"2,279.00",CARE UK COMMUNITY PARTNERSHIPS LTD.
Adult and Health Services,Head of Adults,Third Party Payments 4THIRD,470101,Purchase of Care,19/02/2019,3552962-2536594,"2,279.00",CARE UK COMMUNITY PARTNERSHIPS LTD.
Adult and Health Services,Head of Adults,Third Party Payments 4THIRD,470101,Purchase of Care,19/02/2019,3552962-2536595,"2,279.00",CARE UK COMMUNITY PARTNERSHIPS LTD.
Adult and Health Services,Head of Adults,Third Party Payments 4THIRD,470101,Purchase of Care,19/02/2019,3552962-2538448,"1,790.64",CARE UK COMMUNITY PARTNERSHIPS LTD.
Adult and Health Services,Head of Adults,Third Party Payments 4THIRD,470101,Purchase of Care,26/02/2019,3556708-WINTERJAN19-036,"6,268.72",CARE UK COMMUNITY PARTNERSHIPS LTD.
Adult and Health Services,Head of Adults,Third Party Payments 4THIRD,470101,Purchase of Care,26/02/2019,3556709-WINTERJAN19-182,"3,447.79",CARE UK COMMUNITY PARTNERSHIPS LTD.
Adult and Health Services,Head of Adults,Third Party Payments 4THIRD,470101,Purchase of Care,26/02/2019,3556710-WINTERJAN19-195,"5,328.41",CARE UK COMMUNITY PARTNERSHIPS LTD.
Adult and Health Services,Head of Adults,Third Party Payments 4THIRD,471101,Purchase of Care,19/02/2019,3552957-2536727,"2,363.08",CARE UK COMMUNITY PARTNERSHIPS LTD.
Adult and Health Services,Head of Adults,Third Party Payments 4THIRD,471101,Purchase of Care,19/02/2019,3552957-2536730,"2,363.08",CARE UK COMMUNITY PARTNERSHIPS LTD.
Adult and Health Services,Head of Adults,Third Party Payments 4THIRD,471101,Purchase of Care,19/02/2019,3552957-2536732,"1,181.52",CARE UK COMMUNITY PARTNERSHIPS LTD.
Adult and Health Services,Head of Adults,Third Party Payments 4THIRD,471101,Purchase of Care,19/02/2019,3552957-2536734,"2,363.08",CARE UK COMMUNITY PARTNERSHIPS LTD.
Adult and Health Services,Head of Adults,Third Party Payments 4THIRD,471101,Purchase of Care,19/02/2019,3552957-2536735,"2,363.08",CARE UK COMMUNITY PARTNERSHIPS LTD.
Adult and Health Services,Head of Adults,Third Party Payments 4THIRD,471101,Purchase of Care,19/02/2019,3552957-2536739,"2,363.08",CARE UK COMMUNITY PARTNERSHIPS LTD.
Adult and Health Services,Head of Adults,Third Party Payments 4THIRD,471101,Purchase of Care,19/02/2019,3552957-2536748,"2,363.08",CARE UK COMMUNITY PARTNERSHIPS LTD.
Adult and Health Services,Head of Adults,Third Party Payments 4THIRD,471101,Purchase of Care,19/02/2019,3552957-2536757,"2,363.08",CARE UK COMMUNITY PARTNERSHIPS LTD.
Adult and Health Services,Head of Adults,Third Party Payments 4THIRD,471101,Purchase of Care,19/02/2019,3552957-2536758,"2,363.08",CARE UK COMMUNITY PARTNERSHIPS LTD.
Adult and Health Services,Head of Adults,Third Party Payments 4THIRD,471101,Purchase of Care,19/02/2019,3552957-2536761,"2,363.08",CARE UK COMMUNITY PARTNERSHIPS LTD.
Adult and Health Services,Head of Adults,Third Party Payments 4THIRD,471101,Purchase of Care,19/02/2019,3552957-2536762,"2,363.08",CARE UK COMMUNITY PARTNERSHIPS LTD.
Adult and Health Services,Head of Adults,Third Party Payments 4THIRD,471101,Purchase of Care,19/02/2019,3552957-2536766,"2,363.08",CARE UK COMMUNITY PARTNERSHIPS LTD.
Adult and Health Services,Head of Adults,Third Party Payments 4THIRD,471101,Purchase of Care,19/02/2019,3552957-2538508,"2,363.08",CARE UK COMMUNITY PARTNERSHIPS LTD.
Adult and Health Services,Head of Adults,Third Party Payments 4THIRD,471101,Purchase of Care,19/02/2019,3552957-2538509,"2,367.12",CARE UK COMMUNITY PARTNERSHIPS LTD.
Adult and Health Services,Head of Adults,Third Party Payments 4THIRD,471101,Purchase of Care,19/02/2019,3552957-2538510,563.60,CARE UK COMMUNITY PARTNERSHIPS LTD.
Adult and Health Services,Head of Adults,Third Party Payments 4THIRD,471101,Purchase of Care,19/02/2019,3552960-2536599,"2,391.84",CARE UK COMMUNITY PARTNERSHIPS LTD.
Adult and Health Services,Head of Adults,Third Party Payments 4THIRD,471101,Purchase of Care,19/02/2019,3552960-2536600,"2,391.84",CARE UK COMMUNITY PARTNERSHIPS LTD.
Adult and Health Services,Head of Adults,Third Party Payments 4THIRD,471101,Purchase of Care,19/02/2019,3552962-2536572,"2,363.08",CARE UK COMMUNITY PARTNERSHIPS LTD.
Adult and Health Services,Head of Adults,Third Party Payments 4THIRD,471101,Purchase of Care,19/02/2019,3552962-2536574,"2,363.08",CARE UK COMMUNITY PARTNERSHIPS LTD.
Adult and Health Services,Head of Adults,Third Party Payments 4THIRD,471101,Purchase of Care,19/02/2019,3552962-2536575,"2,363.08",CARE UK COMMUNITY PARTNERSHIPS LTD.
Adult and Health Services,Head of Adults,Third Party Payments 4THIRD,471101,Purchase of Care,19/02/2019,3552962-2536576,"2,363.08",CARE UK COMMUNITY PARTNERSHIPS LTD.
Adult and Health Services,Head of Adults,Third Party Payments 4THIRD,471101,Purchase of Care,19/02/2019,3552962-2536577,"2,363.08",CARE UK COMMUNITY PARTNERSHIPS LTD.
Adult and Health Services,Head of Adults,Third Party Payments 4THIRD,471101,Purchase of Care,19/02/2019,3552962-2536578,"2,363.08",CARE UK COMMUNITY PARTNERSHIPS LTD.
Adult and Health Services,Head of Adults,Third Party Payments 4THIRD,471101,Purchase of Care,19/02/2019,3552962-2536579,"1,181.56",CARE UK COMMUNITY PARTNERSHIPS LTD.
Adult and Health Services,Head of Adults,Third Party Payments 4THIRD,471101,Purchase of Care,19/02/2019,3552962-2536581,"2,363.08",CARE UK COMMUNITY PARTNERSHIPS LTD.
Adult and Health Services,Head of Adults,Third Party Payments 4THIRD,471101,Purchase of Care,19/02/2019,3552962-2536584,"2,363.08",CARE UK COMMUNITY PARTNERSHIPS LTD.
Adult and Health Services,Head of Adults,Third Party Payments 4THIRD,471101,Purchase of Care,19/02/2019,3552962-2536585,"2,363.08",CARE UK COMMUNITY PARTNERSHIPS LTD.
Adult and Health Services,Head of Adults,Third Party Payments 4THIRD,471101,Purchase of Care,19/02/2019,3552962-2536587,"2,363.08",CARE UK COMMUNITY PARTNERSHIPS LTD.
Adult and Health Services,Head of Adults,Third Party Payments 4THIRD,471101,Purchase of Care,19/02/2019,3552962-2536588,"2,363.08",CARE UK COMMUNITY PARTNERSHIPS LTD.
Adult and Health Services,Head of Adults,Third Party Payments 4THIRD,471101,Purchase of Care,19/02/2019,3552962-2536591,"2,363.08",CARE UK COMMUNITY PARTNERSHIPS LTD.
Adult and Health Services,Head of Adults,Third Party Payments 4THIRD,471101,Purchase of Care,19/02/2019,3552962-2536592,"2,363.08",CARE UK COMMUNITY PARTNERSHIPS LTD.
Adult and Health Services,Head of Adults,Third Party Payments 4THIRD,471101,Purchase of Care,19/02/2019,3552962-2536593,"2,363.08",CARE UK COMMUNITY PARTNERSHIPS LTD.
Adult and Health Services,Head of Adults,Third Party Payments 4THIRD,471101,Purchase of Care,19/02/2019,3552963-2534010,"2,180.00",CARE UK COMMUNITY PARTNERSHIPS LTD.
Adult and Health Services,Head of Adults,Third Party Payments 4THIRD,471101,Purchase of Care,19/02/2019,3552964-2537920,"2,420.00",CARE UK COMMUNITY PARTNERSHIPS LTD.
Adult and Health Services,Head of Adults,Third Party Payments 4THIRD,471101,Purchase of Care,19/02/2019,3552964-2537921,"3,140.35",CARE UK COMMUNITY PARTNERSHIPS LTD.
Adult and Health Services,Head of Adults,Third Party Payments 4THIRD,471101,Purchase of Care,19/02/2019,3552964-2537922,"2,420.00",CARE UK COMMUNITY PARTNERSHIPS LTD.
Adult and Health Services,Head of Adults,Third Party Payments 4THIRD,471101,Purchase of Care,26/02/2019,3556709-WINTERJAN19-183,"4,874.99",CARE UK COMMUNITY PARTNERSHIPS LTD.
Adult and Health Services,Head of Adults,Third Party Payments 4THIRD,471101,Purchase of Care,26/02/2019,3556710-WINTERJAN19-196,"4,224.99",CARE UK COMMUNITY PARTNERSHIPS LTD.
Adult and Health Services,Head of Adults,Third Party Payments 4THIRD,472101,Purchase of Care,19/02/2019,3553676-1873288H,"1,150.20",CARE VISIONS AT HOME LTD.
Adult and Health Services,Head of Adults,Third Party Payments 4THIRD,474101,Purchase of Care,19/02/2019,3552966-2537673,"2,808.00",CARELINE LIFESTYLES (UK) LTD.
Adult and Health Services,Head of Adults,Third Party Payments 4THIRD,474101,Purchase of Care,19/02/2019,3552967-2537916,"4,103.40",CARELINE LIFESTYLES (UK) LTD.
Adult and Health Services,Head of Adults,Third Party Payments 4THIRD,474101,Purchase of Care,19/02/2019,3552967-2537917,"2,415.00",CARELINE LIFESTYLES (UK) LTD.
Adult and Health Services,Head of Adults,Third Party Payments 4THIRD,470101,Purchase of Care,19/02/2019,3552965-2536596,"2,461.68",CARELINE LIFESTYLES (UK) LTD.
Adult and Health Services,Head of Adults,Third Party Payments 4THIRD,470101,Purchase of Care,19/02/2019,3552967-2537918,740.88,CARELINE LIFESTYLES (UK) LTD.
Adult and Health Services,Head of Adults,Third Party Payments 4THIRD,470101,Purchase of Care,19/02/2019,3552968-2536915,"2,719.52",CARELINE LIFESTYLES (UK) LTD.
Adult and Health Services,Head of Adults,Third Party Payments 4THIRD,470101,Purchase of Care,19/02/2019,3552968-2536916,"2,016.00",CARELINE LIFESTYLES (UK) LTD.
Adult and Health Services,Head of Adults,Third Party Payments 4THIRD,474101,Purchase of Care,19/02/2019,3552969-2538237,"3,088.00",CARELINE LIFESTYLES.
Adult and Health Services,Head of Adults,Third Party Payments 4THIRD,474101,Purchase of Care,19/02/2019,3552969-2538239,"3,242.00",CARELINE LIFESTYLES.
Adult and Health Services,Head of Adults,Third Party Payments 4THIRD,474101,Purchase of Care,19/02/2019,3552969-2538240,"3,088.00",CARELINE LIFESTYLES.
Adult and Health Services,Head of Adults,Third Party Payments 4THIRD,474101,Purchase of Care,19/02/2019,3552969-2538241,"1,481.76",CARELINE LIFESTYLES.
Adult and Health Services,Commissioning inc Supporting People,Third Party Payments 4THIRD,479111,Purchase of Care,26/02/2019,3556712-3694,"5,213.76",CARERS FEDERATION LTD.
Adult and Health Services,Head of Adults,Third Party Payments 4THIRD,474101,Purchase of Care,19/02/2019,3552970-2534857,"2,011.16",CAREWELL (HEALTH CARE) LTD.
Adult and Health Services,Head of Adults,Third Party Payments 4THIRD,474101,Purchase of Care,19/02/2019,3552970-2534863,"2,215.08",CAREWELL (HEALTH CARE) LTD.
Adult and Health Services,Head of Adults,Third Party Payments 4THIRD,474101,Purchase of Care,19/02/2019,3552970-2534878,"1,867.50",CAREWELL (HEALTH CARE) LTD.
Adult and Health Services,Head of Adults,Third Party Payments 4THIRD,474101,Purchase of Care,19/02/2019,3552970-2534882,"2,011.16",CAREWELL (HEALTH CARE) LTD.
Adult and Health Services,Head of Adults,Third Party Payments 4THIRD,474101,Purchase of Care,19/02/2019,3552970-2534885,"2,011.16",CAREWELL (HEALTH CARE) LTD.
Adult and Health Services,Head of Adults,Third Party Payments 4THIRD,474101,Purchase of Care,26/02/2019,3556713-WINTERJAN19-101,"2,675.45",CAREWELL (HEALTH CARE) LTD.
Adult and Health Services,Head of Adults,Third Party Payments 4THIRD,470102,Purchase of Care,19/02/2019,3552970-2534871,569.75,CAREWELL (HEALTH CARE) LTD.
Adult and Health Services,Head of Adults,Third Party Payments 4THIRD,470102,Purchase of Care,19/02/2019,3552970-2538518,"1,383.67",CAREWELL (HEALTH CARE) LTD.
Adult and Health Services,Head of Adults,Third Party Payments 4THIRD,470101,Purchase of Care,19/02/2019,3552970-2534865,"1,919.00",CAREWELL (HEALTH CARE) LTD.
Adult and Health Services,Head of Adults,Third Party Payments 4THIRD,470101,Purchase of Care,19/02/2019,3552970-2534866,"1,919.00",CAREWELL (HEALTH CARE) LTD.
Adult and Health Services,Head of Adults,Third Party Payments 4THIRD,470101,Purchase of Care,19/02/2019,3552970-2534867,"1,919.00",CAREWELL (HEALTH CARE) LTD.
Adult and Health Services,Head of Adults,Third Party Payments 4THIRD,470101,Purchase of Care,19/02/2019,3552970-2534869,"1,919.00",CAREWELL (HEALTH CARE) LTD.
Adult and Health Services,Head of Adults,Third Party Payments 4THIRD,470101,Purchase of Care,19/02/2019,3552970-2534870,"1,919.00",CAREWELL (HEALTH CARE) LTD.
Adult and Health Services,Head of Adults,Third Party Payments 4THIRD,470101,Purchase of Care,19/02/2019,3552970-2534875,"1,919.00",CAREWELL (HEALTH CARE) LTD.
Adult and Health Services,Head of Adults,Third Party Payments 4THIRD,470101,Purchase of Care,19/02/2019,3552970-2534876,"1,919.00",CAREWELL (HEALTH CARE) LTD.
Adult and Health Services,Head of Adults,Third Party Payments 4THIRD,470101,Purchase of Care,19/02/2019,3552970-2534881,"1,919.00",CAREWELL (HEALTH CARE) LTD.
Adult and Health Services,Head of Adults,Third Party Payments 4THIRD,470101,Purchase of Care,19/02/2019,3552970-2534884,"1,919.00",CAREWELL (HEALTH CARE) LTD.
Adult and Health Services,Head of Adults,Third Party Payments 4THIRD,470101,Purchase of Care,19/02/2019,3552970-2534888,"1,919.00",CAREWELL (HEALTH CARE) LTD.
Adult and Health Services,Head of Adults,Third Party Payments 4THIRD,470101,Purchase of Care,19/02/2019,3552970-2534889,"1,919.00",CAREWELL (HEALTH CARE) LTD.
Adult and Health Services,Head of Adults,Third Party Payments 4THIRD,470101,Purchase of Care,19/02/2019,3552970-2538519,753.89,CAREWELL (HEALTH CARE) LTD.
Adult and Health Services,Head of Adults,Third Party Payments 4THIRD,470101,Purchase of Care,26/02/2019,3556713-WINTERJAN19-100,"2,903.17",CAREWELL (HEALTH CARE) LTD.
Adult and Health Services,Head of Adults,Third Party Payments 4THIRD,470101,Purchase of Care,19/02/2019,3552971-2533539,"2,144.80",CARING HOMES HEALTHCARE GROUP LTD.
Adult and Health Services,Head of Adults,Third Party Payments 4THIRD,470101,Purchase of Care,19/02/2019,3552971-2538349,"2,144.80",CARING HOMES HEALTHCARE GROUP LTD.
Adult and Health Services,Head of Adults,Third Party Payments 4THIRD,471101,Purchase of Care,19/02/2019,3552972-2538111,"2,039.52",CARING HOMES HEALTHCARE GROUP LTD.
Regeneration and Local Services,Economic Development and Housing,Third Party Payments 4THIRD,440999,Other third party payments E440,01/02/2019,3547061-5172000111,"2,000.00",CARLISLE CITY COUNCIL.
Regeneration and Local Services,Direct Services,Supplies and Services,304221,Equipment and Materials,20/02/2019,3554317-851900225,880.10,CARLISLE CONSTRUCTION MATERIALS LTD.
Dedicated Schools Grant,DSG Early Years Block,Transfer Payments,510030,School Children,25/02/2019,3555398-12251,"1,429.31",CAROL WOODHEAD.
